Purchasing Organisation,Payment Date,Voucher Number (Internal Classification),Payment Number,Supplier Name,Service Area,Amount (�),Purpose,Supplier Type (Internal Classification),Invoice Type (Internal Classification),Cost Centre No,Directorate
RBC Legal Entity,25/01/2022,4079163,60,COMPASS GROUP PLC,PS Acquired Other Services,1991.14,Other support - not recoverabl,Third Party Supplier,STANDARD,5774,JAAA-Directorate of Social Care and Health Services
RBC Legal Entity,25/01/2022,4082604,60,COMPASS GROUP PLC,PS Acquired Other Services,-6869.9,Other support - not recoverabl,Third Party Supplier,CREDIT,5774,JAAA-Directorate of Social Care and Health Services
RBC Legal Entity,27/01/2022,4645309,61,KEY2 FUTURES LTD,Corporate Miscellaneous,-516.15,Special Activities,Third Party Supplier,CREDIT,2855,MAAA-Corporate Codes
RBC Legal Entity,05/01/2022,4639439,173,NORWOOD SCHOOLS LIMITED,LD Residential,95332.24,Purchased Care,SUPPLIER,STANDARD,5742,JAAA-Directorate of Social Care and Health Services
RBC Legal Entity,06/01/2022,4639710,174,PAYCOLL PAYROLL,Mental Health Community Services,44100.76,Purchased Care,Third Party Supplier,STANDARD,5731,JAAA-Directorate of Social Care and Health Services
RBC Legal Entity,17/01/2022,4631570,175,SHUTTERSTOCK INC,Business Development,1550,TPP to Others,Third Party Supplier,STANDARD,1301,KAAA-Directorate of Economic Growth and Neighbourhood Services
RBC Legal Entity,04/01/2022,4631342,266705,TUDOR ENVIRONMENTAL,Grounds Maintenance,197.95,Uniforms,SUPPLIER,STANDARD,1306,KAAA-Directorate of Economic Growth and Neighbourhood Services
RBC Legal Entity,04/01/2022,4631342,266705,TUDOR ENVIRONMENTAL,Grounds Maintenance,313,Uniforms,SUPPLIER,STANDARD,1306,KAAA-Directorate of Economic Growth and Neighbourhood Services
RBC Legal Entity,04/01/2022,4627740,266706,JO SPICER,JLT Disbursements,1866.2,Misc. Legal Expenses,SUPPLIER,STANDARD,2407,LAAA-Directorate of Resources
RBC Legal Entity,04/01/2022,4636438,266707,SYLVIANCARE LTD,PS Acquired Community Services,2394,Purchased Care,Third Party Supplier,STANDARD,5771,JAAA-Directorate of Social Care and Health Services
RBC Legal Entity,04/01/2022,4636439,266707,SYLVIANCARE LTD,PS Acquired Community Services,931,Purchased Care,Third Party Supplier,STANDARD,5771,JAAA-Directorate of Social Care and Health Services
RBC Legal Entity,04/01/2022,4636440,266707,SYLVIANCARE LTD,PS Acquired Community Services,532,Purchased Care,Third Party Supplier,STANDARD,5771,JAAA-Directorate of Social Care and Health Services
RBC Legal Entity,04/01/2022,4636452,266707,SYLVIANCARE LTD,Sensory Support Community Services,1064,Purchased Care,Third Party Supplier,STANDARD,5711,JAAA-Directorate of Social Care and Health Services
RBC Legal Entity,04/01/2022,4636466,266707,SYLVIANCARE LTD,PS Acquired Community Services,2128,Purchased Care,Third Party Supplier,STANDARD,5771,JAAA-Directorate of Social Care and Health Services
RBC Legal Entity,04/01/2022,4636474,266707,SYLVIANCARE LTD,PS Acquired Community Services,1862,Purchased Care,Third Party Supplier,STANDARD,5771,JAAA-Directorate of Social Care and Health Services
RBC Legal Entity,04/01/2022,4628208,266708,P & M BLINDS LTD,Archives General,2146,Plant Maintenance,SUPPLIER,STANDARD,1256,KAAA-Directorate of Economic Growth and Neighbourhood Services
RBC Legal Entity,04/01/2022,4632605,266709,FUNERAL SERVICES LIMITED,Coroner,10150,Special Activities,SUPPLIER,STANDARD,4605,KAAA-Directorate of Economic Growth and Neighbourhood Services
RBC Legal Entity,04/01/2022,4632517,266710,SHABANA B LIMITED,Bed and Breakfast,840,Rents,SUPPLIER,STANDARD,5871,KAAA-Directorate of Economic Growth and Neighbourhood Services
RBC Legal Entity,04/01/2022,4632520,266710,SHABANA B LIMITED,Bed and Breakfast,840,Rents,SUPPLIER,STANDARD,5871,KAAA-Directorate of Economic Growth and Neighbourhood Services
RBC Legal Entity,04/01/2022,4632575,266710,SHABANA B LIMITED,Housing GF General Charges,840,Preventive+SupportiveServ,SUPPLIER,STANDARD,5810,KAAA-Directorate of Economic Growth and Neighbourhood Services
RBC Legal Entity,04/01/2022,4628055,266712,ALIS TEMPLETON,Reading Abbey Revealed - Delivery phase,5000,External Fees  Misc.,Third Party Supplier,STANDARD,8015,ZZZC-Capital
RBC Legal Entity,04/01/2022,4632282,266713,HANNAH SLARKS,JLT Disbursements,1695,Misc. Legal Expenses,INDIVIDUAL,STANDARD,2407,LAAA-Directorate of Resources
RBC Legal Entity,04/01/2022,4632591,266714,MAKING CONNECTIONS (ISLE OF WIGHT) LTD,Safeguarding Adults,3750,Professional Fees,INDIVIDUAL,STANDARD,5158,JAAA-Directorate of Social Care and Health Services
RBC Legal Entity,04/01/2022,4626099,266716,LUCENT TALKING LTD,Customer Relations & Information Governance,2485,Consultancy Fees,Third Party Supplier,STANDARD,2058,LAAA-Directorate of Resources
RBC Legal Entity,04/01/2022,4628350,266717,CLIVE BARFORD LIMITED,Highways,1665,Hire of Plant,SUPPLIER,STANDARD,4252,KAAA-Directorate of Economic Growth and Neighbourhood Services
RBC Legal Entity,04/01/2022,4628350,266717,CLIVE BARFORD LIMITED,Highways,7900,Hire of Plant,SUPPLIER,STANDARD,4252,KAAA-Directorate of Economic Growth and Neighbourhood Services
RBC Legal Entity,04/01/2022,4631636,266718,THINKGIRAFFE CONSULTANCY LTD,JLT Disbursements,622.8,Misc. Legal Expenses,SUPPLIER,STANDARD,2407,LAAA-Directorate of Resources
RBC Legal Entity,04/01/2022,4632281,266719,WILLS BROS CIVIL ENGINEERING LTD,LEP Projects,31865.98,Contractors,SUB-CONTRACTOR,STANDARD,8806,ZZZC-Capital
RBC Legal Entity,04/01/2022,4625955,266720,F M CONWAY LTD,Highways,718.8,Materials Direct,SUB-CONTRACTOR,STANDARD,4252,KAAA-Directorate of Economic Growth and Neighbourhood Services
RBC Legal Entity,04/01/2022,4625964,266720,F M CONWAY LTD,Highways,517.5,Materials Direct,SUB-CONTRACTOR,STANDARD,4252,KAAA-Directorate of Economic Growth and Neighbourhood Services
RBC Legal Entity,04/01/2022,4631559,266720,F M CONWAY LTD,Highways,1139.54,Materials Direct,SUB-CONTRACTOR,STANDARD,4252,KAAA-Directorate of Economic Growth and Neighbourhood Services
RBC Legal Entity,04/01/2022,4631675,266720,F M CONWAY LTD,Highways,529,Materials Direct,SUB-CONTRACTOR,STANDARD,4252,KAAA-Directorate of Economic Growth and Neighbourhood Services
RBC Legal Entity,04/01/2022,4626173,266722,SPEKTRIX LTD,Cultural Services Marketing,6882.92,PurchaseComputer Equipt,SUPPLIER,STANDARD,1235,KAAA-Directorate of Economic Growth and Neighbourhood Services
RBC Legal Entity,04/01/2022,4632873,266724,MODUS CONSTRUCTION LTD,Corporate Offices,535,Building Works,SUB-CONTRACTOR,STANDARD,8602,ZZZC-Capital
RBC Legal Entity,04/01/2022,4633095,266724,MODUS CONSTRUCTION LTD,Corporate Maintenance Services,217.33,Leasing Costs,SUB-CONTRACTOR,STANDARD,4080,KAAA-Directorate of Economic Growth and Neighbourhood Services
RBC Legal Entity,04/01/2022,4633095,266724,MODUS CONSTRUCTION LTD,Corporate Maintenance Services,331.07,TPP  Contract,SUB-CONTRACTOR,STANDARD,4080,KAAA-Directorate of Economic Growth and Neighbourhood Services
RBC Legal Entity,04/01/2022,4636803,266724,MODUS CONSTRUCTION LTD,Corporate Maintenance Services,104.78,Leasing Costs,SUB-CONTRACTOR,STANDARD,4080,KAAA-Directorate of Economic Growth and Neighbourhood Services
RBC Legal Entity,04/01/2022,4636803,266724,MODUS CONSTRUCTION LTD,Corporate Maintenance Services,495.22,TPP  Contract,SUB-CONTRACTOR,STANDARD,4080,KAAA-Directorate of Economic Growth and Neighbourhood Services
RBC Legal Entity,04/01/2022,4631464,266726,BURLINGTON UNIFORMS LTD,Hexagon Operations,1814.08,Uniforms,Third Party Supplier,STANDARD,1200,KAAA-Directorate of Economic Growth and Neighbourhood Services
RBC Legal Entity,04/01/2022,4632296,266727,VITA PLAY LTD,Grounds Maintenance,3128,CPG Maintenance,SUB-CONTRACTOR,STANDARD,1306,KAAA-Directorate of Economic Growth and Neighbourhood Services
RBC Legal Entity,04/01/2022,4632297,266727,VITA PLAY LTD,Grounds Maintenance,1365,CPG Maintenance,SUB-CONTRACTOR,STANDARD,1306,KAAA-Directorate of Economic Growth and Neighbourhood Services
RBC Legal Entity,04/01/2022,4632297,266727,VITA PLAY LTD,Grounds Maintenance,1575,CPG Maintenance,SUB-CONTRACTOR,STANDARD,1306,KAAA-Directorate of Economic Growth and Neighbourhood Services
RBC Legal Entity,04/01/2022,4637715,266729,MY HOMECARE (READING AND BRACKNELL) LTD,PS Acquired Community Services,2698,Purchased Care,Third Party Supplier,STANDARD,5771,JAAA-Directorate of Social Care and Health Services
RBC Legal Entity,04/01/2022,4637717,266729,MY HOMECARE (READING AND BRACKNELL) LTD,PS Acquired Community Services,2926,Purchased Care,Third Party Supplier,STANDARD,5771,JAAA-Directorate of Social Care and Health Services
RBC Legal Entity,04/01/2022,4637718,266729,MY HOMECARE (READING AND BRACKNELL) LTD,PS Acquired Community Services,950,Purchased Care,Third Party Supplier,STANDARD,5771,JAAA-Directorate of Social Care and Health Services
RBC Legal Entity,04/01/2022,4632604,266730,DBM HIRE LIMITED,Grounds Maintenance,945,Forestry,SUPPLIER,STANDARD,1306,KAAA-Directorate of Economic Growth and Neighbourhood Services
RBC Legal Entity,04/01/2022,4626182,266731,EQUITA LIMITED,Council Tax & Business Rates,69.54,Professional Fees,SUPPLIER,STANDARD,2250,LAAA-Directorate of Resources
RBC Legal Entity,04/01/2022,4635508,266732,EW BEARD LIMITED,HRA portfolio expansion,246717.79,External Fees  Misc.,SUB-CONTRACTOR,STANDARD,8518,ZZZC-Capital
RBC Legal Entity,04/01/2022,4632950,266733,MARK HATTER ASSOCIATES LTD,JLT Disbursements,2680,Misc. Legal Expenses,Third Party Supplier,STANDARD,2407,LAAA-Directorate of Resources
RBC Legal Entity,04/01/2022,4628266,266734,DECISION TREE SOCIAL CARE,Safeguarding Adults,766.2,Professional Fees,SUPPLIER,STANDARD,5158,JAAA-Directorate of Social Care and Health Services
RBC Legal Entity,04/01/2022,4631639,266735,JBROUGHTON CONSULTING LTD,JLT Disbursements,599,Misc. Legal Expenses,SUPPLIER,STANDARD,2407,LAAA-Directorate of Resources
RBC Legal Entity,04/01/2022,4636734,266736,BRACKNELL FOREST COUNCIL,Sheltered Housing,10392.27,Equipment Hire,GOVERNMENT,STANDARD,5940,HAAA-Housing Revenue Account
RBC Legal Entity,04/01/2022,4625935,266737,BIDVEST NOONAN GROUP (UK) LTD,Archives General,883.81,Office Cleaning,SUPPLIER,STANDARD,1256,KAAA-Directorate of Economic Growth and Neighbourhood Services
RBC Legal Entity,04/01/2022,4620728,266741,WEST BERKSHIRE COUNCIL,Stronger Together Partnership,946.27,TPP  Contract,GOVERNMENT,STANDARD,3341,KAAA-Directorate of Economic Growth and Neighbourhood Services
RBC Legal Entity,04/01/2022,4628222,266742,MARTIN CONWAY,Bed and Breakfast,630,Rents,SUPPLIER,STANDARD,5871,KAAA-Directorate of Economic Growth and Neighbourhood Services
RBC Legal Entity,04/01/2022,4632152,266748,ACTIVE ASSISTANCE,PS Acquired Community Services,634.34,Purchased Care,SUPPLIER,STANDARD,5771,JAAA-Directorate of Social Care and Health Services
RBC Legal Entity,04/01/2022,4632688,266748,ACTIVE ASSISTANCE,PS Acquired Community Services,952.83,Purchased Care,SUPPLIER,STANDARD,5771,JAAA-Directorate of Social Care and Health Services
RBC Legal Entity,04/01/2022,4631465,266749,BIDVEST FOODSERVICE (BIDFOOD),Hexagon Catering,256.41,Purchases - Stock Provisions,SUPPLIER,STANDARD,1241,KAAA-Directorate of Economic Growth and Neighbourhood Services
RBC Legal Entity,04/01/2022,4631465,266749,BIDVEST FOODSERVICE (BIDFOOD),Hexagon Catering,1747.2,Purchases - Stock Provisions,SUPPLIER,STANDARD,1241,KAAA-Directorate of Economic Growth and Neighbourhood Services
RBC Legal Entity,04/01/2022,4631466,266749,BIDVEST FOODSERVICE (BIDFOOD),Hexagon Catering,178.04,Purchases - Stock Provisions,SUPPLIER,STANDARD,1241,KAAA-Directorate of Economic Growth and Neighbourhood Services
RBC Legal Entity,04/01/2022,4631466,266749,BIDVEST FOODSERVICE (BIDFOOD),Hexagon Catering,387.56,Purchases - Stock Provisions,SUPPLIER,STANDARD,1241,KAAA-Directorate of Economic Growth and Neighbourhood Services
RBC Legal Entity,04/01/2022,4632316,266749,BIDVEST FOODSERVICE (BIDFOOD),Hexagon Catering,15.15,Purchases - Stock Provisions,SUPPLIER,STANDARD,1241,KAAA-Directorate of Economic Growth and Neighbourhood Services
RBC Legal Entity,04/01/2022,4632316,266749,BIDVEST FOODSERVICE (BIDFOOD),Hexagon Catering,1221.8,Purchases - Stock Provisions,SUPPLIER,STANDARD,1241,KAAA-Directorate of Economic Growth and Neighbourhood Services
RBC Legal Entity,04/01/2022,4632317,266749,BIDVEST FOODSERVICE (BIDFOOD),Hexagon Catering,261.57,Purchases - Stock Provisions,SUPPLIER,STANDARD,1241,KAAA-Directorate of Economic Growth and Neighbourhood Services
RBC Legal Entity,04/01/2022,4632317,266749,BIDVEST FOODSERVICE (BIDFOOD),Hexagon Catering,985.49,Purchases - Stock Provisions,SUPPLIER,STANDARD,1241,KAAA-Directorate of Economic Growth and Neighbourhood Services
RBC Legal Entity,04/01/2022,4627604,266750,CAPITA BUSINESS SERVICES LTD,Revenues & Benefits Systems,1282.5,TPP  Contract,Third Party Supplier,STANDARD,2266,LAAA-Directorate of Resources
RBC Legal Entity,04/01/2022,4632244,266750,CAPITA BUSINESS SERVICES LTD,Housing Benefits,13882.25,TPP  Contract,Third Party Supplier,STANDARD,2265,LAAA-Directorate of Resources
RBC Legal Entity,04/01/2022,4628427,266751,BTU (INSTALLATION & MAINTENANCE) LTD,Corporate Maintenance Services,1320.43,TPP  Contract,SUB-CONTRACTOR,STANDARD,4080,KAAA-Directorate of Economic Growth and Neighbourhood Services
RBC Legal Entity,04/01/2022,4628427,266751,BTU (INSTALLATION & MAINTENANCE) LTD,Corporate Maintenance Services,2468.34,Leasing Costs,SUB-CONTRACTOR,STANDARD,4080,KAAA-Directorate of Economic Growth and Neighbourhood Services
RBC Legal Entity,04/01/2022,4628427,266751,BTU (INSTALLATION & MAINTENANCE) LTD,Corporate Maintenance Services,6517.1,Precepts,SUB-CONTRACTOR,STANDARD,4080,KAAA-Directorate of Economic Growth and Neighbourhood Services
RBC Legal Entity,04/01/2022,4628427,266751,BTU (INSTALLATION & MAINTENANCE) LTD,Repairs,9083.08,Essential Cyclical Insp. + Mai,SUB-CONTRACTOR,STANDARD,5970,HAAA-Housing Revenue Account
RBC Legal Entity,04/01/2022,4628427,266751,BTU (INSTALLATION & MAINTENANCE) LTD,Corporate Maintenance Services,11229.57,Leasing Costs,SUB-CONTRACTOR,STANDARD,4080,KAAA-Directorate of Economic Growth and Neighbourhood Services
RBC Legal Entity,04/01/2022,4631533,266752,PPL PRS LTD,Hexagon Operations,1139.07,Royalties,SUPPLIER,STANDARD,1200,KAAA-Directorate of Economic Growth and Neighbourhood Services
RBC Legal Entity,04/01/2022,4631525,266753,NEC SOFTWARE SOLUTIONS UK LTD,Admin Account,3300,Software Support,Third Party Supplier,STANDARD,5960,HAAA-Housing Revenue Account
RBC Legal Entity,04/01/2022,4628182,266754,MASONS TREES AND WOODLAND MANAGEMENT LTD,Grounds Maintenance,1850,TPP to Others,SUPPLIER,STANDARD,1306,KAAA-Directorate of Economic Growth and Neighbourhood Services
RBC Legal Entity,04/01/2022,4627735,266755,SWARCO UK LIMITED,Parking & Enforcement,750,Comp.Software  Purchases,SUB-CONTRACTOR,STANDARD,4725,KAAA-Directorate of Economic Growth and Neighbourhood Services
RBC Legal Entity,04/01/2022,4627736,266755,SWARCO UK LIMITED,Parking & Enforcement,750,Comp.Software  Purchases,SUB-CONTRACTOR,STANDARD,4725,KAAA-Directorate of Economic Growth and Neighbourhood Services
RBC Legal Entity,04/01/2022,4625908,266756,ANGLIA SIGN CASTING LIMITED,Crematorium,13.5,Memorials & Commemorative Plaq,SUPPLIER,STANDARD,4606,LAAA-Directorate of Resources
RBC Legal Entity,04/01/2022,4625908,266756,ANGLIA SIGN CASTING LIMITED,Crematorium,114.99,Memorials & Commemorative Plaq,SUPPLIER,STANDARD,4606,LAAA-Directorate of Resources
RBC Legal Entity,04/01/2022,4625908,266756,ANGLIA SIGN CASTING LIMITED,Crematorium,359.94,Memorials & Commemorative Plaq,SUPPLIER,STANDARD,4606,LAAA-Directorate of Resources
RBC Legal Entity,04/01/2022,4626012,266758,MIDLAND SOFTWARE LIMITED,HR & Payroll,420,Software Licences,SUPPLIER,STANDARD,2600,LAAA-Directorate of Resources
RBC Legal Entity,04/01/2022,4632985,266759,TRAVIS PERKINS TRADING COMPANY LTD,DLO Stock,28649.54,Stock Purchase,Third Party Supplier,STANDARD,4002,KAAA-Directorate of Economic Growth and Neighbourhood Services
RBC Legal Entity,04/01/2022,4632992,266759,TRAVIS PERKINS TRADING COMPANY LTD,DLO Stock,93.98,Stock Purchase,Third Party Supplier,STANDARD,4002,KAAA-Directorate of Economic Growth and Neighbourhood Services
RBC Legal Entity,04/01/2022,4632992,266759,TRAVIS PERKINS TRADING COMPANY LTD,DLO Stock,100116.57,Stock Purchase,Third Party Supplier,STANDARD,4002,KAAA-Directorate of Economic Growth and Neighbourhood Services
RBC Legal Entity,04/01/2022,4632993,266759,TRAVIS PERKINS TRADING COMPANY LTD,DLO Stock,87.98,Stock Purchase,Third Party Supplier,STANDARD,4002,KAAA-Directorate of Economic Growth and Neighbourhood Services
RBC Legal Entity,04/01/2022,4632993,266759,TRAVIS PERKINS TRADING COMPANY LTD,DLO Stock,385.2,Stock Purchase,Third Party Supplier,STANDARD,4002,KAAA-Directorate of Economic Growth and Neighbourhood Services
RBC Legal Entity,04/01/2022,4632994,266759,TRAVIS PERKINS TRADING COMPANY LTD,DLO Stock,3490,Stock Purchase,Third Party Supplier,STANDARD,4002,KAAA-Directorate of Economic Growth and Neighbourhood Services
RBC Legal Entity,04/01/2022,4632994,266759,TRAVIS PERKINS TRADING COMPANY LTD,DLO Stock,7677.94,Stock Purchase,Third Party Supplier,STANDARD,4002,KAAA-Directorate of Economic Growth and Neighbourhood Services
RBC Legal Entity,04/01/2022,4632994,266759,TRAVIS PERKINS TRADING COMPANY LTD,DLO Stock,8797.02,Stock Purchase,Third Party Supplier,STANDARD,4002,KAAA-Directorate of Economic Growth and Neighbourhood Services
RBC Legal Entity,04/01/2022,4637907,266760,COLEY PARK COMMUNITY ASSOCIATION,Voluntary Sector & Community Grants,2500,GrantsVolunt.Organ.,Third Party Supplier,STANDARD,2041,LAAA-Directorate of Resources
RBC Legal Entity,04/01/2022,4631399,266762,AGRICULTURAL & ESTATE SERVICES,Grounds Maintenance,1898,CPG Maintenance,SUB-CONTRACTOR,STANDARD,1306,KAAA-Directorate of Economic Growth and Neighbourhood Services
RBC Legal Entity,04/01/2022,4631475,266762,AGRICULTURAL & ESTATE SERVICES,Grounds Maintenance,1685,CPG Maintenance,SUB-CONTRACTOR,STANDARD,1306,KAAA-Directorate of Economic Growth and Neighbourhood Services
RBC Legal Entity,04/01/2022,4631357,266763,J PRATLEY AND SONS LTD,Fleet Management,1780,Unfair Wear + Tear Costs,SUB-CONTRACTOR,STANDARD,4552,KAAA-Directorate of Economic Growth and Neighbourhood Services
RBC Legal Entity,04/01/2022,4632542,266765,GLASRITE LTD,DLO Voids Trades,1805,Subcontractors Labour,SUB-CONTRACTOR,STANDARD,4020,KAAA-Directorate of Economic Growth and Neighbourhood Services
RBC Legal Entity,04/01/2022,4632544,266765,GLASRITE LTD,DLO Day to Day Trades,2655,Subcontractors Labour,SUB-CONTRACTOR,STANDARD,4010,KAAA-Directorate of Economic Growth and Neighbourhood Services
RBC Legal Entity,04/01/2022,4638427,266765,GLASRITE LTD,Corporate Maintenance Services,895,Leasing Costs,SUB-CONTRACTOR,STANDARD,4080,KAAA-Directorate of Economic Growth and Neighbourhood Services
RBC Legal Entity,04/01/2022,4628219,266766,ST JOHN AMBULANCE,Corporate Organisational Development,600,Training & Development Costs,SUPPLIER,STANDARD,3435,LAAA-Directorate of Resources
RBC Legal Entity,04/01/2022,4628295,266766,ST JOHN AMBULANCE,Corporate Organisational Development,496,Training & Development Costs,SUPPLIER,STANDARD,3435,LAAA-Directorate of Resources
RBC Legal Entity,04/01/2022,4623839,266768,THE UNIVERSITY OF READING,UTMC / ITS,76666.67,Contractors,Third Party Supplier,STANDARD,8850,ZZZC-Capital
RBC Legal Entity,04/01/2022,4632171,266769,BERKSHIRE OFFICE FURNITURE LTD,Hexagon Operations,5080,EquiptMaintenanceContract,Third Party Supplier,STANDARD,1200,KAAA-Directorate of Economic Growth and Neighbourhood Services
RBC Legal Entity,04/01/2022,4636586,266773,LONDON CARE,PS Acquired Community Services,1093.68,Purchased Care,Third Party Supplier,STANDARD,5771,JAAA-Directorate of Social Care and Health Services
RBC Legal Entity,04/01/2022,4636592,266773,LONDON CARE,PS Acquired Community Services,1336.72,Purchased Care,Third Party Supplier,STANDARD,5771,JAAA-Directorate of Social Care and Health Services
RBC Legal Entity,04/01/2022,4636593,266773,LONDON CARE,PS Acquired Community Services,850.64,Purchased Care,Third Party Supplier,STANDARD,5771,JAAA-Directorate of Social Care and Health Services
RBC Legal Entity,04/01/2022,4636595,266773,LONDON CARE,PS Acquired Community Services,1354.08,Purchased Care,Third Party Supplier,STANDARD,5771,JAAA-Directorate of Social Care and Health Services
RBC Legal Entity,04/01/2022,4636597,266773,LONDON CARE,PS Acquired Community Services,9296.28,Purchased Care,Third Party Supplier,STANDARD,5771,JAAA-Directorate of Social Care and Health Services
RBC Legal Entity,04/01/2022,4627719,266774,BUCKS FIRE SAFETY TRAINING,Corporate Organisational Development,592,Training & Development Costs,Third Party Supplier,STANDARD,3435,LAAA-Directorate of Resources
RBC Legal Entity,04/01/2022,4632658,266775,SUNLIGHT HOMECARE SERVICES LIMITED,LD Community Services,3085.84,Purchased Care,Third Party Supplier,STANDARD,5741,JAAA-Directorate of Social Care and Health Services
RBC Legal Entity,04/01/2022,4632633,266778,R SLATER ISW,JLT Disbursements,3000,Misc. Legal Expenses,SUPPLIER,STANDARD,2407,LAAA-Directorate of Resources
RBC Legal Entity,04/01/2022,4638449,266778,R SLATER ISW,JLT Disbursements,3000,Misc. Legal Expenses,SUPPLIER,STANDARD,2407,LAAA-Directorate of Resources
RBC Legal Entity,04/01/2022,4628440,266779,M3 HOUSING LIMITED,DLO Housing & Corporate Projects,2550,Training & Development Costs,SUPPLIER,STANDARD,4045,KAAA-Directorate of Economic Growth and Neighbourhood Services
RBC Legal Entity,04/01/2022,4625941,266780,THE HOUSING NETWORK,Housing GF General Charges,1080,Preventive+SupportiveServ,SUPPLIER,STANDARD,5810,KAAA-Directorate of Economic Growth and Neighbourhood Services
RBC Legal Entity,04/01/2022,4631951,266781,NEW BEGINNINGS NORTH EAST LTD,LD Community Services,4560.24,Purchased Care,Third Party Supplier,STANDARD,5741,JAAA-Directorate of Social Care and Health Services
RBC Legal Entity,04/01/2022,4626777,266782,BT FLEET PART OF AURELIUS AG,Fleet Management,818.06,Vehicle Maintenance,SUPPLIER,STANDARD,4552,KAAA-Directorate of Economic Growth and Neighbourhood Services
RBC Legal Entity,04/01/2022,4626777,266782,BT FLEET PART OF AURELIUS AG,Fleet Management,9510.47,Vehicle Maintenance,SUPPLIER,STANDARD,4552,KAAA-Directorate of Economic Growth and Neighbourhood Services
RBC Legal Entity,04/01/2022,4636695,266784,BOWAK LTD,Building Cleaning,541.48,Materials from Store,Third Party Supplier,STANDARD,4351,KAAA-Directorate of Economic Growth and Neighbourhood Services
RBC Legal Entity,04/01/2022,4638428,266785,TREVAL CLEANING SERVICES,South Street Catering,1827,Office Cleaning,SUPPLIER,STANDARD,1243,KAAA-Directorate of Economic Growth and Neighbourhood Services
RBC Legal Entity,04/01/2022,4636434,266787,PURLEY PARK TRUST LTD,LD Community Services,3323.28,Purchased Care,Third Party Supplier,STANDARD,5741,JAAA-Directorate of Social Care and Health Services
RBC Legal Entity,04/01/2022,4636436,266787,PURLEY PARK TRUST LTD,LD Community Services,3912.6,Purchased Care,Third Party Supplier,STANDARD,5741,JAAA-Directorate of Social Care and Health Services
RBC Legal Entity,04/01/2022,4636437,266787,PURLEY PARK TRUST LTD,PS Acquired Community Services,6859.2,Purchased Care,Third Party Supplier,STANDARD,5771,JAAA-Directorate of Social Care and Health Services
RBC Legal Entity,04/01/2022,4620671,266788,AMBLEGLOW,Traffic,820,Traffic Orders,Third Party Supplier,STANDARD,4703,KAAA-Directorate of Economic Growth and Neighbourhood Services
RBC Legal Entity,04/01/2022,4620674,266788,AMBLEGLOW,Footway Surfacing,688,Contractors,Third Party Supplier,STANDARD,8872,ZZZC-Capital
RBC Legal Entity,04/01/2022,4626219,266788,AMBLEGLOW,Traffic,951,Traffic Orders,Third Party Supplier,STANDARD,4703,KAAA-Directorate of Economic Growth and Neighbourhood Services
RBC Legal Entity,04/01/2022,4632236,266790,BRISTOW & SUTOR,Council Tax & Business Rates,268.12,Professional Fees,Third Party Supplier,STANDARD,2250,LAAA-Directorate of Resources
RBC Legal Entity,04/01/2022,4636340,266791,RADIS COMMUNITY CARE,PS Acquired Community Services,1064,Purchased Care,Third Party Supplier,STANDARD,5771,JAAA-Directorate of Social Care and Health Services
RBC Legal Entity,04/01/2022,4636343,266791,RADIS COMMUNITY CARE,PS Acquired Community Services,532,Purchased Care,Third Party Supplier,STANDARD,5771,JAAA-Directorate of Social Care and Health Services
RBC Legal Entity,04/01/2022,4636344,266791,RADIS COMMUNITY CARE,M&C Acquired Community Services,583.68,Purchased Care,Third Party Supplier,STANDARD,5751,JAAA-Directorate of Social Care and Health Services
RBC Legal Entity,04/01/2022,4636346,266791,RADIS COMMUNITY CARE,PS Acquired Community Services,2394,Purchased Care,Third Party Supplier,STANDARD,5771,JAAA-Directorate of Social Care and Health Services
RBC Legal Entity,04/01/2022,4636347,266791,RADIS COMMUNITY CARE,PS Acquired Community Services,532,Purchased Care,Third Party Supplier,STANDARD,5771,JAAA-Directorate of Social Care and Health Services
RBC Legal Entity,04/01/2022,4636348,266791,RADIS COMMUNITY CARE,PS Acquired Community Services,2316.48,Purchased Care,Third Party Supplier,STANDARD,5771,JAAA-Directorate of Social Care and Health Services
RBC Legal Entity,04/01/2022,4636349,266791,RADIS COMMUNITY CARE,PS Acquired Community Services,931,Purchased Care,Third Party Supplier,STANDARD,5771,JAAA-Directorate of Social Care and Health Services
RBC Legal Entity,04/01/2022,4636350,266791,RADIS COMMUNITY CARE,PS Acquired Community Services,665,Purchased Care,Third Party Supplier,STANDARD,5771,JAAA-Directorate of Social Care and Health Services
RBC Legal Entity,04/01/2022,4636351,266791,RADIS COMMUNITY CARE,PS Acquired Community Services,1064,Purchased Care,Third Party Supplier,STANDARD,5771,JAAA-Directorate of Social Care and Health Services
RBC Legal Entity,04/01/2022,4636354,266791,RADIS COMMUNITY CARE,PS Acquired Community Services,907.25,Purchased Care,Third Party Supplier,STANDARD,5771,JAAA-Directorate of Social Care and Health Services
RBC Legal Entity,04/01/2022,4636355,266791,RADIS COMMUNITY CARE,PS Acquired Community Services,1185.6,Purchased Care,Third Party Supplier,STANDARD,5771,JAAA-Directorate of Social Care and Health Services
RBC Legal Entity,04/01/2022,4636357,266791,RADIS COMMUNITY CARE,PS Acquired Community Services,1064,Purchased Care,Third Party Supplier,STANDARD,5771,JAAA-Directorate of Social Care and Health Services
RBC Legal Entity,04/01/2022,4636358,266791,RADIS COMMUNITY CARE,LD Community Services,1339.5,Purchased Care,Third Party Supplier,STANDARD,5741,JAAA-Directorate of Social Care and Health Services
RBC Legal Entity,04/01/2022,4636359,266791,RADIS COMMUNITY CARE,PS Acquired Community Services,1596,Purchased Care,Third Party Supplier,STANDARD,5771,JAAA-Directorate of Social Care and Health Services
RBC Legal Entity,04/01/2022,4636361,266791,RADIS COMMUNITY CARE,PS Acquired Community Services,2470,Purchased Care,Third Party Supplier,STANDARD,5771,JAAA-Directorate of Social Care and Health Services
RBC Legal Entity,04/01/2022,4636362,266791,RADIS COMMUNITY CARE,PS Acquired Community Services,665,Purchased Care,Third Party Supplier,STANDARD,5771,JAAA-Directorate of Social Care and Health Services
RBC Legal Entity,04/01/2022,4636364,266791,RADIS COMMUNITY CARE,Mental Health Community Services,921.5,Purchased Care,Third Party Supplier,STANDARD,5731,JAAA-Directorate of Social Care and Health Services
RBC Legal Entity,04/01/2022,4636365,266791,RADIS COMMUNITY CARE,PS Acquired Community Services,517.44,Purchased Care,Third Party Supplier,STANDARD,5771,JAAA-Directorate of Social Care and Health Services
RBC Legal Entity,04/01/2022,4636366,266791,RADIS COMMUNITY CARE,PS Acquired Community Services,1097.25,Purchased Care,Third Party Supplier,STANDARD,5771,JAAA-Directorate of Social Care and Health Services
RBC Legal Entity,04/01/2022,4636367,266791,RADIS COMMUNITY CARE,PS Acquired Community Services,532,Purchased Care,Third Party Supplier,STANDARD,5771,JAAA-Directorate of Social Care and Health Services
RBC Legal Entity,04/01/2022,4636368,266791,RADIS COMMUNITY CARE,PS Acquired Community Services,1059.25,Purchased Care,Third Party Supplier,STANDARD,5771,JAAA-Directorate of Social Care and Health Services
RBC Legal Entity,04/01/2022,4636369,266791,RADIS COMMUNITY CARE,PS Acquired Community Services,1197,Purchased Care,Third Party Supplier,STANDARD,5771,JAAA-Directorate of Social Care and Health Services
RBC Legal Entity,04/01/2022,4636372,266791,RADIS COMMUNITY CARE,PS Lifelong Community Services,583.68,Purchased Care,Third Party Supplier,STANDARD,5781,JAAA-Directorate of Social Care and Health Services
RBC Legal Entity,04/01/2022,4637905,266792,BRITISH TELECOMMUNICATIONS PLC,Traffic,379.71,TPP to Others,SUB-CONTRACTOR,STANDARD,4703,KAAA-Directorate of Economic Growth and Neighbourhood Services
RBC Legal Entity,04/01/2022,4637905,266792,BRITISH TELECOMMUNICATIONS PLC,Traffic,7656.15,TPP to Others,SUB-CONTRACTOR,STANDARD,4703,KAAA-Directorate of Economic Growth and Neighbourhood Services
RBC Legal Entity,04/01/2022,4635500,266795,READING TRANSPORT LTD,Test and Trace,10000,Publicity & Media Work,Third Party Supplier,STANDARD,2068,JAAA-Directorate of Social Care and Health Services
RBC Legal Entity,04/01/2022,4618924,266796,TUSKERDIRECT LTD,Corporate Management Team,37.83,General & Admin & Clerical,Third Party Supplier,STANDARD,2001,EAAA-Chief Executive
RBC Legal Entity,04/01/2022,4618924,266796,TUSKERDIRECT LTD,Corporate Management Team,260.09,General & Admin & Clerical,Third Party Supplier,STANDARD,2001,EAAA-Chief Executive
RBC Legal Entity,04/01/2022,4618924,266796,TUSKERDIRECT LTD,Corporate Management Team,690.26,General & Admin & Clerical,Third Party Supplier,STANDARD,2001,EAAA-Chief Executive
RBC Legal Entity,04/01/2022,4618933,266796,TUSKERDIRECT LTD,HR & Payroll,48.96,General & Admin & Clerical,Third Party Supplier,STANDARD,2600,LAAA-Directorate of Resources
RBC Legal Entity,04/01/2022,4618933,266796,TUSKERDIRECT LTD,HR & Payroll,203.87,General & Admin & Clerical,Third Party Supplier,STANDARD,2600,LAAA-Directorate of Resources
RBC Legal Entity,04/01/2022,4618933,266796,TUSKERDIRECT LTD,HR & Payroll,608.21,General & Admin & Clerical,Third Party Supplier,STANDARD,2600,LAAA-Directorate of Resources
RBC Legal Entity,04/01/2022,4618966,266796,TUSKERDIRECT LTD,Exchequer Services,37.85,General & Admin & Clerical,Third Party Supplier,STANDARD,2210,LAAA-Directorate of Resources
RBC Legal Entity,04/01/2022,4618966,266796,TUSKERDIRECT LTD,Exchequer Services,117.92,General & Admin & Clerical,Third Party Supplier,STANDARD,2210,LAAA-Directorate of Resources
RBC Legal Entity,04/01/2022,4618966,266796,TUSKERDIRECT LTD,Exchequer Services,313.33,General & Admin & Clerical,Third Party Supplier,STANDARD,2210,LAAA-Directorate of Resources
RBC Legal Entity,04/01/2022,4632256,266796,TUSKERDIRECT LTD,DLO Housing & Corporate Projects,34.96,General & Admin & Clerical,Third Party Supplier,STANDARD,4045,KAAA-Directorate of Economic Growth and Neighbourhood Services
RBC Legal Entity,04/01/2022,4632256,266796,TUSKERDIRECT LTD,DLO Housing & Corporate Projects,141.79,General & Admin & Clerical,Third Party Supplier,STANDARD,4045,KAAA-Directorate of Economic Growth and Neighbourhood Services
RBC Legal Entity,04/01/2022,4632256,266796,TUSKERDIRECT LTD,DLO Housing & Corporate Projects,403.37,General & Admin & Clerical,Third Party Supplier,STANDARD,4045,KAAA-Directorate of Economic Growth and Neighbourhood Services
RBC Legal Entity,04/01/2022,4632262,266796,TUSKERDIRECT LTD,DEGNS Management,44.22,General & Admin & Clerical,Third Party Supplier,STANDARD,1500,KAAA-Directorate of Economic Growth and Neighbourhood Services
RBC Legal Entity,04/01/2022,4632262,266796,TUSKERDIRECT LTD,DEGNS Management,819.31,General & Admin & Clerical,Third Party Supplier,STANDARD,1500,KAAA-Directorate of Economic Growth and Neighbourhood Services
RBC Legal Entity,04/01/2022,4632263,266796,TUSKERDIRECT LTD,HR & Payroll,85.38,General & Admin & Clerical,Third Party Supplier,STANDARD,2600,LAAA-Directorate of Resources
RBC Legal Entity,04/01/2022,4632263,266796,TUSKERDIRECT LTD,HR & Payroll,415.5,General & Admin & Clerical,Third Party Supplier,STANDARD,2600,LAAA-Directorate of Resources
RBC Legal Entity,04/01/2022,4620164,266798,UNITED LIVING SOUTH LTD,MRA Account,43574.26,Mains Services & Plumbing,SUB-CONTRACTOR,STANDARD,5975,HAAA-Housing Revenue Account
RBC Legal Entity,04/01/2022,4626175,266799,BIG BLUE DOOR LTD,IT Management,1245,Contract  Other,SUPPLIER,STANDARD,2300,EAAA-Chief Executive
RBC Legal Entity,04/01/2022,4628064,266800,MAXX MEDIA LTD,Test and Trace,50000,Publicity & Media Work,SUPPLIER,STANDARD,2068,JAAA-Directorate of Social Care and Health Services
RBC Legal Entity,04/01/2022,4628293,266801,INITIAL,Corporate FM - Office Buildings,2543.23,Waste Disposal,Third Party Supplier,STANDARD,3738,KAAA-Directorate of Economic Growth and Neighbourhood Services
RBC Legal Entity,04/01/2022,4632007,266802,CSN CARE GROUP LTD T/A CAREWATCH,PS Acquired Community Services,1681.5,Purchased Care,Third Party Supplier,STANDARD,5771,JAAA-Directorate of Social Care and Health Services
RBC Legal Entity,04/01/2022,4632011,266802,CSN CARE GROUP LTD T/A CAREWATCH,Social Support,712.5,Purchased Care,Third Party Supplier,STANDARD,5790,JAAA-Directorate of Social Care and Health Services
RBC Legal Entity,04/01/2022,4632013,266802,CSN CARE GROUP LTD T/A CAREWATCH,PS Acquired Community Services,2565,Purchased Care,Third Party Supplier,STANDARD,5771,JAAA-Directorate of Social Care and Health Services
RBC Legal Entity,04/01/2022,4632014,266802,CSN CARE GROUP LTD T/A CAREWATCH,PS Acquired Community Services,2565,Purchased Care,Third Party Supplier,STANDARD,5771,JAAA-Directorate of Social Care and Health Services
RBC Legal Entity,04/01/2022,4632016,266802,CSN CARE GROUP LTD T/A CAREWATCH,PS Acquired Community Services,2622,Purchased Care,Third Party Supplier,STANDARD,5771,JAAA-Directorate of Social Care and Health Services
RBC Legal Entity,04/01/2022,4632017,266802,CSN CARE GROUP LTD T/A CAREWATCH,PS Acquired Community Services,574.75,Purchased Care,Third Party Supplier,STANDARD,5771,JAAA-Directorate of Social Care and Health Services
RBC Legal Entity,04/01/2022,4632722,266802,CSN CARE GROUP LTD T/A CAREWATCH,PS Acquired Community Services,513,Purchased Care,Third Party Supplier,STANDARD,5771,JAAA-Directorate of Social Care and Health Services
RBC Legal Entity,04/01/2022,4632731,266802,CSN CARE GROUP LTD T/A CAREWATCH,PS Acquired Community Services,1197,Purchased Care,Third Party Supplier,STANDARD,5771,JAAA-Directorate of Social Care and Health Services
RBC Legal Entity,04/01/2022,4632732,266802,CSN CARE GROUP LTD T/A CAREWATCH,Mental Health Community Services,1844.6,Purchased Care,Third Party Supplier,STANDARD,5731,JAAA-Directorate of Social Care and Health Services
RBC Legal Entity,04/01/2022,4632733,266802,CSN CARE GROUP LTD T/A CAREWATCH,PS Acquired Community Services,2527,Purchased Care,Third Party Supplier,STANDARD,5771,JAAA-Directorate of Social Care and Health Services
RBC Legal Entity,04/01/2022,4632734,266802,CSN CARE GROUP LTD T/A CAREWATCH,PS Acquired Community Services,660.25,Purchased Care,Third Party Supplier,STANDARD,5771,JAAA-Directorate of Social Care and Health Services
RBC Legal Entity,04/01/2022,4632735,266802,CSN CARE GROUP LTD T/A CAREWATCH,M&C Acquired Community Services,532,Purchased Care,Third Party Supplier,STANDARD,5751,JAAA-Directorate of Social Care and Health Services
RBC Legal Entity,04/01/2022,4632736,266802,CSN CARE GROUP LTD T/A CAREWATCH,PS Lifelong Community Services,981.48,Purchased Care,Third Party Supplier,STANDARD,5781,JAAA-Directorate of Social Care and Health Services
RBC Legal Entity,04/01/2022,4632737,266802,CSN CARE GROUP LTD T/A CAREWATCH,PS Acquired Community Services,798,Purchased Care,Third Party Supplier,STANDARD,5771,JAAA-Directorate of Social Care and Health Services
RBC Legal Entity,04/01/2022,4632738,266802,CSN CARE GROUP LTD T/A CAREWATCH,PS Acquired Community Services,1216,Purchased Care,Third Party Supplier,STANDARD,5771,JAAA-Directorate of Social Care and Health Services
RBC Legal Entity,04/01/2022,4632739,266802,CSN CARE GROUP LTD T/A CAREWATCH,PS Acquired Community Services,2926,Purchased Care,Third Party Supplier,STANDARD,5771,JAAA-Directorate of Social Care and Health Services
RBC Legal Entity,04/01/2022,4632741,266802,CSN CARE GROUP LTD T/A CAREWATCH,LD Community Services,579.5,Purchased Care,Third Party Supplier,STANDARD,5741,JAAA-Directorate of Social Care and Health Services
RBC Legal Entity,04/01/2022,4632742,266802,CSN CARE GROUP LTD T/A CAREWATCH,PS Acquired Community Services,1182.75,Purchased Care,Third Party Supplier,STANDARD,5771,JAAA-Directorate of Social Care and Health Services
RBC Legal Entity,04/01/2022,4632749,266802,CSN CARE GROUP LTD T/A CAREWATCH,PS Acquired Community Services,798,Purchased Care,Third Party Supplier,STANDARD,5771,JAAA-Directorate of Social Care and Health Services
RBC Legal Entity,04/01/2022,4632750,266802,CSN CARE GROUP LTD T/A CAREWATCH,PS Acquired Community Services,1026,Purchased Care,Third Party Supplier,STANDARD,5771,JAAA-Directorate of Social Care and Health Services
RBC Legal Entity,04/01/2022,4632752,266802,CSN CARE GROUP LTD T/A CAREWATCH,PS Acquired Community Services,1330,Purchased Care,Third Party Supplier,STANDARD,5771,JAAA-Directorate of Social Care and Health Services
RBC Legal Entity,04/01/2022,4632753,266802,CSN CARE GROUP LTD T/A CAREWATCH,PS Acquired Community Services,1026,Purchased Care,Third Party Supplier,STANDARD,5771,JAAA-Directorate of Social Care and Health Services
RBC Legal Entity,04/01/2022,4631346,266806,D2D DISTRIBUTION LTD,Local Sustainable Transport Fund (LSTF),950,Design Fees,SUPPLIER,STANDARD,8801,ZZZC-Capital
RBC Legal Entity,04/01/2022,4626117,266808,STANTEC UK LIMITED,UTMC / ITS,52809.07,Contractors,Third Party Supplier,STANDARD,8850,ZZZC-Capital
RBC Legal Entity,04/01/2022,4636738,266810,ROWVALE HOTELS LTD T/A BOW GUEST HOUSE,Bed and Breakfast,525,Rents,Third Party Supplier,STANDARD,5871,KAAA-Directorate of Economic Growth and Neighbourhood Services
RBC Legal Entity,04/01/2022,4637567,266810,ROWVALE HOTELS LTD T/A BOW GUEST HOUSE,Single Homelessness Grants,553,Preventive+SupportiveServ,Third Party Supplier,STANDARD,5860,KAAA-Directorate of Economic Growth and Neighbourhood Services
RBC Legal Entity,04/01/2022,4637589,266810,ROWVALE HOTELS LTD T/A BOW GUEST HOUSE,Housing GF General Charges,623,Preventive+SupportiveServ,Third Party Supplier,STANDARD,5810,KAAA-Directorate of Economic Growth and Neighbourhood Services
RBC Legal Entity,04/01/2022,4637590,266810,ROWVALE HOTELS LTD T/A BOW GUEST HOUSE,Single Homelessness Grants,595,Preventive+SupportiveServ,Third Party Supplier,STANDARD,5860,KAAA-Directorate of Economic Growth and Neighbourhood Services
RBC Legal Entity,04/01/2022,4637592,266810,ROWVALE HOTELS LTD T/A BOW GUEST HOUSE,Single Homelessness Grants,525,Preventive+SupportiveServ,Third Party Supplier,STANDARD,5860,KAAA-Directorate of Economic Growth and Neighbourhood Services
RBC Legal Entity,04/01/2022,4637593,266810,ROWVALE HOTELS LTD T/A BOW GUEST HOUSE,Single Homelessness Grants,525,Preventive+SupportiveServ,Third Party Supplier,STANDARD,5860,KAAA-Directorate of Economic Growth and Neighbourhood Services
RBC Legal Entity,04/01/2022,4638479,266812,INDIAN COMMUNITY ASSOCIATION,Voluntary Sector & Community Grants,1750,GrantsVolunt.Organ.,SUPPLIER,STANDARD,2041,LAAA-Directorate of Resources
RBC Legal Entity,04/01/2022,4632574,266819,GOWER CONSULTANTS LTD,Crematorium,5784.15,Maint. of Computer Equipt,Third Party Supplier,STANDARD,4606,LAAA-Directorate of Resources
RBC Legal Entity,04/01/2022,4632705,266820,THE WAYS & MEANS TRUST LTD,LD Community Services,526.56,Purchased Care,Third Party Supplier,STANDARD,5741,JAAA-Directorate of Social Care and Health Services
RBC Legal Entity,04/01/2022,4632707,266820,THE WAYS & MEANS TRUST LTD,LD Community Services,702.08,Purchased Care,Third Party Supplier,STANDARD,5741,JAAA-Directorate of Social Care and Health Services
RBC Legal Entity,04/01/2022,4632709,266820,THE WAYS & MEANS TRUST LTD,LD Community Services,526.56,Purchased Care,Third Party Supplier,STANDARD,5741,JAAA-Directorate of Social Care and Health Services
RBC Legal Entity,04/01/2022,4632710,266820,THE WAYS & MEANS TRUST LTD,LD Community Services,702.08,Purchased Care,Third Party Supplier,STANDARD,5741,JAAA-Directorate of Social Care and Health Services
RBC Legal Entity,04/01/2022,4632712,266820,THE WAYS & MEANS TRUST LTD,LD Community Services,526.56,Purchased Care,Third Party Supplier,STANDARD,5741,JAAA-Directorate of Social Care and Health Services
RBC Legal Entity,04/01/2022,4632713,266820,THE WAYS & MEANS TRUST LTD,LD Community Services,877.6,Purchased Care,Third Party Supplier,STANDARD,5741,JAAA-Directorate of Social Care and Health Services
RBC Legal Entity,04/01/2022,4632715,266820,THE WAYS & MEANS TRUST LTD,LD Community Services,526.56,Purchased Care,Third Party Supplier,STANDARD,5741,JAAA-Directorate of Social Care and Health Services
RBC Legal Entity,04/01/2022,4547665,266821,ENVIRONMENT AGENCY,Corporate Miscellaneous,131179.86,ThirdPP to Other LAsGnrl,SUPPLIER,STANDARD,2855,MAAA-Corporate Codes
RBC Legal Entity,04/01/2022,4631617,266822,WESSEX PETROLEUM T/A WP GROUP,Corporate FM - Office Buildings,36401.2,Fuel + Oil,Third Party Supplier,STANDARD,3738,KAAA-Directorate of Economic Growth and Neighbourhood Services
RBC Legal Entity,04/01/2022,4626123,266823,CLAIRGLOW HEATING LTD,MRA Account,47545.08,Boilers + Heating Systems,SUB-CONTRACTOR,STANDARD,5975,HAAA-Housing Revenue Account
RBC Legal Entity,04/01/2022,4637685,266824,REACT SUPPORT SERVICES LTD,Mental Health Community Services,3619,Purchased Care,Third Party Supplier,STANDARD,5731,JAAA-Directorate of Social Care and Health Services
RBC Legal Entity,04/01/2022,4636607,266830,SALIS CARE LTD,LD Community Services,4952.07,Purchased Care,SUPPLIER,STANDARD,5741,JAAA-Directorate of Social Care and Health Services
RBC Legal Entity,04/01/2022,4620739,266831,AGILISYS LIMITED,IT Management,119100,TPP  Contract,Third Party Supplier,STANDARD,2300,EAAA-Chief Executive
RBC Legal Entity,04/01/2022,4628443,266833,MISS SARAH FINCHAM,JLT Disbursements,650,Misc. Legal Expenses,INDIVIDUAL,STANDARD,2407,LAAA-Directorate of Resources
RBC Legal Entity,04/01/2022,4627718,266834,TRASH UK LIMITED,Fleet Management,3600,Vehicle Spot Hire,Third Party Supplier,STANDARD,4552,KAAA-Directorate of Economic Growth and Neighbourhood Services
RBC Legal Entity,04/01/2022,4626113,266839,SIMONE SURVEYS LTD,Local Safety Schemes,1320,Contractors,SUB-CONTRACTOR,STANDARD,8852,ZZZC-Capital
RBC Legal Entity,04/01/2022,4636786,266839,SIMONE SURVEYS LTD,Road Resurfacing,3000,Contractors,SUB-CONTRACTOR,STANDARD,8870,ZZZC-Capital
RBC Legal Entity,04/01/2022,4636786,266839,SIMONE SURVEYS LTD,Road Resurfacing,4530,Contractors,SUB-CONTRACTOR,STANDARD,8870,ZZZC-Capital
RBC Legal Entity,04/01/2022,4632754,266841,JIGSAW CREATIVE CARE LIMITED,LD Community Services,19034.4,Purchased Care,Third Party Supplier,STANDARD,5741,JAAA-Directorate of Social Care and Health Services
RBC Legal Entity,04/01/2022,4632998,266842,EVERYCARE READING,Charles Clore Court,1893.48,Agency Staff,SUPPLIER,STANDARD,5157,JAAA-Directorate of Social Care and Health Services
RBC Legal Entity,04/01/2022,4620167,266843,MR STEPHEN CRISPIN,JLT Disbursements,1125,Misc. Legal Expenses,SUPPLIER,STANDARD,2407,LAAA-Directorate of Resources
RBC Legal Entity,04/01/2022,4620150,266844,CREATIVE DESIGN & STRUCTURE LTD,Repairs,480,Roofs + Structural,SUPPLIER,STANDARD,5970,HAAA-Housing Revenue Account
RBC Legal Entity,04/01/2022,4632682,266846,LIMMS CARE SERVICES,PS Acquired Community Services,1020,Purchased Care,Third Party Supplier,STANDARD,5771,JAAA-Directorate of Social Care and Health Services
RBC Legal Entity,04/01/2022,4626326,266847,OLIVIA BLISS,JLT Disbursements,1350,Misc. Legal Expenses,INDIVIDUAL,STANDARD,2407,LAAA-Directorate of Resources
RBC Legal Entity,04/01/2022,4633007,266848,YBC CLEANING SERVICES LTD,Building Cleaning,27020.4,TPP to Others,Third Party Supplier,STANDARD,4351,KAAA-Directorate of Economic Growth and Neighbourhood Services
RBC Legal Entity,04/01/2022,4628429,266849,MASS MEDIA OUTDOOR LTD,Cultural Services Marketing,2000,Publicity & Media Work,Third Party Supplier,STANDARD,1235,KAAA-Directorate of Economic Growth and Neighbourhood Services
RBC Legal Entity,04/01/2022,4631400,266849,MASS MEDIA OUTDOOR LTD,Test and Trace,27500,Publicity & Media Work,Third Party Supplier,STANDARD,2068,JAAA-Directorate of Social Care and Health Services
RBC Legal Entity,04/01/2022,4631370,266850,QUALITY CARE & RECRUITMENT SOLUTIONS LTD,Safeguarding Adults,2812.42,Professional Fees,Third Party Supplier,STANDARD,5158,JAAA-Directorate of Social Care and Health Services
RBC Legal Entity,04/01/2022,4631373,266850,QUALITY CARE & RECRUITMENT SOLUTIONS LTD,Safeguarding Adults,839.28,Professional Fees,Third Party Supplier,STANDARD,5158,JAAA-Directorate of Social Care and Health Services
RBC Legal Entity,04/01/2022,4632607,266850,QUALITY CARE & RECRUITMENT SOLUTIONS LTD,Safeguarding Adults,652,Professional Fees,Third Party Supplier,STANDARD,5158,JAAA-Directorate of Social Care and Health Services
RBC Legal Entity,04/01/2022,4628324,266853,RIVERSIDE ENVIRONMENTAL SERVICES LTD,Corporate Offices,722,External Fees  Surveyors,Third Party Supplier,STANDARD,8602,ZZZC-Capital
RBC Legal Entity,04/01/2022,4632306,266855,NORTH PB LTD,Sheltered Housing,2752.94,Modifications+Alterations,Third Party Supplier,STANDARD,5940,HAAA-Housing Revenue Account
RBC Legal Entity,04/01/2022,4620834,266856,TOTAL COMPUTER NETWORKS LTD,ASC Short Term Team,3060,PurchaseComputer Equipt,Third Party Supplier,STANDARD,5722,JAAA-Directorate of Social Care and Health Services
RBC Legal Entity,04/01/2022,4627751,266856,TOTAL COMPUTER NETWORKS LTD,IT Management,11475,Computer Consumables,Third Party Supplier,STANDARD,2300,EAAA-Chief Executive
RBC Legal Entity,04/01/2022,4620724,266858,VIVID RESOURCING,Berkshire West Public Health Hub,2800,Agency Staff,Third Party Supplier,STANDARD,2002,JAAA-Directorate of Social Care and Health Services
RBC Legal Entity,04/01/2022,4620729,266858,VIVID RESOURCING,Berkshire West Public Health Hub,5250,Agency Staff,Third Party Supplier,STANDARD,2002,JAAA-Directorate of Social Care and Health Services
RBC Legal Entity,04/01/2022,4636682,266859,INTEGRATED SERVICES PROGRAMME,LD Community Services,1941.84,Purchased Care,Third Party Supplier,STANDARD,5741,JAAA-Directorate of Social Care and Health Services
RBC Legal Entity,04/01/2022,4635530,266861,NEIL CURTIS FUNERAL CONTRACTOR,Grounds Maintenance,1710,TPP to Others,SUPPLIER,STANDARD,1306,KAAA-Directorate of Economic Growth and Neighbourhood Services
RBC Legal Entity,04/01/2022,4631536,266862,BERKSHIRE HEALTHCARE NHS TRUST,Safeguarding Adults Partnership Board,450,Software Support,Third Party Supplier,STANDARD,5156,JAAA-Directorate of Social Care and Health Services
RBC Legal Entity,04/01/2022,4636696,266863,RICOH EUROPE PLC,Printing,1544.36,Leasing Costs,Third Party Supplier,STANDARD,2590,KAAA-Directorate of Economic Growth and Neighbourhood Services
RBC Legal Entity,04/01/2022,4636697,266863,RICOH EUROPE PLC,Printing,1278.34,Leasing Costs,Third Party Supplier,STANDARD,2590,KAAA-Directorate of Economic Growth and Neighbourhood Services
RBC Legal Entity,04/01/2022,4636698,266863,RICOH EUROPE PLC,Printing,1194.52,Printing + Duplicating,Third Party Supplier,STANDARD,2590,KAAA-Directorate of Economic Growth and Neighbourhood Services
RBC Legal Entity,04/01/2022,4631429,266864,BARCHAM TREES PLC,Grounds Maintenance,516,Materials Direct,SUPPLIER,STANDARD,1306,KAAA-Directorate of Economic Growth and Neighbourhood Services
RBC Legal Entity,04/01/2022,4631429,266864,BARCHAM TREES PLC,Grounds Maintenance,1328,Materials Direct,SUPPLIER,STANDARD,1306,KAAA-Directorate of Economic Growth and Neighbourhood Services
RBC Legal Entity,04/01/2022,4631429,266864,BARCHAM TREES PLC,Parks + Open Spaces,2081,Landscaping,SUPPLIER,STANDARD,8003,ZZZC-Capital
RBC Legal Entity,04/01/2022,4631429,266864,BARCHAM TREES PLC,Parks + Open Spaces,5743,Landscaping,SUPPLIER,STANDARD,8003,ZZZC-Capital
RBC Legal Entity,04/01/2022,4631429,266864,BARCHAM TREES PLC,Grounds Maintenance,6597,Materials Direct,SUPPLIER,STANDARD,1306,KAAA-Directorate of Economic Growth and Neighbourhood Services
RBC Legal Entity,04/01/2022,4637908,266865,HEXHAM COMMUNITY ASSOCIATION,Voluntary Sector & Community Grants,2500,GrantsVolunt.Organ.,SUPPLIER,STANDARD,2041,LAAA-Directorate of Resources
RBC Legal Entity,04/01/2022,4627634,266868,REED,Transformation,3.6,Agency Staff,Third Party Supplier,STANDARD,5289,JAAA-Directorate of Social Care and Health Services
RBC Legal Entity,04/01/2022,4627634,266868,REED,ASC Short Term Team,3.6,Agency Staff,Third Party Supplier,STANDARD,5722,JAAA-Directorate of Social Care and Health Services
RBC Legal Entity,04/01/2022,4627634,266868,REED,ASC Short Term Team,4.05,Agency Staff,Third Party Supplier,STANDARD,5722,JAAA-Directorate of Social Care and Health Services
RBC Legal Entity,04/01/2022,4627634,266868,REED,BFFC Agency Staff (Rechargeable),5.4,Agency Staff,Third Party Supplier,STANDARD,2008,LAAA-Directorate of Resources
RBC Legal Entity,04/01/2022,4627634,266868,REED,Mental Health Team,5.85,Agency Staff,Third Party Supplier,STANDARD,5253,JAAA-Directorate of Social Care and Health Services
RBC Legal Entity,04/01/2022,4627634,266868,REED,ASC Locality Team,5.92,Agency Staff,Third Party Supplier,STANDARD,5721,JAAA-Directorate of Social Care and Health Services
RBC Legal Entity,04/01/2022,4627634,266868,REED,ASC Locality Team,10.8,Agency Staff,Third Party Supplier,STANDARD,5721,JAAA-Directorate of Social Care and Health Services
RBC Legal Entity,04/01/2022,4627634,266868,REED,Transformation,16.2,Agency Staff,Third Party Supplier,STANDARD,5289,JAAA-Directorate of Social Care and Health Services
RBC Legal Entity,04/01/2022,4627634,266868,REED,BFFC Agency Staff (Rechargeable),24.3,Agency Staff,Third Party Supplier,STANDARD,2008,LAAA-Directorate of Resources
RBC Legal Entity,04/01/2022,4627634,266868,REED,ASC Short Term Team,25.78,Agency Staff,Third Party Supplier,STANDARD,5722,JAAA-Directorate of Social Care and Health Services
RBC Legal Entity,04/01/2022,4627634,266868,REED,BFFC Agency Staff (Rechargeable),26.1,Agency Staff,Third Party Supplier,STANDARD,2008,LAAA-Directorate of Resources
RBC Legal Entity,04/01/2022,4627634,266868,REED,BFFC Agency Staff (Rechargeable),30.65,Agency Staff,Third Party Supplier,STANDARD,2008,LAAA-Directorate of Resources
RBC Legal Entity,04/01/2022,4627634,266868,REED,ASC Short Term Team,31.05,Agency Staff,Third Party Supplier,STANDARD,5722,JAAA-Directorate of Social Care and Health Services
RBC Legal Entity,04/01/2022,4627634,266868,REED,BFFC Agency Staff (Rechargeable),31.5,Agency Staff,Third Party Supplier,STANDARD,2008,LAAA-Directorate of Resources
RBC Legal Entity,04/01/2022,4627634,266868,REED,ASC Short Term Team,33.3,Agency Staff,Third Party Supplier,STANDARD,5722,JAAA-Directorate of Social Care and Health Services
RBC Legal Entity,04/01/2022,4627634,266868,REED,BFFC Agency Staff (Rechargeable),45.9,Agency Staff,Third Party Supplier,STANDARD,2008,LAAA-Directorate of Resources
RBC Legal Entity,04/01/2022,4627634,266868,REED,BFFC Agency Staff (Rechargeable),56.7,Agency Staff,Third Party Supplier,STANDARD,2008,LAAA-Directorate of Resources
RBC Legal Entity,04/01/2022,4627634,266868,REED,BFFC Agency Staff (Rechargeable),65.25,Agency Staff,Third Party Supplier,STANDARD,2008,LAAA-Directorate of Resources
RBC Legal Entity,04/01/2022,4627634,266868,REED,BFFC Agency Staff (Rechargeable),66.15,Agency Staff,Third Party Supplier,STANDARD,2008,LAAA-Directorate of Resources
RBC Legal Entity,04/01/2022,4627634,266868,REED,Mental Health Team,84.15,Agency Staff,Third Party Supplier,STANDARD,5253,JAAA-Directorate of Social Care and Health Services
RBC Legal Entity,04/01/2022,4627634,266868,REED,BFFC Agency Staff (Rechargeable),113.65,Agency Staff,Third Party Supplier,STANDARD,2008,LAAA-Directorate of Resources
RBC Legal Entity,04/01/2022,4627634,266868,REED,BFFC Agency Staff (Rechargeable),164.7,Agency Staff,Third Party Supplier,STANDARD,2008,LAAA-Directorate of Resources
RBC Legal Entity,04/01/2022,4627634,266868,REED,BFFC Agency Staff (Rechargeable),165.6,Agency Staff,Third Party Supplier,STANDARD,2008,LAAA-Directorate of Resources
RBC Legal Entity,04/01/2022,4627634,266868,REED,BFFC Agency Staff (Rechargeable),172.8,Agency Staff,Third Party Supplier,STANDARD,2008,LAAA-Directorate of Resources
RBC Legal Entity,04/01/2022,4627634,266868,REED,BFFC Agency Staff (Rechargeable),199.8,Agency Staff,Third Party Supplier,STANDARD,2008,LAAA-Directorate of Resources
RBC Legal Entity,04/01/2022,4627634,266868,REED,Customer Services - Reception,223.29,Agency Staff,Third Party Supplier,STANDARD,2595,LAAA-Directorate of Resources
RBC Legal Entity,04/01/2022,4627634,266868,REED,Refuse Collection,233.64,Agency Staff,Third Party Supplier,STANDARD,4561,KAAA-Directorate of Economic Growth and Neighbourhood Services
RBC Legal Entity,04/01/2022,4627634,266868,REED,Street Cleansing,332.44,Agency Staff,Third Party Supplier,STANDARD,4566,KAAA-Directorate of Economic Growth and Neighbourhood Services
RBC Legal Entity,04/01/2022,4627634,266868,REED,Street Cleansing,420.16,Agency Staff,Third Party Supplier,STANDARD,4566,KAAA-Directorate of Economic Growth and Neighbourhood Services
RBC Legal Entity,04/01/2022,4627634,266868,REED,Refuse Collection,424.21,Agency Staff,Third Party Supplier,STANDARD,4561,KAAA-Directorate of Economic Growth and Neighbourhood Services
RBC Legal Entity,04/01/2022,4627634,266868,REED,Lateral Flow Testing,428.22,Agency Staff,Third Party Supplier,STANDARD,2701,LAAA-Directorate of Resources
RBC Legal Entity,04/01/2022,4627634,266868,REED,Street Cleansing,443.25,Agency Staff,Third Party Supplier,STANDARD,4566,KAAA-Directorate of Economic Growth and Neighbourhood Services
RBC Legal Entity,04/01/2022,4627634,266868,REED,Street Cleansing,443.25,Agency Staff,Third Party Supplier,STANDARD,4566,KAAA-Directorate of Economic Growth and Neighbourhood Services
RBC Legal Entity,04/01/2022,4627634,266868,REED,Refuse Collection,480.23,Agency Staff,Third Party Supplier,STANDARD,4561,KAAA-Directorate of Economic Growth and Neighbourhood Services
RBC Legal Entity,04/01/2022,4627634,266868,REED,Refuse Collection,480.23,Agency Staff,Third Party Supplier,STANDARD,4561,KAAA-Directorate of Economic Growth and Neighbourhood Services
RBC Legal Entity,04/01/2022,4627634,266868,REED,Lateral Flow Testing,481.76,Agency Staff,Third Party Supplier,STANDARD,2701,LAAA-Directorate of Resources
RBC Legal Entity,04/01/2022,4627634,266868,REED,Lateral Flow Testing,487.51,Agency Staff,Third Party Supplier,STANDARD,2701,LAAA-Directorate of Resources
RBC Legal Entity,04/01/2022,4627634,266868,REED,Accountancy,489.96,Agency Staff,Third Party Supplier,STANDARD,2200,LAAA-Directorate of Resources
RBC Legal Entity,04/01/2022,4627634,266868,REED,Accountancy,489.96,Agency Staff,Third Party Supplier,STANDARD,2200,LAAA-Directorate of Resources
RBC Legal Entity,04/01/2022,4627634,266868,REED,Buildings Payroll,492.43,Agency Staff,Third Party Supplier,STANDARD,3390,KAAA-Directorate of Economic Growth and Neighbourhood Services
RBC Legal Entity,04/01/2022,4627634,266868,REED,Directorate Support,500.29,Agency Staff,Third Party Supplier,STANDARD,2036,LAAA-Directorate of Resources
RBC Legal Entity,04/01/2022,4627634,266868,REED,ASC Short Term Team,525.44,Agency Staff,Third Party Supplier,STANDARD,5722,JAAA-Directorate of Social Care and Health Services
RBC Legal Entity,04/01/2022,4627634,266868,REED,ASC Short Term Team,525.44,Agency Staff,Third Party Supplier,STANDARD,5722,JAAA-Directorate of Social Care and Health Services
RBC Legal Entity,04/01/2022,4627634,266868,REED,Lateral Flow Testing,527.95,Agency Staff,Third Party Supplier,STANDARD,2701,LAAA-Directorate of Resources
RBC Legal Entity,04/01/2022,4627634,266868,REED,Lateral Flow Testing,535.27,Agency Staff,Third Party Supplier,STANDARD,2701,LAAA-Directorate of Resources
RBC Legal Entity,04/01/2022,4627634,266868,REED,Grounds Maintenance,549.71,Agency Staff,Third Party Supplier,STANDARD,1306,KAAA-Directorate of Economic Growth and Neighbourhood Services
RBC Legal Entity,04/01/2022,4627634,266868,REED,Street Cleansing,554.06,Agency Staff,Third Party Supplier,STANDARD,4566,KAAA-Directorate of Economic Growth and Neighbourhood Services
RBC Legal Entity,04/01/2022,4627634,266868,REED,Street Cleansing,554.06,Agency Staff,Third Party Supplier,STANDARD,4566,KAAA-Directorate of Economic Growth and Neighbourhood Services
RBC Legal Entity,04/01/2022,4627634,266868,REED,Street Cleansing,554.06,Agency Staff,Third Party Supplier,STANDARD,4566,KAAA-Directorate of Economic Growth and Neighbourhood Services
RBC Legal Entity,04/01/2022,4627634,266868,REED,Procurement Services,557.39,Agency Staff,Third Party Supplier,STANDARD,2402,LAAA-Directorate of Resources
RBC Legal Entity,04/01/2022,4627634,266868,REED,Refuse Collection,583.72,Agency Staff,Third Party Supplier,STANDARD,4561,KAAA-Directorate of Economic Growth and Neighbourhood Services
RBC Legal Entity,04/01/2022,4627634,266868,REED,Refuse Collection,591.98,Agency Staff,Third Party Supplier,STANDARD,4561,KAAA-Directorate of Economic Growth and Neighbourhood Services
RBC Legal Entity,04/01/2022,4627634,266868,REED,Refuse Collection,592.3,Agency Staff,Third Party Supplier,STANDARD,4561,KAAA-Directorate of Economic Growth and Neighbourhood Services
RBC Legal Entity,04/01/2022,4627634,266868,REED,Customer Services - Reception,596.55,Agency Staff,Third Party Supplier,STANDARD,2595,LAAA-Directorate of Resources
RBC Legal Entity,04/01/2022,4627634,266868,REED,Refuse Collection,600.31,Agency Staff,Third Party Supplier,STANDARD,4561,KAAA-Directorate of Economic Growth and Neighbourhood Services
RBC Legal Entity,04/01/2022,4627634,266868,REED,Lateral Flow Testing,608.04,Agency Staff,Third Party Supplier,STANDARD,2701,LAAA-Directorate of Resources
RBC Legal Entity,04/01/2022,4627634,266868,REED,ASC Locality Team,628.5,Agency Staff,Third Party Supplier,STANDARD,5721,JAAA-Directorate of Social Care and Health Services
RBC Legal Entity,04/01/2022,4627634,266868,REED,Street Cleansing,630.24,Agency Staff,Third Party Supplier,STANDARD,4566,KAAA-Directorate of Economic Growth and Neighbourhood Services
RBC Legal Entity,04/01/2022,4627634,266868,REED,Street Cleansing,638.22,Agency Staff,Third Party Supplier,STANDARD,4566,KAAA-Directorate of Economic Growth and Neighbourhood Services
RBC Legal Entity,04/01/2022,4627634,266868,REED,Directorate Support,646.22,Agency Staff,Third Party Supplier,STANDARD,2036,LAAA-Directorate of Resources
RBC Legal Entity,04/01/2022,4627634,266868,REED,Lateral Flow Testing,678.01,Agency Staff,Third Party Supplier,STANDARD,2701,LAAA-Directorate of Resources
RBC Legal Entity,04/01/2022,4627634,266868,REED,ASC Short Term Team,678.21,Agency Staff,Third Party Supplier,STANDARD,5722,JAAA-Directorate of Social Care and Health Services
RBC Legal Entity,04/01/2022,4627634,266868,REED,Lateral Flow Testing,743.49,Agency Staff,Third Party Supplier,STANDARD,2701,LAAA-Directorate of Resources
RBC Legal Entity,04/01/2022,4627634,266868,REED,Transformation,861.6,Agency Staff,Third Party Supplier,STANDARD,5289,JAAA-Directorate of Social Care and Health Services
RBC Legal Entity,04/01/2022,4627634,266868,REED,Lateral Flow Testing,865.37,Agency Staff,Third Party Supplier,STANDARD,2701,LAAA-Directorate of Resources
RBC Legal Entity,04/01/2022,4627634,266868,REED,Lateral Flow Testing,865.37,Agency Staff,Third Party Supplier,STANDARD,2701,LAAA-Directorate of Resources
RBC Legal Entity,04/01/2022,4627634,266868,REED,Lateral Flow Testing,877.78,Agency Staff,Third Party Supplier,STANDARD,2701,LAAA-Directorate of Resources
RBC Legal Entity,04/01/2022,4627634,266868,REED,Commissioning Team,887.96,Agency Staff,Third Party Supplier,STANDARD,3452,JAAA-Directorate of Social Care and Health Services
RBC Legal Entity,04/01/2022,4627634,266868,REED,Joint Legal Team,925.75,Agency Staff,Third Party Supplier,STANDARD,2405,LAAA-Directorate of Resources
RBC Legal Entity,04/01/2022,4627634,266868,REED,BFFC Agency Staff (Rechargeable),942.75,Agency Staff,Third Party Supplier,STANDARD,2008,LAAA-Directorate of Resources
RBC Legal Entity,04/01/2022,4627634,266868,REED,Directorate Support,985.85,Agency Staff,Third Party Supplier,STANDARD,2036,LAAA-Directorate of Resources
RBC Legal Entity,04/01/2022,4627634,266868,REED,ASC Short Term Team,1023.3,Agency Staff,Third Party Supplier,STANDARD,5722,JAAA-Directorate of Social Care and Health Services
RBC Legal Entity,04/01/2022,4627634,266868,REED,Exchequer Services,1040.2,Agency Staff,Third Party Supplier,STANDARD,2210,LAAA-Directorate of Resources
RBC Legal Entity,04/01/2022,4627634,266868,REED,ASC Short Term Team,1044,Agency Staff,Third Party Supplier,STANDARD,5722,JAAA-Directorate of Social Care and Health Services
RBC Legal Entity,04/01/2022,4627634,266868,REED,ASC Short Term Team,1067.45,Agency Staff,Third Party Supplier,STANDARD,5722,JAAA-Directorate of Social Care and Health Services
RBC Legal Entity,04/01/2022,4627634,266868,REED,ASC Short Term Team,1159.5,Agency Staff,Third Party Supplier,STANDARD,5722,JAAA-Directorate of Social Care and Health Services
RBC Legal Entity,04/01/2022,4627634,266868,REED,Legal Services,1176.81,Agency Staff,Third Party Supplier,STANDARD,2400,LAAA-Directorate of Resources
RBC Legal Entity,04/01/2022,4627634,266868,REED,Safeguarding Adults,1184.7,Agency Staff,Third Party Supplier,STANDARD,5158,JAAA-Directorate of Social Care and Health Services
RBC Legal Entity,04/01/2022,4627634,266868,REED,BFFC Agency Staff (Rechargeable),1184.8,Agency Staff,Third Party Supplier,STANDARD,2008,LAAA-Directorate of Resources
RBC Legal Entity,04/01/2022,4627634,266868,REED,Safeguarding Adults,1224,Agency Staff,Third Party Supplier,STANDARD,5158,JAAA-Directorate of Social Care and Health Services
RBC Legal Entity,04/01/2022,4627634,266868,REED,ASC Short Term Team,1236.8,Agency Staff,Third Party Supplier,STANDARD,5722,JAAA-Directorate of Social Care and Health Services
RBC Legal Entity,04/01/2022,4627634,266868,REED,Lateral Flow Testing,1243.2,Agency Staff,Third Party Supplier,STANDARD,2701,LAAA-Directorate of Resources
RBC Legal Entity,04/01/2022,4627634,266868,REED,Joint Legal Team,1262.7,Agency Staff,Third Party Supplier,STANDARD,2405,LAAA-Directorate of Resources
RBC Legal Entity,04/01/2022,4627634,266868,REED,ASC Short Term Team,1313.5,Agency Staff,Third Party Supplier,STANDARD,5722,JAAA-Directorate of Social Care and Health Services
RBC Legal Entity,04/01/2022,4627634,266868,REED,Accountancy,1324.8,Agency Staff,Third Party Supplier,STANDARD,2200,LAAA-Directorate of Resources
RBC Legal Entity,04/01/2022,4627634,266868,REED,Accountancy,1324.8,Agency Staff,Third Party Supplier,STANDARD,2200,LAAA-Directorate of Resources
RBC Legal Entity,04/01/2022,4627634,266868,REED,ASC Short Term Team,1328.3,Agency Staff,Third Party Supplier,STANDARD,5722,JAAA-Directorate of Social Care and Health Services
RBC Legal Entity,04/01/2022,4627634,266868,REED,ASC Locality Team,1328.3,Agency Staff,Third Party Supplier,STANDARD,5721,JAAA-Directorate of Social Care and Health Services
RBC Legal Entity,04/01/2022,4627634,266868,REED,ASC Locality Team,1328.3,Agency Staff,Third Party Supplier,STANDARD,5721,JAAA-Directorate of Social Care and Health Services
RBC Legal Entity,04/01/2022,4627634,266868,REED,ASC Locality Team,1328.3,Agency Staff,Third Party Supplier,STANDARD,5721,JAAA-Directorate of Social Care and Health Services
RBC Legal Entity,04/01/2022,4627634,266868,REED,ASC Locality Team,1328.3,Agency Staff,Third Party Supplier,STANDARD,5721,JAAA-Directorate of Social Care and Health Services
RBC Legal Entity,04/01/2022,4627634,266868,REED,Transformation,1364.4,Agency Staff,Third Party Supplier,STANDARD,5289,JAAA-Directorate of Social Care and Health Services
RBC Legal Entity,04/01/2022,4627634,266868,REED,ASC Short Term Team,1364.4,Agency Staff,Third Party Supplier,STANDARD,5722,JAAA-Directorate of Social Care and Health Services
RBC Legal Entity,04/01/2022,4627634,266868,REED,ASC Locality Team,1365.3,Agency Staff,Third Party Supplier,STANDARD,5721,JAAA-Directorate of Social Care and Health Services
RBC Legal Entity,04/01/2022,4627634,266868,REED,ASC Short Term Team,1379.01,Agency Staff,Third Party Supplier,STANDARD,5722,JAAA-Directorate of Social Care and Health Services
RBC Legal Entity,04/01/2022,4627634,266868,REED,Safeguarding Adults,1402.3,Agency Staff,Third Party Supplier,STANDARD,5158,JAAA-Directorate of Social Care and Health Services
RBC Legal Entity,04/01/2022,4627634,266868,REED,ASC Short Term Team,1402.3,Agency Staff,Third Party Supplier,STANDARD,5722,JAAA-Directorate of Social Care and Health Services
RBC Legal Entity,04/01/2022,4627634,266868,REED,ASC Short Term Team,1402.3,Agency Staff,Third Party Supplier,STANDARD,5722,JAAA-Directorate of Social Care and Health Services
RBC Legal Entity,04/01/2022,4627634,266868,REED,ASC Locality Team,1411.78,Agency Staff,Third Party Supplier,STANDARD,5721,JAAA-Directorate of Social Care and Health Services
RBC Legal Entity,04/01/2022,4627634,266868,REED,Legal Services,1422,Agency Staff,Third Party Supplier,STANDARD,2400,LAAA-Directorate of Resources
RBC Legal Entity,04/01/2022,4627634,266868,REED,Mental Health Team,1439.3,Agency Staff,Third Party Supplier,STANDARD,5253,JAAA-Directorate of Social Care and Health Services
RBC Legal Entity,04/01/2022,4627634,266868,REED,ASC Locality Team,1439.3,Agency Staff,Third Party Supplier,STANDARD,5721,JAAA-Directorate of Social Care and Health Services
RBC Legal Entity,04/01/2022,4627634,266868,REED,ASC Locality Team,1439.3,Agency Staff,Third Party Supplier,STANDARD,5721,JAAA-Directorate of Social Care and Health Services
RBC Legal Entity,04/01/2022,4627634,266868,REED,Mental Health Team,1448.55,Agency Staff,Third Party Supplier,STANDARD,5253,JAAA-Directorate of Social Care and Health Services
RBC Legal Entity,04/01/2022,4627634,266868,REED,Transformation,1458.75,Agency Staff,Third Party Supplier,STANDARD,5289,JAAA-Directorate of Social Care and Health Services
RBC Legal Entity,04/01/2022,4627634,266868,REED,BFFC Agency Staff (Rechargeable),1513.3,Agency Staff,Third Party Supplier,STANDARD,2008,LAAA-Directorate of Resources
RBC Legal Entity,04/01/2022,4627634,266868,REED,BFFC Agency Staff (Rechargeable),1550.3,Agency Staff,Third Party Supplier,STANDARD,2008,LAAA-Directorate of Resources
RBC Legal Entity,04/01/2022,4627634,266868,REED,BFFC Agency Staff (Rechargeable),1550.3,Agency Staff,Third Party Supplier,STANDARD,2008,LAAA-Directorate of Resources
RBC Legal Entity,04/01/2022,4627634,266868,REED,BFFC Agency Staff (Rechargeable),1550.3,Agency Staff,Third Party Supplier,STANDARD,2008,LAAA-Directorate of Resources
RBC Legal Entity,04/01/2022,4627634,266868,REED,BFFC Agency Staff (Rechargeable),1550.3,Agency Staff,Third Party Supplier,STANDARD,2008,LAAA-Directorate of Resources
RBC Legal Entity,04/01/2022,4627634,266868,REED,BFFC Agency Staff (Rechargeable),1550.3,Agency Staff,Third Party Supplier,STANDARD,2008,LAAA-Directorate of Resources
RBC Legal Entity,04/01/2022,4627634,266868,REED,BFFC Agency Staff (Rechargeable),1550.3,Agency Staff,Third Party Supplier,STANDARD,2008,LAAA-Directorate of Resources
RBC Legal Entity,04/01/2022,4627634,266868,REED,BFFC Agency Staff (Rechargeable),1559.55,Agency Staff,Third Party Supplier,STANDARD,2008,LAAA-Directorate of Resources
RBC Legal Entity,04/01/2022,4627634,266868,REED,BFFC Agency Staff (Rechargeable),1559.55,Agency Staff,Third Party Supplier,STANDARD,2008,LAAA-Directorate of Resources
RBC Legal Entity,04/01/2022,4627634,266868,REED,ASC Locality Team,1580.4,Agency Staff,Third Party Supplier,STANDARD,5721,JAAA-Directorate of Social Care and Health Services
RBC Legal Entity,04/01/2022,4627634,266868,REED,ASC Locality Team,1624.3,Agency Staff,Third Party Supplier,STANDARD,5721,JAAA-Directorate of Social Care and Health Services
RBC Legal Entity,04/01/2022,4627634,266868,REED,BFFC Agency Staff (Rechargeable),1624.3,Agency Staff,Third Party Supplier,STANDARD,2008,LAAA-Directorate of Resources
RBC Legal Entity,04/01/2022,4627634,266868,REED,BFFC Agency Staff (Rechargeable),1624.3,Agency Staff,Third Party Supplier,STANDARD,2008,LAAA-Directorate of Resources
RBC Legal Entity,04/01/2022,4627634,266868,REED,BFFC Agency Staff (Rechargeable),1624.3,Agency Staff,Third Party Supplier,STANDARD,2008,LAAA-Directorate of Resources
RBC Legal Entity,04/01/2022,4627634,266868,REED,BFFC Agency Staff (Rechargeable),1624.3,Agency Staff,Third Party Supplier,STANDARD,2008,LAAA-Directorate of Resources
RBC Legal Entity,04/01/2022,4627634,266868,REED,BFFC Agency Staff (Rechargeable),1624.3,Agency Staff,Third Party Supplier,STANDARD,2008,LAAA-Directorate of Resources
RBC Legal Entity,04/01/2022,4627634,266868,REED,BFFC Agency Staff (Rechargeable),1624.3,Agency Staff,Third Party Supplier,STANDARD,2008,LAAA-Directorate of Resources
RBC Legal Entity,04/01/2022,4627634,266868,REED,BFFC Agency Staff (Rechargeable),1624.3,Agency Staff,Third Party Supplier,STANDARD,2008,LAAA-Directorate of Resources
RBC Legal Entity,04/01/2022,4627634,266868,REED,BFFC Agency Staff (Rechargeable),1624.3,Agency Staff,Third Party Supplier,STANDARD,2008,LAAA-Directorate of Resources
RBC Legal Entity,04/01/2022,4627634,266868,REED,BFFC Agency Staff (Rechargeable),1624.3,Agency Staff,Third Party Supplier,STANDARD,2008,LAAA-Directorate of Resources
RBC Legal Entity,04/01/2022,4627634,266868,REED,BFFC Agency Staff (Rechargeable),1633.55,Agency Staff,Third Party Supplier,STANDARD,2008,LAAA-Directorate of Resources
RBC Legal Entity,04/01/2022,4627634,266868,REED,Accountancy,1656,Agency Staff,Third Party Supplier,STANDARD,2200,LAAA-Directorate of Resources
RBC Legal Entity,04/01/2022,4627634,266868,REED,BFFC Agency Staff (Rechargeable),1672.9,Agency Staff,Third Party Supplier,STANDARD,2008,LAAA-Directorate of Resources
RBC Legal Entity,04/01/2022,4627634,266868,REED,BFFC Agency Staff (Rechargeable),1672.9,Agency Staff,Third Party Supplier,STANDARD,2008,LAAA-Directorate of Resources
RBC Legal Entity,04/01/2022,4627634,266868,REED,ASC Short Term Team,1792.32,Agency Staff,Third Party Supplier,STANDARD,5722,JAAA-Directorate of Social Care and Health Services
RBC Legal Entity,04/01/2022,4627634,266868,REED,Joint Legal Team,1821.72,Agency Staff,Third Party Supplier,STANDARD,2405,LAAA-Directorate of Resources
RBC Legal Entity,04/01/2022,4627634,266868,REED,Joint Legal Team,1846.3,Agency Staff,Third Party Supplier,STANDARD,2405,LAAA-Directorate of Resources
RBC Legal Entity,04/01/2022,4627634,266868,REED,Public Health Team Costs,1862.4,Agency Staff,Third Party Supplier,STANDARD,2065,JAAA-Directorate of Social Care and Health Services
RBC Legal Entity,04/01/2022,4627634,266868,REED,Joint Legal Team,2031.3,Agency Staff,Third Party Supplier,STANDARD,2405,LAAA-Directorate of Resources
RBC Legal Entity,04/01/2022,4627634,266868,REED,Legal Services,2148.2,Agency Staff,Third Party Supplier,STANDARD,2400,LAAA-Directorate of Resources
RBC Legal Entity,04/01/2022,4627634,266868,REED,ASC Senior Management Team,2176,Agency Staff,Third Party Supplier,STANDARD,5700,JAAA-Directorate of Social Care and Health Services
RBC Legal Entity,04/01/2022,4627634,266868,REED,Valuation,2183.4,Agency Staff,Third Party Supplier,STANDARD,2100,KAAA-Directorate of Economic Growth and Neighbourhood Services
RBC Legal Entity,04/01/2022,4627634,266868,REED,Joint Legal Team,2196,Agency Staff,Third Party Supplier,STANDARD,2405,LAAA-Directorate of Resources
RBC Legal Entity,04/01/2022,4627634,266868,REED,BFFC Agency Staff (Rechargeable),2276,Agency Staff,Third Party Supplier,STANDARD,2008,LAAA-Directorate of Resources
RBC Legal Entity,04/01/2022,4627634,266868,REED,Accountancy,2344.8,Agency Staff,Third Party Supplier,STANDARD,2200,LAAA-Directorate of Resources
RBC Legal Entity,04/01/2022,4627634,266868,REED,Accountancy,2426,Agency Staff,Third Party Supplier,STANDARD,2200,LAAA-Directorate of Resources
RBC Legal Entity,04/01/2022,4627634,266868,REED,Accountancy,2426,Agency Staff,Third Party Supplier,STANDARD,2200,LAAA-Directorate of Resources
RBC Legal Entity,04/01/2022,4627634,266868,REED,IT Management,2426,Agency Staff,Third Party Supplier,STANDARD,2300,EAAA-Chief Executive
RBC Legal Entity,04/01/2022,4627634,266868,REED,Accountancy,2470.68,Agency Staff,Third Party Supplier,STANDARD,2200,LAAA-Directorate of Resources
RBC Legal Entity,04/01/2022,4627634,266868,REED,Accountancy,2470.68,Agency Staff,Third Party Supplier,STANDARD,2200,LAAA-Directorate of Resources
RBC Legal Entity,04/01/2022,4627634,266868,REED,IT Management,2478.5,Agency Staff,Third Party Supplier,STANDARD,2300,EAAA-Chief Executive
RBC Legal Entity,04/01/2022,4627634,266868,REED,Test and Trace,2478.5,Agency Staff,Third Party Supplier,STANDARD,2068,JAAA-Directorate of Social Care and Health Services
RBC Legal Entity,04/01/2022,4627634,266868,REED,Accountancy,2643.5,Agency Staff,Third Party Supplier,STANDARD,2200,LAAA-Directorate of Resources
RBC Legal Entity,04/01/2022,4627634,266868,REED,Accountancy,2643.5,Agency Staff,Third Party Supplier,STANDARD,2200,LAAA-Directorate of Resources
RBC Legal Entity,04/01/2022,4627634,266868,REED,Legal Services,2767.87,Agency Staff,Third Party Supplier,STANDARD,2400,LAAA-Directorate of Resources
RBC Legal Entity,04/01/2022,4627634,266868,REED,BFFC Agency Staff (Rechargeable),2835.52,Agency Staff,Third Party Supplier,STANDARD,2008,LAAA-Directorate of Resources
RBC Legal Entity,04/01/2022,4627634,266868,REED,BFFC Agency Staff (Rechargeable),2835.52,Agency Staff,Third Party Supplier,STANDARD,2008,LAAA-Directorate of Resources
RBC Legal Entity,04/01/2022,4627634,266868,REED,ASC Senior Management Team,2926,Agency Staff,Third Party Supplier,STANDARD,5700,JAAA-Directorate of Social Care and Health Services
RBC Legal Entity,04/01/2022,4627634,266868,REED,Accountancy,3088.35,Agency Staff,Third Party Supplier,STANDARD,2200,LAAA-Directorate of Resources
RBC Legal Entity,04/01/2022,4627634,266868,REED,Accountancy,3088.35,Agency Staff,Third Party Supplier,STANDARD,2200,LAAA-Directorate of Resources
RBC Legal Entity,04/01/2022,4627634,266868,REED,Accountancy,3356,Agency Staff,Third Party Supplier,STANDARD,2200,LAAA-Directorate of Resources
RBC Legal Entity,04/01/2022,4627634,266868,REED,Finance systems Re-procurement,3356,Staff/Consultancy,Third Party Supplier,STANDARD,8637,ZZZC-Capital
RBC Legal Entity,04/01/2022,4627634,266868,REED,BFFC Agency Staff (Rechargeable),3446,Agency Staff,Third Party Supplier,STANDARD,2008,LAAA-Directorate of Resources
RBC Legal Entity,04/01/2022,4627634,266868,REED,Accountancy,3544.4,Agency Staff,Third Party Supplier,STANDARD,2200,LAAA-Directorate of Resources
RBC Legal Entity,04/01/2022,4627634,266868,REED,Accountancy,3544.4,Agency Staff,Third Party Supplier,STANDARD,2200,LAAA-Directorate of Resources
RBC Legal Entity,04/01/2022,4627634,266868,REED,Accountancy,3544.4,Agency Staff,Third Party Supplier,STANDARD,2200,LAAA-Directorate of Resources
RBC Legal Entity,04/01/2022,4627634,266868,REED,Accountancy,3544.4,Agency Staff,Third Party Supplier,STANDARD,2200,LAAA-Directorate of Resources
RBC Legal Entity,04/01/2022,4627634,266868,REED,BFFC Agency Staff (Rechargeable),3544.4,Agency Staff,Third Party Supplier,STANDARD,2008,LAAA-Directorate of Resources
RBC Legal Entity,04/01/2022,4627634,266868,REED,BFFC Agency Staff (Rechargeable),3544.4,Agency Staff,Third Party Supplier,STANDARD,2008,LAAA-Directorate of Resources
RBC Legal Entity,04/01/2022,4627634,266868,REED,Public Health Team Costs,3724.8,Agency Staff,Third Party Supplier,STANDARD,2065,JAAA-Directorate of Social Care and Health Services
RBC Legal Entity,04/01/2022,4627634,266868,REED,Public Health Team Costs,3724.8,Agency Staff,Third Party Supplier,STANDARD,2065,JAAA-Directorate of Social Care and Health Services
RBC Legal Entity,04/01/2022,4627634,266868,REED,Public Health Team Costs,3724.8,Agency Staff,Third Party Supplier,STANDARD,2065,JAAA-Directorate of Social Care and Health Services
RBC Legal Entity,04/01/2022,4627634,266868,REED,Public Health Team Costs,3724.8,Agency Staff,Third Party Supplier,STANDARD,2065,JAAA-Directorate of Social Care and Health Services
RBC Legal Entity,04/01/2022,4345043,266869,CIVICA UK LTD,Special Parking Area,1500,Consultancy Fees,Third Party Supplier,STANDARD,4724,KAAA-Directorate of Economic Growth and Neighbourhood Services
RBC Legal Entity,04/01/2022,4633086,266870,LIGHTSAVE LTD T/A FULLER READ,Corporate Maintenance Services,431.21,Materials Direct,SUPPLIER,STANDARD,4080,KAAA-Directorate of Economic Growth and Neighbourhood Services
RBC Legal Entity,04/01/2022,4631398,266873,DOYLE DESIGN LLP,Planning,17437.5,Misc. Legal Expenses,INDIVIDUAL,STANDARD,4700,KAAA-Directorate of Economic Growth and Neighbourhood Services
RBC Legal Entity,04/01/2022,4631642,266874,GENTIAN EVENTS LTD,Food and Safety,900,Training & Development Costs,Third Party Supplier,STANDARD,4614,KAAA-Directorate of Economic Growth and Neighbourhood Services
RBC Legal Entity,04/01/2022,4628417,266875,TREE ASSESSMENTSUK,Planning,2250,Agency Staff,INDIVIDUAL,STANDARD,4700,KAAA-Directorate of Economic Growth and Neighbourhood Services
RBC Legal Entity,04/01/2022,4626184,266877,DR RICHARD KEAYS,Coroner,850,Medical Fees,INDIVIDUAL,STANDARD,4605,KAAA-Directorate of Economic Growth and Neighbourhood Services
RBC Legal Entity,04/01/2022,4620668,266878,THE HYGROVE LTD,Public Health Team Costs,4500,Purchased Care,Third Party Supplier,STANDARD,2065,JAAA-Directorate of Social Care and Health Services
RBC Legal Entity,04/01/2022,4631349,266880,DR TIM CRIPPS,Coroner,600,Medical Fees,Third Party Supplier,STANDARD,4605,KAAA-Directorate of Economic Growth and Neighbourhood Services
RBC Legal Entity,04/01/2022,4626365,266881,CAMPBELL TICKELL LTD,Corporate Miscellaneous,17400,Staff Advertising,Third Party Supplier,STANDARD,2855,MAAA-Corporate Codes
RBC Legal Entity,04/01/2022,4631411,266882,NIAMH DALY,JLT Disbursements,1350,Misc. Legal Expenses,Third Party Supplier,STANDARD,2407,LAAA-Directorate of Resources
RBC Legal Entity,04/01/2022,4631552,266883,PETERBOROUGH CITY COUNCIL,Civil Engineering,750,Street Lighting,GOVERNMENT,STANDARD,4550,KAAA-Directorate of Economic Growth and Neighbourhood Services
RBC Legal Entity,04/01/2022,4628255,266884,MARK SHAW,JLT Disbursements,475,Misc. Legal Expenses,INDIVIDUAL,STANDARD,2407,LAAA-Directorate of Resources
RBC Legal Entity,04/01/2022,4626314,266885,KIRAN CHANNA,JLT Disbursements,120,Misc. Legal Expenses,INDIVIDUAL,STANDARD,2407,LAAA-Directorate of Resources
RBC Legal Entity,04/01/2022,4626314,266885,KIRAN CHANNA,JLT Disbursements,600,Misc. Legal Expenses,INDIVIDUAL,STANDARD,2407,LAAA-Directorate of Resources
RBC Legal Entity,04/01/2022,4628281,266886,POSTURITE (UK) LTD,Programme Management Office,9.95,Equipment Purchase & Repair,Third Party Supplier,STANDARD,2033,LAAA-Directorate of Resources
RBC Legal Entity,04/01/2022,4628281,266886,POSTURITE (UK) LTD,Programme Management Office,839.76,Equipment Purchase & Repair,Third Party Supplier,STANDARD,2033,LAAA-Directorate of Resources
RBC Legal Entity,04/01/2022,4636327,266887,ARA COMMERCIAL LIMITED,Archives General,450,Stationery  Consumables,SUPPLIER,STANDARD,1256,KAAA-Directorate of Economic Growth and Neighbourhood Services
RBC Legal Entity,04/01/2022,4626105,266889,DSI BILLING SERVICES LTD,Council Tax & Business Rates,1758.9,Postage Carriage Stamp Duty,SUPPLIER,STANDARD,2250,LAAA-Directorate of Resources
RBC Legal Entity,04/01/2022,4631621,266890,UNICORN WINDOWS LTD,Planned Maintenance Trades,1300,Subcontractors Labour,SUB-CONTRACTOR,STANDARD,4040,KAAA-Directorate of Economic Growth and Neighbourhood Services
RBC Legal Entity,04/01/2022,4632646,266890,UNICORN WINDOWS LTD,DLO Day to Day Trades,850,Subcontractors Labour,SUB-CONTRACTOR,STANDARD,4010,KAAA-Directorate of Economic Growth and Neighbourhood Services
RBC Legal Entity,04/01/2022,4632650,266890,UNICORN WINDOWS LTD,DLO Wokingham Trades,800,Subcontractors Labour,SUB-CONTRACTOR,STANDARD,4050,KAAA-Directorate of Economic Growth and Neighbourhood Services
RBC Legal Entity,04/01/2022,4631527,266891,SANDS SECURITY LTD,Hexagon Operations,2492,Security Charges,SUPPLIER,STANDARD,1200,KAAA-Directorate of Economic Growth and Neighbourhood Services
RBC Legal Entity,04/01/2022,4635342,266891,SANDS SECURITY LTD,Hexagon Operations,1715,Security Charges,SUPPLIER,STANDARD,1200,KAAA-Directorate of Economic Growth and Neighbourhood Services
RBC Legal Entity,04/01/2022,4637387,266892,EDGE SERVICES,ASC Senior Management Team,820,Training & Development Costs,Third Party Supplier,STANDARD,5700,JAAA-Directorate of Social Care and Health Services
RBC Legal Entity,04/01/2022,4626006,266893,UBIQUS,JLT Disbursements,1580,Misc. Legal Expenses,SUPPLIER,STANDARD,2407,LAAA-Directorate of Resources
RBC Legal Entity,04/01/2022,4620817,266897,DEBORAH ORR,JLT Disbursements,1639.6,Misc. Legal Expenses,SUPPLIER,STANDARD,2407,LAAA-Directorate of Resources
RBC Legal Entity,04/01/2022,4636784,266899,FORPSYCH LTD,JLT Disbursements,6114.2,Misc. Legal Expenses,Third Party Supplier,STANDARD,2407,LAAA-Directorate of Resources
RBC Legal Entity,04/01/2022,4632620,266901,PRAXIS KNOTS LTD,JLT Disbursements,2120.5,Misc. Legal Expenses,Third Party Supplier,STANDARD,2407,LAAA-Directorate of Resources
RBC Legal Entity,04/01/2022,4632946,266903,STEFAN ROY,JLT Disbursements,750,Misc. Legal Expenses,INDIVIDUAL,STANDARD,2407,LAAA-Directorate of Resources
RBC Legal Entity,04/01/2022,4631647,266906,ST MUNGO'S COMMUNITY HOUSING ASSOCIATION LTD,Single Homelessness Grants,20054,Preventive+SupportiveServ,SUPPLIER,STANDARD,5860,KAAA-Directorate of Economic Growth and Neighbourhood Services
RBC Legal Entity,04/01/2022,4631648,266906,ST MUNGO'S COMMUNITY HOUSING ASSOCIATION LTD,Single Homelessness Grants,37838,Preventive+SupportiveServ,SUPPLIER,STANDARD,5860,KAAA-Directorate of Economic Growth and Neighbourhood Services
RBC Legal Entity,04/01/2022,4632652,266906,ST MUNGO'S COMMUNITY HOUSING ASSOCIATION LTD,Single Homelessness Grants,29195,Preventive+SupportiveServ,SUPPLIER,STANDARD,5860,KAAA-Directorate of Economic Growth and Neighbourhood Services
RBC Legal Entity,04/01/2022,4636689,266907,BEN BANKS,Corporate FM - Office Buildings,560,Equipment Purchase & Repair,Third Party Supplier,STANDARD,3738,KAAA-Directorate of Economic Growth and Neighbourhood Services
RBC Legal Entity,04/01/2022,4623837,266908,SPORTS COURT UK LIMITED,Park Service,1280,Routine Maintenance,SUB-CONTRACTOR,STANDARD,1302,KAAA-Directorate of Economic Growth and Neighbourhood Services
RBC Legal Entity,04/01/2022,4620819,266909,MR EDWARD KIRKWOOD,JLT Disbursements,735,Misc. Legal Expenses,Third Party Supplier,STANDARD,2407,LAAA-Directorate of Resources
RBC Legal Entity,04/01/2022,4620820,266909,MR EDWARD KIRKWOOD,JLT Disbursements,1350,Misc. Legal Expenses,Third Party Supplier,STANDARD,2407,LAAA-Directorate of Resources
RBC Legal Entity,04/01/2022,4625905,266909,MR EDWARD KIRKWOOD,JLT Disbursements,675,Misc. Legal Expenses,Third Party Supplier,STANDARD,2407,LAAA-Directorate of Resources
RBC Legal Entity,04/01/2022,4628254,266909,MR EDWARD KIRKWOOD,JLT Disbursements,750,Misc. Legal Expenses,Third Party Supplier,STANDARD,2407,LAAA-Directorate of Resources
RBC Legal Entity,04/01/2022,4631340,266909,MR EDWARD KIRKWOOD,JLT Disbursements,675,Misc. Legal Expenses,Third Party Supplier,STANDARD,2407,LAAA-Directorate of Resources
RBC Legal Entity,04/01/2022,4630340,266911,MIRUS PROJECTS LIMITED,Sheltered Housing,804,Modifications+Alterations,SUB-CONTRACTOR,STANDARD,5940,HAAA-Housing Revenue Account
RBC Legal Entity,04/01/2022,4630344,266911,MIRUS PROJECTS LIMITED,Corporate Maintenance Services,626,TPP  Contract,SUB-CONTRACTOR,STANDARD,4080,KAAA-Directorate of Economic Growth and Neighbourhood Services
RBC Legal Entity,04/01/2022,4630355,266911,MIRUS PROJECTS LIMITED,Corporate Maintenance Services,1160,Leasing Costs,SUB-CONTRACTOR,STANDARD,4080,KAAA-Directorate of Economic Growth and Neighbourhood Services
RBC Legal Entity,04/01/2022,4626026,266912,TM CLOTHING,Building Cleaning,514.24,Uniforms,SUPPLIER,STANDARD,4351,KAAA-Directorate of Economic Growth and Neighbourhood Services
RBC Legal Entity,04/01/2022,4628426,266913,GS ECOLOGY LTD,Planning,525,TPP  Contract,SUPPLIER,STANDARD,4700,KAAA-Directorate of Economic Growth and Neighbourhood Services
RBC Legal Entity,04/01/2022,4628430,266913,GS ECOLOGY LTD,Planning,420,TPP  Contract,SUPPLIER,STANDARD,4700,KAAA-Directorate of Economic Growth and Neighbourhood Services
RBC Legal Entity,04/01/2022,4636332,266915,DAVIS SCAFFOLDING,DLO Day to Day Trades,660,Subcontractors Labour,SUB-CONTRACTOR,STANDARD,4010,KAAA-Directorate of Economic Growth and Neighbourhood Services
RBC Legal Entity,04/01/2022,4636333,266915,DAVIS SCAFFOLDING,DLO Wokingham Trades,1320,Subcontractors Labour,SUB-CONTRACTOR,STANDARD,4050,KAAA-Directorate of Economic Growth and Neighbourhood Services
RBC Legal Entity,04/01/2022,4636334,266915,DAVIS SCAFFOLDING,DLO Day to Day Trades,1650,Subcontractors Labour,SUB-CONTRACTOR,STANDARD,4010,KAAA-Directorate of Economic Growth and Neighbourhood Services
RBC Legal Entity,04/01/2022,4636335,266915,DAVIS SCAFFOLDING,DLO Day to Day Trades,1100,Subcontractors Labour,SUB-CONTRACTOR,STANDARD,4010,KAAA-Directorate of Economic Growth and Neighbourhood Services
RBC Legal Entity,04/01/2022,4636336,266915,DAVIS SCAFFOLDING,DLO Day to Day Trades,1925,Subcontractors Labour,SUB-CONTRACTOR,STANDARD,4010,KAAA-Directorate of Economic Growth and Neighbourhood Services
RBC Legal Entity,04/01/2022,4636337,266915,DAVIS SCAFFOLDING,DLO Day to Day Trades,825,Subcontractors Labour,SUB-CONTRACTOR,STANDARD,4010,KAAA-Directorate of Economic Growth and Neighbourhood Services
RBC Legal Entity,04/01/2022,4627737,266916,HUCK NETS (UK) LTD,Grounds Maintenance,553.73,CPG Maintenance,SUPPLIER,STANDARD,1306,KAAA-Directorate of Economic Growth and Neighbourhood Services
RBC Legal Entity,04/01/2022,4632758,266920,CREATIVE SUPPORT LTD,Mental Health Community Services,633.8,Purchased Care,Third Party Supplier,STANDARD,5731,JAAA-Directorate of Social Care and Health Services
RBC Legal Entity,04/01/2022,4632759,266920,CREATIVE SUPPORT LTD,Mental Health Community Services,1101.72,Purchased Care,Third Party Supplier,STANDARD,5731,JAAA-Directorate of Social Care and Health Services
RBC Legal Entity,04/01/2022,4632760,266920,CREATIVE SUPPORT LTD,Mental Health Community Services,1167.92,Purchased Care,Third Party Supplier,STANDARD,5731,JAAA-Directorate of Social Care and Health Services
RBC Legal Entity,04/01/2022,4632761,266920,CREATIVE SUPPORT LTD,Mental Health Community Services,1134.8,Purchased Care,Third Party Supplier,STANDARD,5731,JAAA-Directorate of Social Care and Health Services
RBC Legal Entity,04/01/2022,4632770,266920,CREATIVE SUPPORT LTD,Mental Health Community Services,538.2,Purchased Care,Third Party Supplier,STANDARD,5731,JAAA-Directorate of Social Care and Health Services
RBC Legal Entity,04/01/2022,4632773,266920,CREATIVE SUPPORT LTD,Mental Health Community Services,604.4,Purchased Care,Third Party Supplier,STANDARD,5731,JAAA-Directorate of Social Care and Health Services
RBC Legal Entity,04/01/2022,4632774,266920,CREATIVE SUPPORT LTD,Mental Health Community Services,604.56,Purchased Care,Third Party Supplier,STANDARD,5731,JAAA-Directorate of Social Care and Health Services
RBC Legal Entity,04/01/2022,4632775,266920,CREATIVE SUPPORT LTD,Mental Health Community Services,1101.72,Purchased Care,Third Party Supplier,STANDARD,5731,JAAA-Directorate of Social Care and Health Services
RBC Legal Entity,04/01/2022,4632776,266920,CREATIVE SUPPORT LTD,Mental Health Community Services,1465.81,Purchased Care,Third Party Supplier,STANDARD,5731,JAAA-Directorate of Social Care and Health Services
RBC Legal Entity,04/01/2022,4632777,266920,CREATIVE SUPPORT LTD,Mental Health Community Services,786.96,Purchased Care,Third Party Supplier,STANDARD,5731,JAAA-Directorate of Social Care and Health Services
RBC Legal Entity,04/01/2022,4632778,266920,CREATIVE SUPPORT LTD,Mental Health Community Services,587.84,Purchased Care,Third Party Supplier,STANDARD,5731,JAAA-Directorate of Social Care and Health Services
RBC Legal Entity,04/01/2022,4636380,266920,CREATIVE SUPPORT LTD,PS Acquired Community Services,596.63,Purchased Care,Third Party Supplier,STANDARD,5771,JAAA-Directorate of Social Care and Health Services
RBC Legal Entity,04/01/2022,4636381,266920,CREATIVE SUPPORT LTD,LD Community Services,4335.51,Purchased Care,Third Party Supplier,STANDARD,5741,JAAA-Directorate of Social Care and Health Services
RBC Legal Entity,04/01/2022,4636382,266920,CREATIVE SUPPORT LTD,LD Community Services,1327.22,Purchased Care,Third Party Supplier,STANDARD,5741,JAAA-Directorate of Social Care and Health Services
RBC Legal Entity,04/01/2022,4636383,266920,CREATIVE SUPPORT LTD,LD Community Services,933.42,Purchased Care,Third Party Supplier,STANDARD,5741,JAAA-Directorate of Social Care and Health Services
RBC Legal Entity,04/01/2022,4636384,266920,CREATIVE SUPPORT LTD,LD Community Services,1836.46,Purchased Care,Third Party Supplier,STANDARD,5741,JAAA-Directorate of Social Care and Health Services
RBC Legal Entity,04/01/2022,4636386,266920,CREATIVE SUPPORT LTD,PS Acquired Community Services,1665,Purchased Care,Third Party Supplier,STANDARD,5771,JAAA-Directorate of Social Care and Health Services
RBC Legal Entity,04/01/2022,4636387,266920,CREATIVE SUPPORT LTD,PS Acquired Community Services,4662,Purchased Care,Third Party Supplier,STANDARD,5771,JAAA-Directorate of Social Care and Health Services
RBC Legal Entity,04/01/2022,4636390,266920,CREATIVE SUPPORT LTD,PS Acquired Community Services,2331,Purchased Care,Third Party Supplier,STANDARD,5771,JAAA-Directorate of Social Care and Health Services
RBC Legal Entity,04/01/2022,4636393,266920,CREATIVE SUPPORT LTD,PS Acquired Community Services,4662,Purchased Care,Third Party Supplier,STANDARD,5771,JAAA-Directorate of Social Care and Health Services
RBC Legal Entity,04/01/2022,4636394,266920,CREATIVE SUPPORT LTD,PS Acquired Community Services,2719.5,Purchased Care,Third Party Supplier,STANDARD,5771,JAAA-Directorate of Social Care and Health Services
RBC Legal Entity,04/01/2022,4636395,266920,CREATIVE SUPPORT LTD,Mental Health Community Services,758.5,Purchased Care,Third Party Supplier,STANDARD,5731,JAAA-Directorate of Social Care and Health Services
RBC Legal Entity,04/01/2022,4636396,266920,CREATIVE SUPPORT LTD,PS Acquired Community Services,684.5,Purchased Care,Third Party Supplier,STANDARD,5771,JAAA-Directorate of Social Care and Health Services
RBC Legal Entity,04/01/2022,4636398,266920,CREATIVE SUPPORT LTD,PS Acquired Community Services,2460.5,Purchased Care,Third Party Supplier,STANDARD,5771,JAAA-Directorate of Social Care and Health Services
RBC Legal Entity,04/01/2022,4636399,266920,CREATIVE SUPPORT LTD,PS Acquired Community Services,906.5,Purchased Care,Third Party Supplier,STANDARD,5771,JAAA-Directorate of Social Care and Health Services
RBC Legal Entity,04/01/2022,4636400,266920,CREATIVE SUPPORT LTD,PS Acquired Community Services,2201.5,Purchased Care,Third Party Supplier,STANDARD,5771,JAAA-Directorate of Social Care and Health Services
RBC Legal Entity,04/01/2022,4636402,266920,CREATIVE SUPPORT LTD,PS Acquired Community Services,777,Purchased Care,Third Party Supplier,STANDARD,5771,JAAA-Directorate of Social Care and Health Services
RBC Legal Entity,04/01/2022,4636403,266920,CREATIVE SUPPORT LTD,PS Acquired Community Services,1110,Purchased Care,Third Party Supplier,STANDARD,5771,JAAA-Directorate of Social Care and Health Services
RBC Legal Entity,04/01/2022,4636404,266920,CREATIVE SUPPORT LTD,PS Acquired Community Services,555,Purchased Care,Third Party Supplier,STANDARD,5771,JAAA-Directorate of Social Care and Health Services
RBC Legal Entity,04/01/2022,4636405,266920,CREATIVE SUPPORT LTD,PS Acquired Community Services,629,Purchased Care,Third Party Supplier,STANDARD,5771,JAAA-Directorate of Social Care and Health Services
RBC Legal Entity,04/01/2022,4636406,266920,CREATIVE SUPPORT LTD,PS Acquired Community Services,518,Purchased Care,Third Party Supplier,STANDARD,5771,JAAA-Directorate of Social Care and Health Services
RBC Legal Entity,04/01/2022,4636407,266920,CREATIVE SUPPORT LTD,PS Acquired Community Services,647.5,Purchased Care,Third Party Supplier,STANDARD,5771,JAAA-Directorate of Social Care and Health Services
RBC Legal Entity,04/01/2022,4636408,266920,CREATIVE SUPPORT LTD,LD Community Services,758.5,Purchased Care,Third Party Supplier,STANDARD,5741,JAAA-Directorate of Social Care and Health Services
RBC Legal Entity,04/01/2022,4636409,266920,CREATIVE SUPPORT LTD,PS Acquired Community Services,851,Purchased Care,Third Party Supplier,STANDARD,5771,JAAA-Directorate of Social Care and Health Services
RBC Legal Entity,04/01/2022,4636412,266920,CREATIVE SUPPORT LTD,PS Acquired Community Services,629,Purchased Care,Third Party Supplier,STANDARD,5771,JAAA-Directorate of Social Care and Health Services
RBC Legal Entity,04/01/2022,4636413,266920,CREATIVE SUPPORT LTD,PS Acquired Community Services,721.5,Purchased Care,Third Party Supplier,STANDARD,5771,JAAA-Directorate of Social Care and Health Services
RBC Legal Entity,04/01/2022,4636415,266920,CREATIVE SUPPORT LTD,Mental Health Community Services,906.5,Purchased Care,Third Party Supplier,STANDARD,5731,JAAA-Directorate of Social Care and Health Services
RBC Legal Entity,04/01/2022,4636420,266920,CREATIVE SUPPORT LTD,PS Acquired Community Services,518,Purchased Care,Third Party Supplier,STANDARD,5771,JAAA-Directorate of Social Care and Health Services
RBC Legal Entity,04/01/2022,4636421,266920,CREATIVE SUPPORT LTD,PS Acquired Community Services,906.5,Purchased Care,Third Party Supplier,STANDARD,5771,JAAA-Directorate of Social Care and Health Services
RBC Legal Entity,04/01/2022,4636422,266920,CREATIVE SUPPORT LTD,PS Acquired Community Services,1036,Purchased Care,Third Party Supplier,STANDARD,5771,JAAA-Directorate of Social Care and Health Services
RBC Legal Entity,04/01/2022,4636423,266920,CREATIVE SUPPORT LTD,PS Acquired Community Services,906.5,Purchased Care,Third Party Supplier,STANDARD,5771,JAAA-Directorate of Social Care and Health Services
RBC Legal Entity,04/01/2022,4636424,266920,CREATIVE SUPPORT LTD,PS Acquired Community Services,3108,Purchased Care,Third Party Supplier,STANDARD,5771,JAAA-Directorate of Social Care and Health Services
RBC Legal Entity,04/01/2022,4636426,266920,CREATIVE SUPPORT LTD,PS Acquired Community Services,795.5,Purchased Care,Third Party Supplier,STANDARD,5771,JAAA-Directorate of Social Care and Health Services
RBC Legal Entity,04/01/2022,4636429,266920,CREATIVE SUPPORT LTD,PS Acquired Community Services,1221,Purchased Care,Third Party Supplier,STANDARD,5771,JAAA-Directorate of Social Care and Health Services
RBC Legal Entity,04/01/2022,4636430,266920,CREATIVE SUPPORT LTD,PS Acquired Community Services,1554,Purchased Care,Third Party Supplier,STANDARD,5771,JAAA-Directorate of Social Care and Health Services
RBC Legal Entity,04/01/2022,4636431,266920,CREATIVE SUPPORT LTD,LD Community Services,573.5,Purchased Care,Third Party Supplier,STANDARD,5741,JAAA-Directorate of Social Care and Health Services
RBC Legal Entity,04/01/2022,4636432,266920,CREATIVE SUPPORT LTD,Mental Health Community Services,1387.5,Purchased Care,Third Party Supplier,STANDARD,5731,JAAA-Directorate of Social Care and Health Services
RBC Legal Entity,04/01/2022,4636433,266920,CREATIVE SUPPORT LTD,PS Acquired Community Services,2275.5,Purchased Care,Third Party Supplier,STANDARD,5771,JAAA-Directorate of Social Care and Health Services
RBC Legal Entity,04/01/2022,4627667,266922,IMPERIAL COLLEGE PROJECTS LTD,Coroner,625,Medical Fees,SUPPLIER,STANDARD,4605,KAAA-Directorate of Economic Growth and Neighbourhood Services
RBC Legal Entity,04/01/2022,4632531,266923,CROWN LODGE GUEST HOUSE,Single Homelessness Grants,623,Preventive+SupportiveServ,Third Party Supplier,STANDARD,5860,KAAA-Directorate of Economic Growth and Neighbourhood Services
RBC Legal Entity,04/01/2022,4632532,266923,CROWN LODGE GUEST HOUSE,Single Homelessness Grants,665,Preventive+SupportiveServ,Third Party Supplier,STANDARD,5860,KAAA-Directorate of Economic Growth and Neighbourhood Services
RBC Legal Entity,04/01/2022,4632537,266923,CROWN LODGE GUEST HOUSE,Single Homelessness Grants,623,Preventive+SupportiveServ,Third Party Supplier,STANDARD,5860,KAAA-Directorate of Economic Growth and Neighbourhood Services
RBC Legal Entity,04/01/2022,4632539,266923,CROWN LODGE GUEST HOUSE,Single Homelessness Grants,553,Preventive+SupportiveServ,Third Party Supplier,STANDARD,5860,KAAA-Directorate of Economic Growth and Neighbourhood Services
RBC Legal Entity,04/01/2022,4635501,266923,CROWN LODGE GUEST HOUSE,Single Homelessness Grants,623,Preventive+SupportiveServ,Third Party Supplier,STANDARD,5860,KAAA-Directorate of Economic Growth and Neighbourhood Services
RBC Legal Entity,04/01/2022,4635502,266923,CROWN LODGE GUEST HOUSE,Single Homelessness Grants,623,Preventive+SupportiveServ,Third Party Supplier,STANDARD,5860,KAAA-Directorate of Economic Growth and Neighbourhood Services
RBC Legal Entity,04/01/2022,4635505,266923,CROWN LODGE GUEST HOUSE,Single Homelessness Grants,623,Preventive+SupportiveServ,Third Party Supplier,STANDARD,5860,KAAA-Directorate of Economic Growth and Neighbourhood Services
RBC Legal Entity,04/01/2022,4635507,266923,CROWN LODGE GUEST HOUSE,Single Homelessness Grants,553,Preventive+SupportiveServ,Third Party Supplier,STANDARD,5860,KAAA-Directorate of Economic Growth and Neighbourhood Services
RBC Legal Entity,04/01/2022,4636613,266925,CAREMARK (WEST BERKSHIRE & READING),PS Acquired Community Services,532,Purchased Care,Third Party Supplier,STANDARD,5771,JAAA-Directorate of Social Care and Health Services
RBC Legal Entity,04/01/2022,4636614,266925,CAREMARK (WEST BERKSHIRE & READING),PS Acquired Community Services,665,Purchased Care,Third Party Supplier,STANDARD,5771,JAAA-Directorate of Social Care and Health Services
RBC Legal Entity,04/01/2022,4636615,266925,CAREMARK (WEST BERKSHIRE & READING),PS Acquired Community Services,532,Purchased Care,Third Party Supplier,STANDARD,5771,JAAA-Directorate of Social Care and Health Services
RBC Legal Entity,04/01/2022,4636617,266925,CAREMARK (WEST BERKSHIRE & READING),PS Acquired Community Services,1482,Purchased Care,Third Party Supplier,STANDARD,5771,JAAA-Directorate of Social Care and Health Services
RBC Legal Entity,04/01/2022,4636619,266925,CAREMARK (WEST BERKSHIRE & READING),PS Acquired Community Services,2128,Purchased Care,Third Party Supplier,STANDARD,5771,JAAA-Directorate of Social Care and Health Services
RBC Legal Entity,04/01/2022,4636621,266925,CAREMARK (WEST BERKSHIRE & READING),PS Acquired Community Services,3161.46,Purchased Care,Third Party Supplier,STANDARD,5771,JAAA-Directorate of Social Care and Health Services
RBC Legal Entity,04/01/2022,4636622,266925,CAREMARK (WEST BERKSHIRE & READING),PS Acquired Community Services,2698,Purchased Care,Third Party Supplier,STANDARD,5771,JAAA-Directorate of Social Care and Health Services
RBC Legal Entity,04/01/2022,4636623,266925,CAREMARK (WEST BERKSHIRE & READING),PS Acquired Community Services,1216,Purchased Care,Third Party Supplier,STANDARD,5771,JAAA-Directorate of Social Care and Health Services
RBC Legal Entity,04/01/2022,4636624,266925,CAREMARK (WEST BERKSHIRE & READING),Mental Health Community Services,764.75,Purchased Care,Third Party Supplier,STANDARD,5731,JAAA-Directorate of Social Care and Health Services
RBC Legal Entity,04/01/2022,4636625,266925,CAREMARK (WEST BERKSHIRE & READING),PS Acquired Community Services,931,Purchased Care,Third Party Supplier,STANDARD,5771,JAAA-Directorate of Social Care and Health Services
RBC Legal Entity,04/01/2022,4636626,266925,CAREMARK (WEST BERKSHIRE & READING),PS Acquired Community Services,1577,Purchased Care,Third Party Supplier,STANDARD,5771,JAAA-Directorate of Social Care and Health Services
RBC Legal Entity,04/01/2022,4636627,266925,CAREMARK (WEST BERKSHIRE & READING),PS Acquired Community Services,931,Purchased Care,Third Party Supplier,STANDARD,5771,JAAA-Directorate of Social Care and Health Services
RBC Legal Entity,04/01/2022,4636628,266925,CAREMARK (WEST BERKSHIRE & READING),PS Acquired Community Services,798,Purchased Care,Third Party Supplier,STANDARD,5771,JAAA-Directorate of Social Care and Health Services
RBC Legal Entity,04/01/2022,4636629,266925,CAREMARK (WEST BERKSHIRE & READING),PS Acquired Community Services,532,Purchased Care,Third Party Supplier,STANDARD,5771,JAAA-Directorate of Social Care and Health Services
RBC Legal Entity,04/01/2022,4636630,266925,CAREMARK (WEST BERKSHIRE & READING),PS Acquired Community Services,1463,Purchased Care,Third Party Supplier,STANDARD,5771,JAAA-Directorate of Social Care and Health Services
RBC Legal Entity,04/01/2022,4636631,266925,CAREMARK (WEST BERKSHIRE & READING),PS Acquired Community Services,1862,Purchased Care,Third Party Supplier,STANDARD,5771,JAAA-Directorate of Social Care and Health Services
RBC Legal Entity,04/01/2022,4636632,266925,CAREMARK (WEST BERKSHIRE & READING),M&C Acquired Community Services,1111.5,Purchased Care,Third Party Supplier,STANDARD,5751,JAAA-Directorate of Social Care and Health Services
RBC Legal Entity,04/01/2022,4627745,266926,CHRISTIAN HOWELL CARPENTRY,Planned Maintenance Trades,400,Subcontractors Labour,SUB-CONTRACTOR,STANDARD,4040,KAAA-Directorate of Economic Growth and Neighbourhood Services
RBC Legal Entity,04/01/2022,4627745,266926,CHRISTIAN HOWELL CARPENTRY,Planned Maintenance Trades,425,Subcontractors Labour,SUB-CONTRACTOR,STANDARD,4040,KAAA-Directorate of Economic Growth and Neighbourhood Services
RBC Legal Entity,04/01/2022,4631690,266927,MEADEE FLOORING LTD,Payroll + Payments A/c,-28,System Creditors,SUB-CONTRACTOR,CREDIT,9823,ZZZB-Balance Sheet
RBC Legal Entity,04/01/2022,4631690,266927,MEADEE FLOORING LTD,DLO Kitchen & Bathroom Trades,140,Subcontractors Labour,SUB-CONTRACTOR,STANDARD,4042,KAAA-Directorate of Economic Growth and Neighbourhood Services
RBC Legal Entity,04/01/2022,4631690,266927,MEADEE FLOORING LTD,DLO Kitchen & Bathroom Trades,408.39,Subcontractors Labour,SUB-CONTRACTOR,STANDARD,4042,KAAA-Directorate of Economic Growth and Neighbourhood Services
RBC Legal Entity,04/01/2022,4631691,266927,MEADEE FLOORING LTD,Payroll + Payments A/c,-28,System Creditors,SUB-CONTRACTOR,CREDIT,9823,ZZZB-Balance Sheet
RBC Legal Entity,04/01/2022,4631691,266927,MEADEE FLOORING LTD,DLO Day to Day Trades,140,Subcontractors Labour,SUB-CONTRACTOR,STANDARD,4010,KAAA-Directorate of Economic Growth and Neighbourhood Services
RBC Legal Entity,04/01/2022,4631691,266927,MEADEE FLOORING LTD,DLO Day to Day Trades,330,Subcontractors Labour,SUB-CONTRACTOR,STANDARD,4010,KAAA-Directorate of Economic Growth and Neighbourhood Services
RBC Legal Entity,04/01/2022,4631692,266927,MEADEE FLOORING LTD,Payroll + Payments A/c,-46,System Creditors,SUB-CONTRACTOR,CREDIT,9823,ZZZB-Balance Sheet
RBC Legal Entity,04/01/2022,4631692,266927,MEADEE FLOORING LTD,DLO Wokingham Trades,230,Subcontractors Labour,SUB-CONTRACTOR,STANDARD,4050,KAAA-Directorate of Economic Growth and Neighbourhood Services
RBC Legal Entity,04/01/2022,4631692,266927,MEADEE FLOORING LTD,DLO Wokingham Trades,677,Subcontractors Labour,SUB-CONTRACTOR,STANDARD,4050,KAAA-Directorate of Economic Growth and Neighbourhood Services
RBC Legal Entity,04/01/2022,4631693,266927,MEADEE FLOORING LTD,Payroll + Payments A/c,-30,System Creditors,SUB-CONTRACTOR,CREDIT,9823,ZZZB-Balance Sheet
RBC Legal Entity,04/01/2022,4631693,266927,MEADEE FLOORING LTD,DLO Day to Day Trades,150,Subcontractors Labour,SUB-CONTRACTOR,STANDARD,4010,KAAA-Directorate of Economic Growth and Neighbourhood Services
RBC Legal Entity,04/01/2022,4631693,266927,MEADEE FLOORING LTD,DLO Day to Day Trades,599.85,Subcontractors Labour,SUB-CONTRACTOR,STANDARD,4010,KAAA-Directorate of Economic Growth and Neighbourhood Services
RBC Legal Entity,04/01/2022,4631694,266927,MEADEE FLOORING LTD,Payroll + Payments A/c,-28,System Creditors,SUB-CONTRACTOR,CREDIT,9823,ZZZB-Balance Sheet
RBC Legal Entity,04/01/2022,4631694,266927,MEADEE FLOORING LTD,DLO Day to Day Trades,140,Subcontractors Labour,SUB-CONTRACTOR,STANDARD,4010,KAAA-Directorate of Economic Growth and Neighbourhood Services
RBC Legal Entity,04/01/2022,4631694,266927,MEADEE FLOORING LTD,DLO Day to Day Trades,310,Subcontractors Labour,SUB-CONTRACTOR,STANDARD,4010,KAAA-Directorate of Economic Growth and Neighbourhood Services
RBC Legal Entity,04/01/2022,4631695,266927,MEADEE FLOORING LTD,Payroll + Payments A/c,-30,System Creditors,SUB-CONTRACTOR,CREDIT,9823,ZZZB-Balance Sheet
RBC Legal Entity,04/01/2022,4631695,266927,MEADEE FLOORING LTD,DLO Day to Day Trades,150,Subcontractors Labour,SUB-CONTRACTOR,STANDARD,4010,KAAA-Directorate of Economic Growth and Neighbourhood Services
RBC Legal Entity,04/01/2022,4631695,266927,MEADEE FLOORING LTD,DLO Day to Day Trades,390,Subcontractors Labour,SUB-CONTRACTOR,STANDARD,4010,KAAA-Directorate of Economic Growth and Neighbourhood Services
RBC Legal Entity,04/01/2022,4637901,266927,MEADEE FLOORING LTD,Private Sector Grants,1043.33,Grants (Paid out by RBC),SUB-CONTRACTOR,STANDARD,8500,ZZZC-Capital
RBC Legal Entity,04/01/2022,4637688,266928,SURECARE (READING & EAST BERKSHIRE),PS Acquired Community Services,1064,Purchased Care,Third Party Supplier,STANDARD,5771,JAAA-Directorate of Social Care and Health Services
RBC Legal Entity,04/01/2022,4637689,266928,SURECARE (READING & EAST BERKSHIRE),PS Acquired Community Services,3382,Purchased Care,Third Party Supplier,STANDARD,5771,JAAA-Directorate of Social Care and Health Services
RBC Legal Entity,04/01/2022,4637690,266928,SURECARE (READING & EAST BERKSHIRE),PS Acquired Community Services,2394,Purchased Care,Third Party Supplier,STANDARD,5771,JAAA-Directorate of Social Care and Health Services
RBC Legal Entity,04/01/2022,4637691,266928,SURECARE (READING & EAST BERKSHIRE),PS Acquired Community Services,2394,Purchased Care,Third Party Supplier,STANDARD,5771,JAAA-Directorate of Social Care and Health Services
RBC Legal Entity,04/01/2022,4637692,266928,SURECARE (READING & EAST BERKSHIRE),PS Acquired Community Services,2812,Purchased Care,Third Party Supplier,STANDARD,5771,JAAA-Directorate of Social Care and Health Services
RBC Legal Entity,04/01/2022,4637693,266928,SURECARE (READING & EAST BERKSHIRE),PS Acquired Community Services,956.97,Purchased Care,Third Party Supplier,STANDARD,5771,JAAA-Directorate of Social Care and Health Services
RBC Legal Entity,04/01/2022,4637694,266928,SURECARE (READING & EAST BERKSHIRE),PS Acquired Community Services,1425,Purchased Care,Third Party Supplier,STANDARD,5771,JAAA-Directorate of Social Care and Health Services
RBC Legal Entity,04/01/2022,4637695,266928,SURECARE (READING & EAST BERKSHIRE),Mental Health Community Services,1197,Purchased Care,Third Party Supplier,STANDARD,5731,JAAA-Directorate of Social Care and Health Services
RBC Legal Entity,04/01/2022,4637696,266928,SURECARE (READING & EAST BERKSHIRE),PS Acquired Community Services,1197,Purchased Care,Third Party Supplier,STANDARD,5771,JAAA-Directorate of Social Care and Health Services
RBC Legal Entity,04/01/2022,4637697,266928,SURECARE (READING & EAST BERKSHIRE),PS Acquired Community Services,3097,Purchased Care,Third Party Supplier,STANDARD,5771,JAAA-Directorate of Social Care and Health Services
RBC Legal Entity,04/01/2022,4637698,266928,SURECARE (READING & EAST BERKSHIRE),PS Acquired Community Services,1463,Purchased Care,Third Party Supplier,STANDARD,5771,JAAA-Directorate of Social Care and Health Services
RBC Legal Entity,04/01/2022,4637699,266928,SURECARE (READING & EAST BERKSHIRE),M&C Acquired Community Services,1197,Purchased Care,Third Party Supplier,STANDARD,5751,JAAA-Directorate of Social Care and Health Services
RBC Legal Entity,04/01/2022,4637700,266928,SURECARE (READING & EAST BERKSHIRE),PS Acquired Community Services,532,Purchased Care,Third Party Supplier,STANDARD,5771,JAAA-Directorate of Social Care and Health Services
RBC Legal Entity,04/01/2022,4637703,266928,SURECARE (READING & EAST BERKSHIRE),PS Acquired Community Services,2137.5,Purchased Care,Third Party Supplier,STANDARD,5771,JAAA-Directorate of Social Care and Health Services
RBC Legal Entity,04/01/2022,4637704,266928,SURECARE (READING & EAST BERKSHIRE),Sensory Support Community Services,3192,Purchased Care,Third Party Supplier,STANDARD,5711,JAAA-Directorate of Social Care and Health Services
RBC Legal Entity,04/01/2022,4637706,266928,SURECARE (READING & EAST BERKSHIRE),PS Acquired Community Services,665,Purchased Care,Third Party Supplier,STANDARD,5771,JAAA-Directorate of Social Care and Health Services
RBC Legal Entity,04/01/2022,4637707,266928,SURECARE (READING & EAST BERKSHIRE),PS Acquired Community Services,1220.75,Purchased Care,Third Party Supplier,STANDARD,5771,JAAA-Directorate of Social Care and Health Services
RBC Legal Entity,04/01/2022,4637708,266928,SURECARE (READING & EAST BERKSHIRE),M&C Acquired Community Services,1064,Purchased Care,Third Party Supplier,STANDARD,5751,JAAA-Directorate of Social Care and Health Services
RBC Legal Entity,04/01/2022,4637711,266928,SURECARE (READING & EAST BERKSHIRE),PS Acquired Community Services,931,Purchased Care,Third Party Supplier,STANDARD,5771,JAAA-Directorate of Social Care and Health Services
RBC Legal Entity,04/01/2022,4632717,266929,RESPONSE ORGANISATION,Mental Health Community Services,1753.71,Purchased Care,Third Party Supplier,STANDARD,5731,JAAA-Directorate of Social Care and Health Services
RBC Legal Entity,04/01/2022,4632718,266929,RESPONSE ORGANISATION,Mental Health Community Services,1818.6,Purchased Care,Third Party Supplier,STANDARD,5731,JAAA-Directorate of Social Care and Health Services
RBC Legal Entity,04/01/2022,4632719,266929,RESPONSE ORGANISATION,Mental Health Community Services,1753.71,Purchased Care,Third Party Supplier,STANDARD,5731,JAAA-Directorate of Social Care and Health Services
RBC Legal Entity,04/01/2022,4632720,266929,RESPONSE ORGANISATION,Mental Health Community Services,1753.71,Purchased Care,Third Party Supplier,STANDARD,5731,JAAA-Directorate of Social Care and Health Services
RBC Legal Entity,04/01/2022,4632721,266929,RESPONSE ORGANISATION,Mental Health Community Services,1753.71,Purchased Care,Third Party Supplier,STANDARD,5731,JAAA-Directorate of Social Care and Health Services
RBC Legal Entity,04/01/2022,4631611,266931,PRESTIGE SWIMMING POOLS LTD,Corporate Maintenance Services,1507,Materials Direct,Third Party Supplier,STANDARD,4080,KAAA-Directorate of Economic Growth and Neighbourhood Services
RBC Legal Entity,04/01/2022,4626070,266932,FCC RECYCLING (UK) LTD,Refuse Collection,6259.6,Tipping Charge,SUPPLIER,STANDARD,4561,KAAA-Directorate of Economic Growth and Neighbourhood Services
RBC Legal Entity,04/01/2022,4626122,266932,FCC RECYCLING (UK) LTD,Grounds Maintenance,501.86,Parks Tipping,SUPPLIER,STANDARD,1306,KAAA-Directorate of Economic Growth and Neighbourhood Services
RBC Legal Entity,04/01/2022,4632210,266933,URBANCRAZY (MOBILE) LTD,Parks + Open Spaces,15521.5,Building Works,Third Party Supplier,STANDARD,8003,ZZZC-Capital
RBC Legal Entity,04/01/2022,4636742,266933,URBANCRAZY (MOBILE) LTD,Parks + Open Spaces,1300,Building Works,Third Party Supplier,STANDARD,8003,ZZZC-Capital
RBC Legal Entity,04/01/2022,4631967,266934,INDIGO ACCESS LTD,Sensory Support Community Services,540,Purchased Care,Third Party Supplier,STANDARD,5711,JAAA-Directorate of Social Care and Health Services
RBC Legal Entity,04/01/2022,4631968,266934,INDIGO ACCESS LTD,Sensory Support Community Services,450,Purchased Care,Third Party Supplier,STANDARD,5711,JAAA-Directorate of Social Care and Health Services
RBC Legal Entity,04/01/2022,4636476,266936,ROYLE CARE LTD,PS Acquired Community Services,1330,Purchased Care,Third Party Supplier,STANDARD,5771,JAAA-Directorate of Social Care and Health Services
RBC Legal Entity,04/01/2022,4636479,266936,ROYLE CARE LTD,PS Acquired Community Services,2280,Purchased Care,Third Party Supplier,STANDARD,5771,JAAA-Directorate of Social Care and Health Services
RBC Legal Entity,04/01/2022,4636481,266936,ROYLE CARE LTD,PS Acquired Community Services,779,Purchased Care,Third Party Supplier,STANDARD,5771,JAAA-Directorate of Social Care and Health Services
RBC Legal Entity,04/01/2022,4636489,266936,ROYLE CARE LTD,PS Acquired Community Services,2375,Purchased Care,Third Party Supplier,STANDARD,5771,JAAA-Directorate of Social Care and Health Services
RBC Legal Entity,04/01/2022,4636500,266936,ROYLE CARE LTD,PS Acquired Community Services,2394,Purchased Care,Third Party Supplier,STANDARD,5771,JAAA-Directorate of Social Care and Health Services
RBC Legal Entity,04/01/2022,4636503,266936,ROYLE CARE LTD,M&C Acquired Community Services,3173,Purchased Care,Third Party Supplier,STANDARD,5751,JAAA-Directorate of Social Care and Health Services
RBC Legal Entity,04/01/2022,4636504,266936,ROYLE CARE LTD,Mental Health Community Services,522.5,Purchased Care,Third Party Supplier,STANDARD,5731,JAAA-Directorate of Social Care and Health Services
RBC Legal Entity,04/01/2022,4636505,266936,ROYLE CARE LTD,PS Acquired Community Services,1900,Purchased Care,Third Party Supplier,STANDARD,5771,JAAA-Directorate of Social Care and Health Services
RBC Legal Entity,04/01/2022,4636509,266936,ROYLE CARE LTD,PS Acquired Community Services,2128,Purchased Care,Third Party Supplier,STANDARD,5771,JAAA-Directorate of Social Care and Health Services
RBC Legal Entity,04/01/2022,4636510,266936,ROYLE CARE LTD,PS Acquired Community Services,2394,Purchased Care,Third Party Supplier,STANDARD,5771,JAAA-Directorate of Social Care and Health Services
RBC Legal Entity,04/01/2022,4636511,266936,ROYLE CARE LTD,PS Acquired Community Services,2413,Purchased Care,Third Party Supplier,STANDARD,5771,JAAA-Directorate of Social Care and Health Services
RBC Legal Entity,04/01/2022,4636514,266936,ROYLE CARE LTD,PS Acquired Community Services,1068.75,Purchased Care,Third Party Supplier,STANDARD,5771,JAAA-Directorate of Social Care and Health Services
RBC Legal Entity,04/01/2022,4636517,266936,ROYLE CARE LTD,PS Acquired Community Services,1064,Purchased Care,Third Party Supplier,STANDARD,5771,JAAA-Directorate of Social Care and Health Services
RBC Legal Entity,04/01/2022,4636518,266936,ROYLE CARE LTD,PS Acquired Community Services,2394,Purchased Care,Third Party Supplier,STANDARD,5771,JAAA-Directorate of Social Care and Health Services
RBC Legal Entity,04/01/2022,4636520,266936,ROYLE CARE LTD,PS Acquired Community Services,2394,Purchased Care,Third Party Supplier,STANDARD,5771,JAAA-Directorate of Social Care and Health Services
RBC Legal Entity,04/01/2022,4636521,266936,ROYLE CARE LTD,PS Acquired Community Services,2394,Purchased Care,Third Party Supplier,STANDARD,5771,JAAA-Directorate of Social Care and Health Services
RBC Legal Entity,04/01/2022,4636522,266936,ROYLE CARE LTD,PS Acquired Community Services,636.5,Purchased Care,Third Party Supplier,STANDARD,5771,JAAA-Directorate of Social Care and Health Services
RBC Legal Entity,04/01/2022,4636523,266936,ROYLE CARE LTD,PS Acquired Community Services,2641,Purchased Care,Third Party Supplier,STANDARD,5771,JAAA-Directorate of Social Care and Health Services
RBC Legal Entity,04/01/2022,4636531,266936,ROYLE CARE LTD,PS Acquired Community Services,2394,Purchased Care,Third Party Supplier,STANDARD,5771,JAAA-Directorate of Social Care and Health Services
RBC Legal Entity,04/01/2022,4636547,266936,ROYLE CARE LTD,PS Acquired Community Services,1064,Purchased Care,Third Party Supplier,STANDARD,5771,JAAA-Directorate of Social Care and Health Services
RBC Legal Entity,04/01/2022,4636553,266936,ROYLE CARE LTD,PS Acquired Community Services,2109,Purchased Care,Third Party Supplier,STANDARD,5771,JAAA-Directorate of Social Care and Health Services
RBC Legal Entity,04/01/2022,4636559,266936,ROYLE CARE LTD,PS Acquired Community Services,2394,Purchased Care,Third Party Supplier,STANDARD,5771,JAAA-Directorate of Social Care and Health Services
RBC Legal Entity,04/01/2022,4636567,266936,ROYLE CARE LTD,PS Acquired Community Services,798,Purchased Care,Third Party Supplier,STANDARD,5771,JAAA-Directorate of Social Care and Health Services
RBC Legal Entity,04/01/2022,4636568,266936,ROYLE CARE LTD,PS Acquired Community Services,2688.5,Purchased Care,Third Party Supplier,STANDARD,5771,JAAA-Directorate of Social Care and Health Services
RBC Legal Entity,04/01/2022,4638448,266938,CLAIRE SHRIMPTON,JLT Disbursements,1150,Misc. Legal Expenses,SUPPLIER,STANDARD,2407,LAAA-Directorate of Resources
RBC Legal Entity,04/01/2022,4632270,266939,SALVATION ARMY SOCIAL SERVICES FINANCE,Housing GF General Charges,40000,Preventive+SupportiveServ,Third Party Supplier,STANDARD,5810,KAAA-Directorate of Economic Growth and Neighbourhood Services
RBC Legal Entity,04/01/2022,4631468,266940,READING HAMPSHIRE PROPERTY PARTNERSHIP LIMITED,Corporate FM - Community Buildings,790.5,Equipment Purchase & Repair,Third Party Supplier,STANDARD,3739,KAAA-Directorate of Economic Growth and Neighbourhood Services
RBC Legal Entity,04/01/2022,4632205,266940,READING HAMPSHIRE PROPERTY PARTNERSHIP LIMITED,Meadway development,263.68,External Fees  Misc.,Third Party Supplier,STANDARD,8262,ZZZC-Capital
RBC Legal Entity,04/01/2022,4632205,266940,READING HAMPSHIRE PROPERTY PARTNERSHIP LIMITED,Holy Brook,266.08,External Fees  Misc.,Third Party Supplier,STANDARD,8263,ZZZC-Capital
RBC Legal Entity,04/01/2022,4632205,266940,READING HAMPSHIRE PROPERTY PARTNERSHIP LIMITED,Blagdon Nursery,268.48,External Fees  Misc.,Third Party Supplier,STANDARD,8246,ZZZC-Capital
RBC Legal Entity,04/01/2022,4632205,266940,READING HAMPSHIRE PROPERTY PARTNERSHIP LIMITED,Caversham Park Primary,275.67,External Fees  Misc.,Third Party Supplier,STANDARD,8210,ZZZC-Capital
RBC Legal Entity,04/01/2022,4632205,266940,READING HAMPSHIRE PROPERTY PARTNERSHIP LIMITED,Coley Primary,282.06,External Fees  Misc.,Third Party Supplier,STANDARD,8212,ZZZC-Capital
RBC Legal Entity,04/01/2022,4632205,266940,READING HAMPSHIRE PROPERTY PARTNERSHIP LIMITED,Blagrave Nursery,283.66,External Fees  Misc.,Third Party Supplier,STANDARD,8247,ZZZC-Capital
RBC Legal Entity,04/01/2022,4632205,266940,READING HAMPSHIRE PROPERTY PARTNERSHIP LIMITED,Redlands Primary,293.25,External Fees  Misc.,Third Party Supplier,STANDARD,8227,ZZZC-Capital
RBC Legal Entity,04/01/2022,4632205,266940,READING HAMPSHIRE PROPERTY PARTNERSHIP LIMITED,Nrcot Nursery,300.44,External Fees  Misc.,Third Party Supplier,STANDARD,8250,ZZZC-Capital
RBC Legal Entity,04/01/2022,4632205,266940,READING HAMPSHIRE PROPERTY PARTNERSHIP LIMITED,Thameside Primary,320.42,External Fees  Misc.,Third Party Supplier,STANDARD,8231,ZZZC-Capital
RBC Legal Entity,04/01/2022,4632205,266940,READING HAMPSHIRE PROPERTY PARTNERSHIP LIMITED,Southcote Primary,449.06,External Fees  Misc.,Third Party Supplier,STANDARD,8229,ZZZC-Capital
RBC Legal Entity,04/01/2022,4632205,266940,READING HAMPSHIRE PROPERTY PARTNERSHIP LIMITED,Manor Primary,465.84,External Fees  Misc.,Third Party Supplier,STANDARD,8220,ZZZC-Capital
RBC Legal Entity,04/01/2022,4632205,266940,READING HAMPSHIRE PROPERTY PARTNERSHIP LIMITED,The Hill Primary,470.64,External Fees  Misc.,Third Party Supplier,STANDARD,8218,ZZZC-Capital
RBC Legal Entity,04/01/2022,4632205,266940,READING HAMPSHIRE PROPERTY PARTNERSHIP LIMITED,Micklands Primary,560.93,External Fees  Misc.,Third Party Supplier,STANDARD,8221,ZZZC-Capital
RBC Legal Entity,04/01/2022,4632205,266940,READING HAMPSHIRE PROPERTY PARTNERSHIP LIMITED,St Michael's Primary,560.93,External Fees  Misc.,Third Party Supplier,STANDARD,8230,ZZZC-Capital
RBC Legal Entity,04/01/2022,4632205,266940,READING HAMPSHIRE PROPERTY PARTNERSHIP LIMITED,The Ridgeway Primary,562.53,External Fees  Misc.,Third Party Supplier,STANDARD,8228,ZZZC-Capital
RBC Legal Entity,04/01/2022,4632205,266940,READING HAMPSHIRE PROPERTY PARTNERSHIP LIMITED,Caversham Primary,564.92,External Fees  Misc.,Third Party Supplier,STANDARD,8209,ZZZC-Capital
RBC Legal Entity,04/01/2022,4632205,266940,READING HAMPSHIRE PROPERTY PARTNERSHIP LIMITED,Moorlands Primary,570.52,External Fees  Misc.,Third Party Supplier,STANDARD,8222,ZZZC-Capital
RBC Legal Entity,04/01/2022,4632205,266940,READING HAMPSHIRE PROPERTY PARTNERSHIP LIMITED,Geoffrey Field Infant,577.71,External Fees  Misc.,Third Party Supplier,STANDARD,8215,ZZZC-Capital
RBC Legal Entity,04/01/2022,4632205,266940,READING HAMPSHIRE PROPERTY PARTNERSHIP LIMITED,Alfred Sutton Primary,653.61,External Fees  Misc.,Third Party Supplier,STANDARD,8207,ZZZC-Capital
RBC Legal Entity,04/01/2022,4632308,266940,READING HAMPSHIRE PROPERTY PARTNERSHIP LIMITED,Oxford Road Primary,50.31,External Fees  Misc.,Third Party Supplier,STANDARD,8224,ZZZC-Capital
RBC Legal Entity,04/01/2022,4632308,266940,READING HAMPSHIRE PROPERTY PARTNERSHIP LIMITED,Park Lane Primary,50.31,External Fees  Misc.,Third Party Supplier,STANDARD,8225,ZZZC-Capital
RBC Legal Entity,04/01/2022,4632308,266940,READING HAMPSHIRE PROPERTY PARTNERSHIP LIMITED,Wilson Primary,92.22,External Fees  Misc.,Third Party Supplier,STANDARD,8235,ZZZC-Capital
RBC Legal Entity,04/01/2022,4632308,266940,READING HAMPSHIRE PROPERTY PARTNERSHIP LIMITED,Katesgrove Primary,201.25,External Fees  Misc.,Third Party Supplier,STANDARD,8219,ZZZC-Capital
RBC Legal Entity,04/01/2022,4632308,266940,READING HAMPSHIRE PROPERTY PARTNERSHIP LIMITED,Emmer Green Primary,251.54,External Fees  Misc.,Third Party Supplier,STANDARD,8214,ZZZC-Capital
RBC Legal Entity,04/01/2022,4632308,266940,READING HAMPSHIRE PROPERTY PARTNERSHIP LIMITED,The Hill Primary,368.63,External Fees  Misc.,Third Party Supplier,STANDARD,8218,ZZZC-Capital
RBC Legal Entity,04/01/2022,4632308,266940,READING HAMPSHIRE PROPERTY PARTNERSHIP LIMITED,Whitley Park Infant,670.78,External Fees  Misc.,Third Party Supplier,STANDARD,8233,ZZZC-Capital
RBC Legal Entity,04/01/2022,4633015,266940,READING HAMPSHIRE PROPERTY PARTNERSHIP LIMITED,The Hill Primary,43.41,External Fees  Misc.,Third Party Supplier,STANDARD,8218,ZZZC-Capital
RBC Legal Entity,04/01/2022,4633015,266940,READING HAMPSHIRE PROPERTY PARTNERSHIP LIMITED,Meadway development,44.43,External Fees  Misc.,Third Party Supplier,STANDARD,8262,ZZZC-Capital
RBC Legal Entity,04/01/2022,4633015,266940,READING HAMPSHIRE PROPERTY PARTNERSHIP LIMITED,Moorlands Primary,105.29,External Fees  Misc.,Third Party Supplier,STANDARD,8222,ZZZC-Capital
RBC Legal Entity,04/01/2022,4633015,266940,READING HAMPSHIRE PROPERTY PARTNERSHIP LIMITED,E P Collier Primary,115.55,External Fees  Misc.,Third Party Supplier,STANDARD,8213,ZZZC-Capital
RBC Legal Entity,04/01/2022,4633015,266940,READING HAMPSHIRE PROPERTY PARTNERSHIP LIMITED,Thameside Primary,137.06,External Fees  Misc.,Third Party Supplier,STANDARD,8231,ZZZC-Capital
RBC Legal Entity,04/01/2022,4633015,266940,READING HAMPSHIRE PROPERTY PARTNERSHIP LIMITED,Park Lane Primary,192.57,External Fees  Misc.,Third Party Supplier,STANDARD,8225,ZZZC-Capital
RBC Legal Entity,04/01/2022,4633015,266940,READING HAMPSHIRE PROPERTY PARTNERSHIP LIMITED,Coley Primary,285.3,External Fees  Misc.,Third Party Supplier,STANDARD,8212,ZZZC-Capital
RBC Legal Entity,04/01/2022,4637603,266940,READING HAMPSHIRE PROPERTY PARTNERSHIP LIMITED,Alfred Sutton Primary,-299.39,External Fees  Misc.,Third Party Supplier,CREDIT,8207,ZZZC-Capital
RBC Legal Entity,04/01/2022,4637603,266940,READING HAMPSHIRE PROPERTY PARTNERSHIP LIMITED,Geoffrey Field Infant,-264.62,External Fees  Misc.,Third Party Supplier,CREDIT,8215,ZZZC-Capital
RBC Legal Entity,04/01/2022,4637603,266940,READING HAMPSHIRE PROPERTY PARTNERSHIP LIMITED,Moorlands Primary,-261.33,External Fees  Misc.,Third Party Supplier,CREDIT,8222,ZZZC-Capital
RBC Legal Entity,04/01/2022,4637603,266940,READING HAMPSHIRE PROPERTY PARTNERSHIP LIMITED,Caversham Primary,-258.76,External Fees  Misc.,Third Party Supplier,CREDIT,8209,ZZZC-Capital
RBC Legal Entity,04/01/2022,4637603,266940,READING HAMPSHIRE PROPERTY PARTNERSHIP LIMITED,The Ridgeway Primary,-257.67,External Fees  Misc.,Third Party Supplier,CREDIT,8228,ZZZC-Capital
RBC Legal Entity,04/01/2022,4637603,266940,READING HAMPSHIRE PROPERTY PARTNERSHIP LIMITED,Micklands Primary,-256.93,External Fees  Misc.,Third Party Supplier,CREDIT,8221,ZZZC-Capital
RBC Legal Entity,04/01/2022,4637603,266940,READING HAMPSHIRE PROPERTY PARTNERSHIP LIMITED,St Michael's Primary,-256.93,External Fees  Misc.,Third Party Supplier,CREDIT,8230,ZZZC-Capital
RBC Legal Entity,04/01/2022,4637603,266940,READING HAMPSHIRE PROPERTY PARTNERSHIP LIMITED,The Hill Primary,-215.58,External Fees  Misc.,Third Party Supplier,CREDIT,8218,ZZZC-Capital
RBC Legal Entity,04/01/2022,4637603,266940,READING HAMPSHIRE PROPERTY PARTNERSHIP LIMITED,Manor Primary,-213.38,External Fees  Misc.,Third Party Supplier,CREDIT,8220,ZZZC-Capital
RBC Legal Entity,04/01/2022,4637603,266940,READING HAMPSHIRE PROPERTY PARTNERSHIP LIMITED,Southcote Primary,-205.69,External Fees  Misc.,Third Party Supplier,CREDIT,8229,ZZZC-Capital
RBC Legal Entity,04/01/2022,4637603,266940,READING HAMPSHIRE PROPERTY PARTNERSHIP LIMITED,Thameside Primary,-146.77,External Fees  Misc.,Third Party Supplier,CREDIT,8231,ZZZC-Capital
RBC Legal Entity,04/01/2022,4637603,266940,READING HAMPSHIRE PROPERTY PARTNERSHIP LIMITED,Nrcot Nursery,-137.62,External Fees  Misc.,Third Party Supplier,CREDIT,8250,ZZZC-Capital
RBC Legal Entity,04/01/2022,4637603,266940,READING HAMPSHIRE PROPERTY PARTNERSHIP LIMITED,Redlands Primary,-134.32,External Fees  Misc.,Third Party Supplier,CREDIT,8227,ZZZC-Capital
RBC Legal Entity,04/01/2022,4637603,266940,READING HAMPSHIRE PROPERTY PARTNERSHIP LIMITED,Blagrave Nursery,-129.93,External Fees  Misc.,Third Party Supplier,CREDIT,8247,ZZZC-Capital
RBC Legal Entity,04/01/2022,4637603,266940,READING HAMPSHIRE PROPERTY PARTNERSHIP LIMITED,Coley Primary,-129.2,External Fees  Misc.,Third Party Supplier,CREDIT,8212,ZZZC-Capital
RBC Legal Entity,04/01/2022,4637603,266940,READING HAMPSHIRE PROPERTY PARTNERSHIP LIMITED,Caversham Park Primary,-126.27,External Fees  Misc.,Third Party Supplier,CREDIT,8210,ZZZC-Capital
RBC Legal Entity,04/01/2022,4637603,266940,READING HAMPSHIRE PROPERTY PARTNERSHIP LIMITED,Blagdon Nursery,-123.16,External Fees  Misc.,Third Party Supplier,CREDIT,8246,ZZZC-Capital
RBC Legal Entity,04/01/2022,4637603,266940,READING HAMPSHIRE PROPERTY PARTNERSHIP LIMITED,Holy Brook,-121.87,External Fees  Misc.,Third Party Supplier,CREDIT,8263,ZZZC-Capital
RBC Legal Entity,04/01/2022,4637603,266940,READING HAMPSHIRE PROPERTY PARTNERSHIP LIMITED,Meadway development,-120.78,External Fees  Misc.,Third Party Supplier,CREDIT,8262,ZZZC-Capital
RBC Legal Entity,04/01/2022,4637604,266940,READING HAMPSHIRE PROPERTY PARTNERSHIP LIMITED,Meadway development,120.78,External Fees  Misc.,Third Party Supplier,STANDARD,8262,ZZZC-Capital
RBC Legal Entity,04/01/2022,4637604,266940,READING HAMPSHIRE PROPERTY PARTNERSHIP LIMITED,Holy Brook,121.87,External Fees  Misc.,Third Party Supplier,STANDARD,8263,ZZZC-Capital
RBC Legal Entity,04/01/2022,4637604,266940,READING HAMPSHIRE PROPERTY PARTNERSHIP LIMITED,Blagdon Nursery,122.98,External Fees  Misc.,Third Party Supplier,STANDARD,8246,ZZZC-Capital
RBC Legal Entity,04/01/2022,4637604,266940,READING HAMPSHIRE PROPERTY PARTNERSHIP LIMITED,Caversham Park Primary,126.27,External Fees  Misc.,Third Party Supplier,STANDARD,8210,ZZZC-Capital
RBC Legal Entity,04/01/2022,4637604,266940,READING HAMPSHIRE PROPERTY PARTNERSHIP LIMITED,Coley Primary,129.2,External Fees  Misc.,Third Party Supplier,STANDARD,8212,ZZZC-Capital
RBC Legal Entity,04/01/2022,4637604,266940,READING HAMPSHIRE PROPERTY PARTNERSHIP LIMITED,Blagrave Nursery,129.93,External Fees  Misc.,Third Party Supplier,STANDARD,8247,ZZZC-Capital
RBC Legal Entity,04/01/2022,4637604,266940,READING HAMPSHIRE PROPERTY PARTNERSHIP LIMITED,Redlands Primary,134.32,External Fees  Misc.,Third Party Supplier,STANDARD,8227,ZZZC-Capital
RBC Legal Entity,04/01/2022,4637604,266940,READING HAMPSHIRE PROPERTY PARTNERSHIP LIMITED,Nrcot Nursery,137.62,External Fees  Misc.,Third Party Supplier,STANDARD,8250,ZZZC-Capital
RBC Legal Entity,04/01/2022,4637604,266940,READING HAMPSHIRE PROPERTY PARTNERSHIP LIMITED,Thameside Primary,146.77,External Fees  Misc.,Third Party Supplier,STANDARD,8231,ZZZC-Capital
RBC Legal Entity,04/01/2022,4637604,266940,READING HAMPSHIRE PROPERTY PARTNERSHIP LIMITED,Southcote Primary,205.69,External Fees  Misc.,Third Party Supplier,STANDARD,8229,ZZZC-Capital
RBC Legal Entity,04/01/2022,4637604,266940,READING HAMPSHIRE PROPERTY PARTNERSHIP LIMITED,Manor Primary,213.38,External Fees  Misc.,Third Party Supplier,STANDARD,8220,ZZZC-Capital
RBC Legal Entity,04/01/2022,4637604,266940,READING HAMPSHIRE PROPERTY PARTNERSHIP LIMITED,The Hill Primary,215.58,External Fees  Misc.,Third Party Supplier,STANDARD,8218,ZZZC-Capital
RBC Legal Entity,04/01/2022,4637604,266940,READING HAMPSHIRE PROPERTY PARTNERSHIP LIMITED,Micklands Primary,256.93,External Fees  Misc.,Third Party Supplier,STANDARD,8221,ZZZC-Capital
RBC Legal Entity,04/01/2022,4637604,266940,READING HAMPSHIRE PROPERTY PARTNERSHIP LIMITED,St Michael's Primary,256.93,External Fees  Misc.,Third Party Supplier,STANDARD,8230,ZZZC-Capital
RBC Legal Entity,04/01/2022,4637604,266940,READING HAMPSHIRE PROPERTY PARTNERSHIP LIMITED,The Ridgeway Primary,257.67,External Fees  Misc.,Third Party Supplier,STANDARD,8228,ZZZC-Capital
RBC Legal Entity,04/01/2022,4637604,266940,READING HAMPSHIRE PROPERTY PARTNERSHIP LIMITED,Caversham Primary,258.76,External Fees  Misc.,Third Party Supplier,STANDARD,8209,ZZZC-Capital
RBC Legal Entity,04/01/2022,4637604,266940,READING HAMPSHIRE PROPERTY PARTNERSHIP LIMITED,Moorlands Primary,261.33,External Fees  Misc.,Third Party Supplier,STANDARD,8222,ZZZC-Capital
RBC Legal Entity,04/01/2022,4637604,266940,READING HAMPSHIRE PROPERTY PARTNERSHIP LIMITED,Geoffrey Field Infant,264.62,External Fees  Misc.,Third Party Supplier,STANDARD,8215,ZZZC-Capital
RBC Legal Entity,04/01/2022,4637604,266940,READING HAMPSHIRE PROPERTY PARTNERSHIP LIMITED,Alfred Sutton Primary,299.39,External Fees  Misc.,Third Party Supplier,STANDARD,8207,ZZZC-Capital
RBC Legal Entity,04/01/2022,4625917,266941,ASCENTIS,New Directions,540,Examination Fees,SUPPLIER,STANDARD,3340,KAAA-Directorate of Economic Growth and Neighbourhood Services
RBC Legal Entity,04/01/2022,4627638,266944,DENNIS EAGLE LTD,Fleet Management,27.5,Unfair Wear + Tear Costs,SUPPLIER,STANDARD,4552,KAAA-Directorate of Economic Growth and Neighbourhood Services
RBC Legal Entity,04/01/2022,4627638,266944,DENNIS EAGLE LTD,Fleet Management,111.83,Unfair Wear + Tear Costs,SUPPLIER,STANDARD,4552,KAAA-Directorate of Economic Growth and Neighbourhood Services
RBC Legal Entity,04/01/2022,4627638,266944,DENNIS EAGLE LTD,Fleet Management,229.5,Unfair Wear + Tear Costs,SUPPLIER,STANDARD,4552,KAAA-Directorate of Economic Growth and Neighbourhood Services
RBC Legal Entity,04/01/2022,4627638,266944,DENNIS EAGLE LTD,Fleet Management,251.25,Unfair Wear + Tear Costs,SUPPLIER,STANDARD,4552,KAAA-Directorate of Economic Growth and Neighbourhood Services
RBC Legal Entity,04/01/2022,4627638,266944,DENNIS EAGLE LTD,Fleet Management,350.28,Unfair Wear + Tear Costs,SUPPLIER,STANDARD,4552,KAAA-Directorate of Economic Growth and Neighbourhood Services
RBC Legal Entity,04/01/2022,4627638,266944,DENNIS EAGLE LTD,Fleet Management,616.02,Unfair Wear + Tear Costs,SUPPLIER,STANDARD,4552,KAAA-Directorate of Economic Growth and Neighbourhood Services
RBC Legal Entity,04/01/2022,4635341,266945,M&D SERVICES,Parks + Open Spaces,595,Landscaping,SUB-CONTRACTOR,STANDARD,8003,ZZZC-Capital
RBC Legal Entity,04/01/2022,4636841,266946,AQUATEC AQUARIUMS,Sheltered Housing,3487.68,Other Office Expenses,SUPPLIER,STANDARD,5940,HAAA-Housing Revenue Account
RBC Legal Entity,04/01/2022,4627628,266948,2 START LTD,DEGNS Management,580,Training & Development Costs,Third Party Supplier,STANDARD,1500,KAAA-Directorate of Economic Growth and Neighbourhood Services
RBC Legal Entity,04/01/2022,4627628,266948,2 START LTD,DEGNS Management,2433.33,Training & Development Costs,Third Party Supplier,STANDARD,1500,KAAA-Directorate of Economic Growth and Neighbourhood Services
RBC Legal Entity,04/01/2022,4620133,266950,ARIA BUILDING SERVICES LTD T/A ARIA CLIMATE SYSTEMS,Archives General,1100,Plant Maintenance,SUB-CONTRACTOR,STANDARD,1256,KAAA-Directorate of Economic Growth and Neighbourhood Services
RBC Legal Entity,04/01/2022,4620139,266950,ARIA BUILDING SERVICES LTD T/A ARIA CLIMATE SYSTEMS,Archives General,1168.25,Plant Maintenance,SUB-CONTRACTOR,STANDARD,1256,KAAA-Directorate of Economic Growth and Neighbourhood Services
RBC Legal Entity,04/01/2022,4625979,266951,CONSTRUCTION INDUSTRY TRAINING PROVIDERS LTD,DEGNS Management,700,Training & Development Costs,SUPPLIER,STANDARD,1500,KAAA-Directorate of Economic Growth and Neighbourhood Services
RBC Legal Entity,04/01/2022,4620153,266952,VP-AV LIMITED,Coroner,3864,Software Licences,SUPPLIER,STANDARD,4605,KAAA-Directorate of Economic Growth and Neighbourhood Services
RBC Legal Entity,04/01/2022,4626249,266954,GET BERKSHIRE ACTIVE,ASC Voluntary Grants,2000,GrantsVolunt.Organ.,Third Party Supplier,STANDARD,5300,JAAA-Directorate of Social Care and Health Services
RBC Legal Entity,04/01/2022,4631638,266955,WESSEX SITE INSPECTION LTD,Phoenix College (Reading Alternative),1500,External Fees  Misc.,SUPPLIER,STANDARD,8264,ZZZC-Capital
RBC Legal Entity,04/01/2022,4628439,266956,PROVIDE SESS LTD,Public Conveniences,900,Security costs,Third Party Supplier,STANDARD,4352,KAAA-Directorate of Economic Growth and Neighbourhood Services
RBC Legal Entity,04/01/2022,4631534,266956,PROVIDE SESS LTD,Grounds Maintenance,1056,TPP to Others,Third Party Supplier,STANDARD,1306,KAAA-Directorate of Economic Growth and Neighbourhood Services
RBC Legal Entity,04/01/2022,4626333,266957,FRANCES HARRIS,JLT Disbursements,675,Misc. Legal Expenses,SUPPLIER,STANDARD,2407,LAAA-Directorate of Resources
RBC Legal Entity,04/01/2022,4620084,266958,VICKY REYNOLDS,JLT Disbursements,633.33,Misc. Legal Expenses,Third Party Supplier,STANDARD,2407,LAAA-Directorate of Resources
RBC Legal Entity,04/01/2022,4620085,266958,VICKY REYNOLDS,JLT Disbursements,1100,Misc. Legal Expenses,Third Party Supplier,STANDARD,2407,LAAA-Directorate of Resources
RBC Legal Entity,04/01/2022,4620089,266958,VICKY REYNOLDS,JLT Disbursements,600,Misc. Legal Expenses,Third Party Supplier,STANDARD,2407,LAAA-Directorate of Resources
RBC Legal Entity,04/01/2022,4625842,266958,VICKY REYNOLDS,JLT Disbursements,550,Misc. Legal Expenses,Third Party Supplier,STANDARD,2407,LAAA-Directorate of Resources
RBC Legal Entity,04/01/2022,4620043,266960,G2 RECRUITMENT SOLUTIONS LTD,Building Control,1420.05,Consultancy Fees,SUPPLIER,STANDARD,4701,KAAA-Directorate of Economic Growth and Neighbourhood Services
RBC Legal Entity,04/01/2022,4620845,266960,G2 RECRUITMENT SOLUTIONS LTD,Building Control,1172.95,Consultancy Fees,SUPPLIER,STANDARD,4701,KAAA-Directorate of Economic Growth and Neighbourhood Services
RBC Legal Entity,04/01/2022,4627697,266960,G2 RECRUITMENT SOLUTIONS LTD,Planning,1706.06,Agency Staff,SUPPLIER,STANDARD,4700,KAAA-Directorate of Economic Growth and Neighbourhood Services
RBC Legal Entity,04/01/2022,4628061,266960,G2 RECRUITMENT SOLUTIONS LTD,Building Control,1411.5,Consultancy Fees,SUPPLIER,STANDARD,4701,KAAA-Directorate of Economic Growth and Neighbourhood Services
RBC Legal Entity,04/01/2022,4637909,266961,READING VOLUNTARY ACTION,Voluntary Sector & Community Grants,11250,GrantsVolunt.Organ.,SUPPLIER,STANDARD,2041,LAAA-Directorate of Resources
RBC Legal Entity,04/01/2022,4637909,266961,READING VOLUNTARY ACTION,Voluntary Sector & Community Grants,18250,GrantsVolunt.Organ.,SUPPLIER,STANDARD,2041,LAAA-Directorate of Resources
RBC Legal Entity,04/01/2022,4620086,266963,JAMES DOVE,JLT Disbursements,1120,Misc. Legal Expenses,Third Party Supplier,STANDARD,2407,LAAA-Directorate of Resources
RBC Legal Entity,04/01/2022,4625841,266963,JAMES DOVE,JLT Disbursements,735,Misc. Legal Expenses,Third Party Supplier,STANDARD,2407,LAAA-Directorate of Resources
RBC Legal Entity,04/01/2022,4620079,266965,BK SAFETY & WORKWEAR LTD,Highways,1271.5,Protective Clothing,SUPPLIER,STANDARD,4252,KAAA-Directorate of Economic Growth and Neighbourhood Services
RBC Legal Entity,04/01/2022,4631572,266967,PILON LTD,DLO Voids Trades,51527.13,Subcontractors Labour,SUB-CONTRACTOR,STANDARD,4020,KAAA-Directorate of Economic Growth and Neighbourhood Services
RBC Legal Entity,04/01/2022,4631574,266967,PILON LTD,DLO Kitchen & Bathroom Trades,45343.02,Subcontractors Labour,SUB-CONTRACTOR,STANDARD,4042,KAAA-Directorate of Economic Growth and Neighbourhood Services
RBC Legal Entity,04/01/2022,4637917,266967,PILON LTD,DLO Kitchen & Bathroom Trades,-45343.02,Subcontractors Labour,SUB-CONTRACTOR,CREDIT,4042,KAAA-Directorate of Economic Growth and Neighbourhood Services
RBC Legal Entity,04/01/2022,4619971,266968,TUVIDA,ASC Voluntary Grants,15000,GrantsVolunt.Organ.,Third Party Supplier,STANDARD,5300,JAAA-Directorate of Social Care and Health Services
RBC Legal Entity,04/01/2022,4619973,266968,TUVIDA,ASC Voluntary Grants,23750,GrantsVolunt.Organ.,Third Party Supplier,STANDARD,5300,JAAA-Directorate of Social Care and Health Services
RBC Legal Entity,04/01/2022,4619976,266968,TUVIDA,ASC Voluntary Grants,4053,Payments to Operators,Third Party Supplier,STANDARD,5300,JAAA-Directorate of Social Care and Health Services
RBC Legal Entity,04/01/2022,4632060,266968,TUVIDA,Sensory Support Community Services,661.5,Respite Care,Third Party Supplier,STANDARD,5711,JAAA-Directorate of Social Care and Health Services
RBC Legal Entity,04/01/2022,4632062,266968,TUVIDA,Social Support,588,Purchased Care,Third Party Supplier,STANDARD,5790,JAAA-Directorate of Social Care and Health Services
RBC Legal Entity,04/01/2022,4620033,266970,ERNST & YOUNG LLP,Corporate Miscellaneous,14000,Audit Fees,SUPPLIER,STANDARD,2855,MAAA-Corporate Codes
RBC Legal Entity,05/01/2022,4639380,266972,SEEABILITY,LD Residential,-425.6,Client Contrib. Residential,SUPPLIER,CREDIT,5742,JAAA-Directorate of Social Care and Health Services
RBC Legal Entity,05/01/2022,4639380,266972,SEEABILITY,LD Residential,9143.44,Purchased Care,SUPPLIER,STANDARD,5742,JAAA-Directorate of Social Care and Health Services
RBC Legal Entity,05/01/2022,4635367,266974,TRANSFORM READING,Consumer Protection,3949.12,Professional Fees,Third Party Supplier,STANDARD,4601,KAAA-Directorate of Economic Growth and Neighbourhood Services
RBC Legal Entity,05/01/2022,4635456,266974,TRANSFORM READING,Consumer Protection,3949.12,Professional Fees,Third Party Supplier,STANDARD,4601,KAAA-Directorate of Economic Growth and Neighbourhood Services
RBC Legal Entity,05/01/2022,4637899,266975,HAMPTONS RESOURCING LTD,Commissioning Team,2500,Agency Staff,Third Party Supplier,STANDARD,3452,JAAA-Directorate of Social Care and Health Services
RBC Legal Entity,05/01/2022,4639330,266976,REACH LTD,LD Residential,6179.52,Purchased Care,SUPPLIER,STANDARD,5742,JAAA-Directorate of Social Care and Health Services
RBC Legal Entity,05/01/2022,4639388,266976,REACH LTD,LD Nursing,2678.76,Purchased Care,SUPPLIER,STANDARD,5743,JAAA-Directorate of Social Care and Health Services
RBC Legal Entity,05/01/2022,4638345,266978,M&D SERVICES,Grounds Maintenance,2000,TPP to Others,SUB-CONTRACTOR,STANDARD,1306,KAAA-Directorate of Economic Growth and Neighbourhood Services
RBC Legal Entity,05/01/2022,4637628,266979,DNA LEGAL LTD,JLT Disbursements,568,Misc. Legal Expenses,SUPPLIER,STANDARD,2407,LAAA-Directorate of Resources
RBC Legal Entity,05/01/2022,4639260,266981,CHOICE LIMITED,LD Residential,6648,Purchased Care,SUPPLIER,STANDARD,5742,JAAA-Directorate of Social Care and Health Services
RBC Legal Entity,05/01/2022,4639279,266981,CHOICE LIMITED,Mental Health Residential,2854.72,Purchased Care,SUPPLIER,STANDARD,5732,JAAA-Directorate of Social Care and Health Services
RBC Legal Entity,05/01/2022,4639288,266981,CHOICE LIMITED,LD Residential,3539.64,Purchased Care,SUPPLIER,STANDARD,5742,JAAA-Directorate of Social Care and Health Services
RBC Legal Entity,05/01/2022,4639318,266981,CHOICE LIMITED,LD Residential,7800,Purchased Care,SUPPLIER,STANDARD,5742,JAAA-Directorate of Social Care and Health Services
RBC Legal Entity,05/01/2022,4639319,266981,CHOICE LIMITED,LD Residential,7200,Purchased Care,SUPPLIER,STANDARD,5742,JAAA-Directorate of Social Care and Health Services
RBC Legal Entity,05/01/2022,4639321,266981,CHOICE LIMITED,LD Residential,6936.44,Purchased Care,SUPPLIER,STANDARD,5742,JAAA-Directorate of Social Care and Health Services
RBC Legal Entity,05/01/2022,4639322,266981,CHOICE LIMITED,LD Residential,6072,Purchased Care,SUPPLIER,STANDARD,5742,JAAA-Directorate of Social Care and Health Services
RBC Legal Entity,05/01/2022,4639325,266981,CHOICE LIMITED,LD Residential,6788,Purchased Care,SUPPLIER,STANDARD,5742,JAAA-Directorate of Social Care and Health Services
RBC Legal Entity,05/01/2022,4639339,266981,CHOICE LIMITED,Mental Health Residential,6263.2,Purchased Care,SUPPLIER,STANDARD,5732,JAAA-Directorate of Social Care and Health Services
RBC Legal Entity,05/01/2022,4639378,266981,CHOICE LIMITED,LD Residential,7752,Purchased Care,SUPPLIER,STANDARD,5742,JAAA-Directorate of Social Care and Health Services
RBC Legal Entity,05/01/2022,4639384,266981,CHOICE LIMITED,LD Residential,9564.52,Purchased Care,SUPPLIER,STANDARD,5742,JAAA-Directorate of Social Care and Health Services
RBC Legal Entity,05/01/2022,4639387,266981,CHOICE LIMITED,LD Residential,6800,Purchased Care,SUPPLIER,STANDARD,5742,JAAA-Directorate of Social Care and Health Services
RBC Legal Entity,05/01/2022,4639393,266981,CHOICE LIMITED,LD Residential,7327.4,Purchased Care,SUPPLIER,STANDARD,5742,JAAA-Directorate of Social Care and Health Services
RBC Legal Entity,05/01/2022,4639396,266981,CHOICE LIMITED,LD Residential,7664.8,Purchased Care,SUPPLIER,STANDARD,5742,JAAA-Directorate of Social Care and Health Services
RBC Legal Entity,05/01/2022,4639397,266981,CHOICE LIMITED,LD Residential,8664.24,Purchased Care,SUPPLIER,STANDARD,5742,JAAA-Directorate of Social Care and Health Services
RBC Legal Entity,05/01/2022,4639410,266981,CHOICE LIMITED,LD Residential,6998.2,Purchased Care,SUPPLIER,STANDARD,5742,JAAA-Directorate of Social Care and Health Services
RBC Legal Entity,05/01/2022,4639446,266981,CHOICE LIMITED,LD Residential,8744,Purchased Care,SUPPLIER,STANDARD,5742,JAAA-Directorate of Social Care and Health Services
RBC Legal Entity,05/01/2022,4639448,266981,CHOICE LIMITED,LD Residential,3518,Purchased Care,SUPPLIER,STANDARD,5742,JAAA-Directorate of Social Care and Health Services
RBC Legal Entity,05/01/2022,4639449,266981,CHOICE LIMITED,LD Residential,7200,Purchased Care,SUPPLIER,STANDARD,5742,JAAA-Directorate of Social Care and Health Services
RBC Legal Entity,05/01/2022,4639450,266981,CHOICE LIMITED,LD Residential,6800,Purchased Care,SUPPLIER,STANDARD,5742,JAAA-Directorate of Social Care and Health Services
RBC Legal Entity,05/01/2022,4639458,266981,CHOICE LIMITED,Mental Health Residential,6448,Purchased Care,SUPPLIER,STANDARD,5732,JAAA-Directorate of Social Care and Health Services
RBC Legal Entity,05/01/2022,4639390,266982,NORMANHURST RESIDENTIAL HOME,M&C Acquired Residential,3264,Purchased Care,SUPPLIER,STANDARD,5752,JAAA-Directorate of Social Care and Health Services
RBC Legal Entity,05/01/2022,4638496,266983,TAURUS FABRICATIONS (UK) LTD,Small Transport Schemes,510,Contractors,Third Party Supplier,STANDARD,8879,ZZZC-Capital
RBC Legal Entity,05/01/2022,4638496,266983,TAURUS FABRICATIONS (UK) LTD,Small Transport Schemes,1275,Contractors,Third Party Supplier,STANDARD,8879,ZZZC-Capital
RBC Legal Entity,05/01/2022,4638496,266983,TAURUS FABRICATIONS (UK) LTD,Small Transport Schemes,1780,Contractors,Third Party Supplier,STANDARD,8879,ZZZC-Capital
RBC Legal Entity,05/01/2022,4638496,266983,TAURUS FABRICATIONS (UK) LTD,Small Transport Schemes,1950,Contractors,Third Party Supplier,STANDARD,8879,ZZZC-Capital
RBC Legal Entity,05/01/2022,4639487,266984,BELAMIE GABLES CARE HOME,M&C Acquired Residential,3400,Purchased Care,Direct Payments,STANDARD,5752,JAAA-Directorate of Social Care and Health Services
RBC Legal Entity,05/01/2022,4638539,266985,GREAT WESTERN HOSPITALS NHS FT,Berkshire West Public Health Hub,2148.52,NHS Trusts,GOVERNMENT,STANDARD,2002,JAAA-Directorate of Social Care and Health Services
RBC Legal Entity,05/01/2022,4639502,266986,WEST OAK,M&C Acquired Nursing,4480,Purchased Care,Third Party Supplier,STANDARD,5753,JAAA-Directorate of Social Care and Health Services
RBC Legal Entity,05/01/2022,4639504,266986,WEST OAK,LD Nursing,5649.6,Purchased Care,Third Party Supplier,STANDARD,5743,JAAA-Directorate of Social Care and Health Services
RBC Legal Entity,05/01/2022,4637900,266987,PROVIDE SESS LTD,The Records Centre,1057.5,Security Charges,Third Party Supplier,STANDARD,1257,KAAA-Directorate of Economic Growth and Neighbourhood Services
RBC Legal Entity,05/01/2022,4639337,266988,CHILMINGTON HOMES LIMITED,LD Residential,5638.76,Purchased Care,Third Party Supplier,STANDARD,5742,JAAA-Directorate of Social Care and Health Services
RBC Legal Entity,05/01/2022,4639459,266988,CHILMINGTON HOMES LIMITED,LD Residential,7135.32,Purchased Care,Third Party Supplier,STANDARD,5742,JAAA-Directorate of Social Care and Health Services
RBC Legal Entity,05/01/2022,4639499,266988,CHILMINGTON HOMES LIMITED,LD Residential,6787.2,Purchased Care,Third Party Supplier,STANDARD,5742,JAAA-Directorate of Social Care and Health Services
RBC Legal Entity,05/01/2022,4631476,266989,THE UNIVERSITY OF READING,Reading Abbey Revealed project,325.75,Volunteer Transport,Third Party Supplier,STANDARD,1315,KAAA-Directorate of Economic Growth and Neighbourhood Services
RBC Legal Entity,05/01/2022,4631476,266989,THE UNIVERSITY OF READING,Reading Abbey Revealed project,455.7,Volunteer Transport,Third Party Supplier,STANDARD,1315,KAAA-Directorate of Economic Growth and Neighbourhood Services
RBC Legal Entity,05/01/2022,4631476,266989,THE UNIVERSITY OF READING,Reading Abbey Revealed project,567,Volunteer Transport,Third Party Supplier,STANDARD,1315,KAAA-Directorate of Economic Growth and Neighbourhood Services
RBC Legal Entity,05/01/2022,4639305,266990,HUNGERFORD CARE HOME,M&C Acquired Nursing,3100,Purchased Care,SUPPLIER,STANDARD,5753,JAAA-Directorate of Social Care and Health Services
RBC Legal Entity,05/01/2022,4584146,266993,DOMESTIC APPLIANCE SPECIALISTS,DLO Day to Day Trades,479.17,Subcontractors Labour,SUPPLIER,STANDARD,4010,KAAA-Directorate of Economic Growth and Neighbourhood Services
RBC Legal Entity,05/01/2022,4639299,266994,ASTON CARE LTD,LD Residential,4906.32,Purchased Care,SUPPLIER,STANDARD,5742,JAAA-Directorate of Social Care and Health Services
RBC Legal Entity,05/01/2022,4639417,266994,ASTON CARE LTD,LD Residential,12000,Purchased Care,SUPPLIER,STANDARD,5742,JAAA-Directorate of Social Care and Health Services
RBC Legal Entity,05/01/2022,4639350,266996,SALT HILL CARE CENTRE,PS Acquired Nursing,3876,Purchased Care,Third Party Supplier,STANDARD,5773,JAAA-Directorate of Social Care and Health Services
RBC Legal Entity,05/01/2022,4639434,266998,THE ABBEYFIELD READING SOCIETY LTD,PS Acquired Residential,3200,Purchased Care,Third Party Supplier,STANDARD,5772,JAAA-Directorate of Social Care and Health Services
RBC Legal Entity,05/01/2022,4639340,266999,DORMY HOUSE CARE HOME WITH NURSING,PS Acquired Nursing,4000,Purchased Care,SUPPLIER,STANDARD,5773,JAAA-Directorate of Social Care and Health Services
RBC Legal Entity,05/01/2022,4639271,267003,SHINFIELD LODGE CARE LIMITED,Mental Health Residential,2570.4,Purchased Care,SUPPLIER,STANDARD,5732,JAAA-Directorate of Social Care and Health Services
RBC Legal Entity,05/01/2022,4639544,267004,PAYCOLL PAYROLL,PS Acquired Community Services,-222.68,Fairer charging charges,Third Party Supplier,CREDIT,5771,JAAA-Directorate of Social Care and Health Services
RBC Legal Entity,05/01/2022,4639544,267004,PAYCOLL PAYROLL,PS Acquired Community Services,1162,Purchased Care,Third Party Supplier,STANDARD,5771,JAAA-Directorate of Social Care and Health Services
RBC Legal Entity,05/01/2022,4639658,267005,PAYCOLL PAYROLL,LD Community Services,-219,Fairer charging charges,Third Party Supplier,CREDIT,5741,JAAA-Directorate of Social Care and Health Services
RBC Legal Entity,05/01/2022,4639658,267005,PAYCOLL PAYROLL,LD Community Services,1223.32,Purchased Care,Third Party Supplier,STANDARD,5741,JAAA-Directorate of Social Care and Health Services
RBC Legal Entity,05/01/2022,4639548,267006,PAYCOLL PAYROLL,PS Acquired Community Services,-64.36,Fairer charging charges,Third Party Supplier,CREDIT,5771,JAAA-Directorate of Social Care and Health Services
RBC Legal Entity,05/01/2022,4639548,267006,PAYCOLL PAYROLL,PS Acquired Community Services,595,Purchased Care,Third Party Supplier,STANDARD,5771,JAAA-Directorate of Social Care and Health Services
RBC Legal Entity,05/01/2022,4639656,267007,PAYCOLL PAYROLL,PS Acquired Community Services,-91.72,Fairer charging charges,Third Party Supplier,CREDIT,5771,JAAA-Directorate of Social Care and Health Services
RBC Legal Entity,05/01/2022,4639656,267007,PAYCOLL PAYROLL,PS Acquired Community Services,1424,Purchased Care,Third Party Supplier,STANDARD,5771,JAAA-Directorate of Social Care and Health Services
RBC Legal Entity,05/01/2022,4639657,267008,PAYCOLL PAYROLL,M&C Acquired Community Services,-235.56,Fairer charging charges,Third Party Supplier,CREDIT,5751,JAAA-Directorate of Social Care and Health Services
RBC Legal Entity,05/01/2022,4639657,267008,PAYCOLL PAYROLL,M&C Acquired Community Services,3084.92,Purchased Care,Third Party Supplier,STANDARD,5751,JAAA-Directorate of Social Care and Health Services
RBC Legal Entity,05/01/2022,4639674,267009,PAYCOLL PAYROLL,LD Community Services,642,Purchased Care,Third Party Supplier,STANDARD,5741,JAAA-Directorate of Social Care and Health Services
RBC Legal Entity,05/01/2022,4639600,267010,PAYCOLL PAYROLL,Mental Health Community Services,735.24,Purchased Care,Third Party Supplier,STANDARD,5731,JAAA-Directorate of Social Care and Health Services
RBC Legal Entity,05/01/2022,4639293,267012,THE BOLTONS,M&C Acquired Residential,3182.4,Purchased Care,SUPPLIER,STANDARD,5752,JAAA-Directorate of Social Care and Health Services
RBC Legal Entity,05/01/2022,4639294,267012,THE BOLTONS,Mental Health Residential,3468,Purchased Care,SUPPLIER,STANDARD,5732,JAAA-Directorate of Social Care and Health Services
RBC Legal Entity,05/01/2022,4639297,267012,THE BOLTONS,PS Acquired Residential,3366,Purchased Care,SUPPLIER,STANDARD,5772,JAAA-Directorate of Social Care and Health Services
RBC Legal Entity,05/01/2022,4639309,267012,THE BOLTONS,PS Acquired Residential,3400,Purchased Care,SUPPLIER,STANDARD,5772,JAAA-Directorate of Social Care and Health Services
RBC Legal Entity,05/01/2022,4639348,267012,THE BOLTONS,M&C Acquired Residential,3264,Purchased Care,SUPPLIER,STANDARD,5752,JAAA-Directorate of Social Care and Health Services
RBC Legal Entity,05/01/2022,4639352,267012,THE BOLTONS,M&C Acquired Residential,3264,Purchased Care,SUPPLIER,STANDARD,5752,JAAA-Directorate of Social Care and Health Services
RBC Legal Entity,05/01/2022,4639356,267012,THE BOLTONS,Mental Health Residential,3182.4,Purchased Care,SUPPLIER,STANDARD,5732,JAAA-Directorate of Social Care and Health Services
RBC Legal Entity,05/01/2022,4639366,267012,THE BOLTONS,M&C Acquired Residential,3560,Purchased Care,SUPPLIER,STANDARD,5752,JAAA-Directorate of Social Care and Health Services
RBC Legal Entity,05/01/2022,4639389,267012,THE BOLTONS,PS Acquired Residential,3060,Purchased Care,SUPPLIER,STANDARD,5772,JAAA-Directorate of Social Care and Health Services
RBC Legal Entity,05/01/2022,4639409,267012,THE BOLTONS,Mental Health Residential,3570,Purchased Care,SUPPLIER,STANDARD,5732,JAAA-Directorate of Social Care and Health Services
RBC Legal Entity,05/01/2022,4639422,267012,THE BOLTONS,Mental Health Residential,1122,Purchased Care,SUPPLIER,STANDARD,5732,JAAA-Directorate of Social Care and Health Services
RBC Legal Entity,05/01/2022,4639425,267012,THE BOLTONS,PS Acquired Residential,-10057.14,Purchased Care,SUPPLIER,CREDIT,5772,JAAA-Directorate of Social Care and Health Services
RBC Legal Entity,05/01/2022,4639431,267012,THE BOLTONS,PS Acquired Residential,13257.14,Purchased Care,SUPPLIER,STANDARD,5772,JAAA-Directorate of Social Care and Health Services
RBC Legal Entity,05/01/2022,4639432,267012,THE BOLTONS,PS Acquired Residential,-4735.71,Purchased Care,SUPPLIER,CREDIT,5772,JAAA-Directorate of Social Care and Health Services
RBC Legal Entity,05/01/2022,4639440,267012,THE BOLTONS,PS Acquired Residential,8135.71,Purchased Care,SUPPLIER,STANDARD,5772,JAAA-Directorate of Social Care and Health Services
RBC Legal Entity,05/01/2022,4639465,267012,THE BOLTONS,PS Acquired Residential,3264,Purchased Care,SUPPLIER,STANDARD,5772,JAAA-Directorate of Social Care and Health Services
RBC Legal Entity,05/01/2022,4639468,267012,THE BOLTONS,Mental Health Residential,1734,Purchased Care,SUPPLIER,STANDARD,5732,JAAA-Directorate of Social Care and Health Services
RBC Legal Entity,05/01/2022,4639492,267012,THE BOLTONS,PS Acquired Residential,1360,Purchased Care,SUPPLIER,STANDARD,5772,JAAA-Directorate of Social Care and Health Services
RBC Legal Entity,05/01/2022,4639777,267013,PAYCOLL PAYROLL,PS Lifelong Community Services,1879.36,Purchased Care,Third Party Supplier,STANDARD,5781,JAAA-Directorate of Social Care and Health Services
RBC Legal Entity,05/01/2022,4639527,267014,ALLPAY.NET.LIMITED,LD Community Services,-222.68,Fairer charging charges,Third Party Supplier,CREDIT,5741,JAAA-Directorate of Social Care and Health Services
RBC Legal Entity,05/01/2022,4639527,267014,ALLPAY.NET.LIMITED,LD Community Services,2455.2,Purchased Care,Third Party Supplier,STANDARD,5741,JAAA-Directorate of Social Care and Health Services
RBC Legal Entity,05/01/2022,4639528,267014,ALLPAY.NET.LIMITED,PS Acquired Community Services,-1856.94,Purchased Care,Third Party Supplier,CREDIT,5771,JAAA-Directorate of Social Care and Health Services
RBC Legal Entity,05/01/2022,4639528,267014,ALLPAY.NET.LIMITED,PS Acquired Community Services,778.26,Fairer charging charges,Third Party Supplier,STANDARD,5771,JAAA-Directorate of Social Care and Health Services
RBC Legal Entity,05/01/2022,4639529,267014,ALLPAY.NET.LIMITED,LD Community Services,-218.28,Fairer charging charges,Third Party Supplier,CREDIT,5741,JAAA-Directorate of Social Care and Health Services
RBC Legal Entity,05/01/2022,4639529,267014,ALLPAY.NET.LIMITED,LD Community Services,1041.2,Purchased Care,Third Party Supplier,STANDARD,5741,JAAA-Directorate of Social Care and Health Services
RBC Legal Entity,05/01/2022,4639531,267014,ALLPAY.NET.LIMITED,PS Acquired Community Services,-554.96,Fairer charging charges,Third Party Supplier,CREDIT,5771,JAAA-Directorate of Social Care and Health Services
RBC Legal Entity,05/01/2022,4639531,267014,ALLPAY.NET.LIMITED,PS Acquired Community Services,1057.28,Purchased Care,Third Party Supplier,STANDARD,5771,JAAA-Directorate of Social Care and Health Services
RBC Legal Entity,05/01/2022,4639532,267014,ALLPAY.NET.LIMITED,PS Acquired Community Services,-236.28,Fairer charging charges,Third Party Supplier,CREDIT,5771,JAAA-Directorate of Social Care and Health Services
RBC Legal Entity,05/01/2022,4639532,267014,ALLPAY.NET.LIMITED,PS Acquired Community Services,832.56,Purchased Care,Third Party Supplier,STANDARD,5771,JAAA-Directorate of Social Care and Health Services
RBC Legal Entity,05/01/2022,4639535,267014,ALLPAY.NET.LIMITED,PS Acquired Community Services,1131.6,Purchased Care,Third Party Supplier,STANDARD,5771,JAAA-Directorate of Social Care and Health Services
RBC Legal Entity,05/01/2022,4639537,267014,ALLPAY.NET.LIMITED,PS Acquired Community Services,2304.08,Purchased Care,Third Party Supplier,STANDARD,5771,JAAA-Directorate of Social Care and Health Services
RBC Legal Entity,05/01/2022,4639538,267014,ALLPAY.NET.LIMITED,PS Acquired Community Services,-427.56,Fairer charging charges,Third Party Supplier,CREDIT,5771,JAAA-Directorate of Social Care and Health Services
RBC Legal Entity,05/01/2022,4639538,267014,ALLPAY.NET.LIMITED,PS Acquired Community Services,2660,Purchased Care,Third Party Supplier,STANDARD,5771,JAAA-Directorate of Social Care and Health Services
RBC Legal Entity,05/01/2022,4639539,267014,ALLPAY.NET.LIMITED,PS Acquired Community Services,832,Purchased Care,Third Party Supplier,STANDARD,5771,JAAA-Directorate of Social Care and Health Services
RBC Legal Entity,05/01/2022,4639540,267014,ALLPAY.NET.LIMITED,Mental Health Community Services,1065.28,Purchased Care,Third Party Supplier,STANDARD,5731,JAAA-Directorate of Social Care and Health Services
RBC Legal Entity,05/01/2022,4639542,267014,ALLPAY.NET.LIMITED,PS Acquired Community Services,-324.08,Fairer charging charges,Third Party Supplier,CREDIT,5771,JAAA-Directorate of Social Care and Health Services
RBC Legal Entity,05/01/2022,4639542,267014,ALLPAY.NET.LIMITED,PS Acquired Community Services,2087,Purchased Care,Third Party Supplier,STANDARD,5771,JAAA-Directorate of Social Care and Health Services
RBC Legal Entity,05/01/2022,4639545,267014,ALLPAY.NET.LIMITED,LD Community Services,-210.52,Fairer charging charges,Third Party Supplier,CREDIT,5741,JAAA-Directorate of Social Care and Health Services
RBC Legal Entity,05/01/2022,4639545,267014,ALLPAY.NET.LIMITED,LD Community Services,2455.68,Purchased Care,Third Party Supplier,STANDARD,5741,JAAA-Directorate of Social Care and Health Services
RBC Legal Entity,05/01/2022,4639551,267014,ALLPAY.NET.LIMITED,PS Acquired Community Services,1527,Purchased Care,Third Party Supplier,STANDARD,5771,JAAA-Directorate of Social Care and Health Services
RBC Legal Entity,05/01/2022,4639552,267014,ALLPAY.NET.LIMITED,PS Acquired Community Services,-39.32,Fairer charging charges,Third Party Supplier,CREDIT,5771,JAAA-Directorate of Social Care and Health Services
RBC Legal Entity,05/01/2022,4639552,267014,ALLPAY.NET.LIMITED,PS Acquired Community Services,1852,Purchased Care,Third Party Supplier,STANDARD,5771,JAAA-Directorate of Social Care and Health Services
RBC Legal Entity,05/01/2022,4639554,267014,ALLPAY.NET.LIMITED,Support to Carers,514.8,Purchased Care,Third Party Supplier,STANDARD,5301,JAAA-Directorate of Social Care and Health Services
RBC Legal Entity,05/01/2022,4639556,267014,ALLPAY.NET.LIMITED,LD Community Services,-256.16,Fairer charging charges,Third Party Supplier,CREDIT,5741,JAAA-Directorate of Social Care and Health Services
RBC Legal Entity,05/01/2022,4639556,267014,ALLPAY.NET.LIMITED,LD Community Services,1140,Purchased Care,Third Party Supplier,STANDARD,5741,JAAA-Directorate of Social Care and Health Services
RBC Legal Entity,05/01/2022,4639558,267014,ALLPAY.NET.LIMITED,PS Acquired Community Services,-336.96,Fairer charging charges,Third Party Supplier,CREDIT,5771,JAAA-Directorate of Social Care and Health Services
RBC Legal Entity,05/01/2022,4639558,267014,ALLPAY.NET.LIMITED,PS Acquired Community Services,1055.64,Purchased Care,Third Party Supplier,STANDARD,5771,JAAA-Directorate of Social Care and Health Services
RBC Legal Entity,05/01/2022,4639560,267014,ALLPAY.NET.LIMITED,LD Community Services,944,Purchased Care,Third Party Supplier,STANDARD,5741,JAAA-Directorate of Social Care and Health Services
RBC Legal Entity,05/01/2022,4639561,267014,ALLPAY.NET.LIMITED,LD Community Services,1279.76,Purchased Care,Third Party Supplier,STANDARD,5741,JAAA-Directorate of Social Care and Health Services
RBC Legal Entity,05/01/2022,4639563,267014,ALLPAY.NET.LIMITED,PS Lifelong Community Services,2652,Purchased Care,Third Party Supplier,STANDARD,5781,JAAA-Directorate of Social Care and Health Services
RBC Legal Entity,05/01/2022,4639566,267014,ALLPAY.NET.LIMITED,PS Acquired Community Services,-304.52,Fairer charging charges,Third Party Supplier,CREDIT,5771,JAAA-Directorate of Social Care and Health Services
RBC Legal Entity,05/01/2022,4639566,267014,ALLPAY.NET.LIMITED,PS Acquired Community Services,1196,Purchased Care,Third Party Supplier,STANDARD,5771,JAAA-Directorate of Social Care and Health Services
RBC Legal Entity,05/01/2022,4639567,267014,ALLPAY.NET.LIMITED,PS Acquired Community Services,-290.8,Fairer charging charges,Third Party Supplier,CREDIT,5771,JAAA-Directorate of Social Care and Health Services
RBC Legal Entity,05/01/2022,4639567,267014,ALLPAY.NET.LIMITED,PS Acquired Community Services,833,Purchased Care,Third Party Supplier,STANDARD,5771,JAAA-Directorate of Social Care and Health Services
RBC Legal Entity,05/01/2022,4639569,267014,ALLPAY.NET.LIMITED,PS Acquired Community Services,901.6,Purchased Care,Third Party Supplier,STANDARD,5771,JAAA-Directorate of Social Care and Health Services
RBC Legal Entity,05/01/2022,4639570,267014,ALLPAY.NET.LIMITED,LD Community Services,660,Purchased Care,Third Party Supplier,STANDARD,5741,JAAA-Directorate of Social Care and Health Services
RBC Legal Entity,05/01/2022,4639575,267014,ALLPAY.NET.LIMITED,PS Acquired Community Services,-76,Fairer charging charges,Third Party Supplier,CREDIT,5771,JAAA-Directorate of Social Care and Health Services
RBC Legal Entity,05/01/2022,4639575,267014,ALLPAY.NET.LIMITED,PS Acquired Community Services,901.6,Purchased Care,Third Party Supplier,STANDARD,5771,JAAA-Directorate of Social Care and Health Services
RBC Legal Entity,05/01/2022,4639577,267014,ALLPAY.NET.LIMITED,PS Acquired Community Services,-560,Fairer charging charges,Third Party Supplier,CREDIT,5771,JAAA-Directorate of Social Care and Health Services
RBC Legal Entity,05/01/2022,4639577,267014,ALLPAY.NET.LIMITED,PS Acquired Community Services,1330,Purchased Care,Third Party Supplier,STANDARD,5771,JAAA-Directorate of Social Care and Health Services
RBC Legal Entity,05/01/2022,4639579,267014,ALLPAY.NET.LIMITED,LD Community Services,565.72,Purchased Care,Third Party Supplier,STANDARD,5741,JAAA-Directorate of Social Care and Health Services
RBC Legal Entity,05/01/2022,4639580,267014,ALLPAY.NET.LIMITED,PS Acquired Community Services,-412.92,Fairer charging charges,Third Party Supplier,CREDIT,5771,JAAA-Directorate of Social Care and Health Services
RBC Legal Entity,05/01/2022,4639580,267014,ALLPAY.NET.LIMITED,PS Acquired Community Services,1314.92,Purchased Care,Third Party Supplier,STANDARD,5771,JAAA-Directorate of Social Care and Health Services
RBC Legal Entity,05/01/2022,4639582,267014,ALLPAY.NET.LIMITED,LD Community Services,3370.4,Purchased Care,Third Party Supplier,STANDARD,5741,JAAA-Directorate of Social Care and Health Services
RBC Legal Entity,05/01/2022,4639583,267014,ALLPAY.NET.LIMITED,Social Support,1416.96,Purchased Care,Third Party Supplier,STANDARD,5790,JAAA-Directorate of Social Care and Health Services
RBC Legal Entity,05/01/2022,4639584,267014,ALLPAY.NET.LIMITED,LD Community Services,-116.72,Fairer charging charges,Third Party Supplier,CREDIT,5741,JAAA-Directorate of Social Care and Health Services
RBC Legal Entity,05/01/2022,4639584,267014,ALLPAY.NET.LIMITED,LD Community Services,852.8,Purchased Care,Third Party Supplier,STANDARD,5741,JAAA-Directorate of Social Care and Health Services
RBC Legal Entity,05/01/2022,4639585,267014,ALLPAY.NET.LIMITED,LD Community Services,-525.08,Fairer charging charges,Third Party Supplier,CREDIT,5741,JAAA-Directorate of Social Care and Health Services
RBC Legal Entity,05/01/2022,4639585,267014,ALLPAY.NET.LIMITED,LD Community Services,8947.2,Purchased Care,Third Party Supplier,STANDARD,5741,JAAA-Directorate of Social Care and Health Services
RBC Legal Entity,05/01/2022,4639586,267014,ALLPAY.NET.LIMITED,LD Community Services,-38.64,Fairer charging charges,Third Party Supplier,CREDIT,5741,JAAA-Directorate of Social Care and Health Services
RBC Legal Entity,05/01/2022,4639586,267014,ALLPAY.NET.LIMITED,LD Community Services,1400,Purchased Care,Third Party Supplier,STANDARD,5741,JAAA-Directorate of Social Care and Health Services
RBC Legal Entity,05/01/2022,4639588,267014,ALLPAY.NET.LIMITED,PS Acquired Community Services,-464.92,Fairer charging charges,Third Party Supplier,CREDIT,5771,JAAA-Directorate of Social Care and Health Services
RBC Legal Entity,05/01/2022,4639588,267014,ALLPAY.NET.LIMITED,PS Acquired Community Services,2394,Purchased Care,Third Party Supplier,STANDARD,5771,JAAA-Directorate of Social Care and Health Services
RBC Legal Entity,05/01/2022,4639589,267014,ALLPAY.NET.LIMITED,PS Acquired Community Services,504.6,Purchased Care,Third Party Supplier,STANDARD,5771,JAAA-Directorate of Social Care and Health Services
RBC Legal Entity,05/01/2022,4639591,267014,ALLPAY.NET.LIMITED,M&C Acquired Community Services,-22.52,Fairer charging charges,Third Party Supplier,CREDIT,5751,JAAA-Directorate of Social Care and Health Services
RBC Legal Entity,05/01/2022,4639591,267014,ALLPAY.NET.LIMITED,M&C Acquired Community Services,926.68,Purchased Care,Third Party Supplier,STANDARD,5751,JAAA-Directorate of Social Care and Health Services
RBC Legal Entity,05/01/2022,4639593,267014,ALLPAY.NET.LIMITED,LD Community Services,-257.8,Fairer charging charges,Third Party Supplier,CREDIT,5741,JAAA-Directorate of Social Care and Health Services
RBC Legal Entity,05/01/2022,4639593,267014,ALLPAY.NET.LIMITED,LD Community Services,2724.36,Purchased Care,Third Party Supplier,STANDARD,5741,JAAA-Directorate of Social Care and Health Services
RBC Legal Entity,05/01/2022,4639595,267014,ALLPAY.NET.LIMITED,PS Lifelong Community Services,-52.88,Fairer charging charges,Third Party Supplier,CREDIT,5781,JAAA-Directorate of Social Care and Health Services
RBC Legal Entity,05/01/2022,4639595,267014,ALLPAY.NET.LIMITED,PS Lifelong Community Services,1300,Purchased Care,Third Party Supplier,STANDARD,5781,JAAA-Directorate of Social Care and Health Services
RBC Legal Entity,05/01/2022,4639596,267014,ALLPAY.NET.LIMITED,PS Acquired Community Services,-501.2,Fairer charging charges,Third Party Supplier,CREDIT,5771,JAAA-Directorate of Social Care and Health Services
RBC Legal Entity,05/01/2022,4639596,267014,ALLPAY.NET.LIMITED,PS Acquired Community Services,1530,Purchased Care,Third Party Supplier,STANDARD,5771,JAAA-Directorate of Social Care and Health Services
RBC Legal Entity,05/01/2022,4639597,267014,ALLPAY.NET.LIMITED,LD Community Services,1589.16,Purchased Care,Third Party Supplier,STANDARD,5741,JAAA-Directorate of Social Care and Health Services
RBC Legal Entity,05/01/2022,4639599,267014,ALLPAY.NET.LIMITED,PS Acquired Community Services,-224.48,Fairer charging charges,Third Party Supplier,CREDIT,5771,JAAA-Directorate of Social Care and Health Services
RBC Legal Entity,05/01/2022,4639599,267014,ALLPAY.NET.LIMITED,PS Acquired Community Services,1392,Purchased Care,Third Party Supplier,STANDARD,5771,JAAA-Directorate of Social Care and Health Services
RBC Legal Entity,05/01/2022,4639603,267014,ALLPAY.NET.LIMITED,PS Acquired Community Services,1698.2,Purchased Care,Third Party Supplier,STANDARD,5771,JAAA-Directorate of Social Care and Health Services
RBC Legal Entity,05/01/2022,4639604,267014,ALLPAY.NET.LIMITED,PS Acquired Community Services,-441.6,Fairer charging charges,Third Party Supplier,CREDIT,5771,JAAA-Directorate of Social Care and Health Services
RBC Legal Entity,05/01/2022,4639604,267014,ALLPAY.NET.LIMITED,PS Acquired Community Services,1021.44,Purchased Care,Third Party Supplier,STANDARD,5771,JAAA-Directorate of Social Care and Health Services
RBC Legal Entity,05/01/2022,4639605,267014,ALLPAY.NET.LIMITED,LD Community Services,-63.32,Fairer charging charges,Third Party Supplier,CREDIT,5741,JAAA-Directorate of Social Care and Health Services
RBC Legal Entity,05/01/2022,4639605,267014,ALLPAY.NET.LIMITED,LD Community Services,679.2,Purchased Care,Third Party Supplier,STANDARD,5741,JAAA-Directorate of Social Care and Health Services
RBC Legal Entity,05/01/2022,4639611,267014,ALLPAY.NET.LIMITED,LD Community Services,876.12,Purchased Care,Third Party Supplier,STANDARD,5741,JAAA-Directorate of Social Care and Health Services
RBC Legal Entity,05/01/2022,4639613,267014,ALLPAY.NET.LIMITED,PS Acquired Community Services,-593.12,Fairer charging charges,Third Party Supplier,CREDIT,5771,JAAA-Directorate of Social Care and Health Services
RBC Legal Entity,05/01/2022,4639613,267014,ALLPAY.NET.LIMITED,PS Acquired Community Services,3000,Purchased Care,Third Party Supplier,STANDARD,5771,JAAA-Directorate of Social Care and Health Services
RBC Legal Entity,05/01/2022,4639614,267014,ALLPAY.NET.LIMITED,LD Community Services,2910.96,Purchased Care,Third Party Supplier,STANDARD,5741,JAAA-Directorate of Social Care and Health Services
RBC Legal Entity,05/01/2022,4639617,267014,ALLPAY.NET.LIMITED,LD Community Services,1290,Purchased Care,Third Party Supplier,STANDARD,5741,JAAA-Directorate of Social Care and Health Services
RBC Legal Entity,05/01/2022,4639618,267014,ALLPAY.NET.LIMITED,LD Community Services,-86.2,Fairer charging charges,Third Party Supplier,CREDIT,5741,JAAA-Directorate of Social Care and Health Services
RBC Legal Entity,05/01/2022,4639618,267014,ALLPAY.NET.LIMITED,LD Community Services,757.72,Purchased Care,Third Party Supplier,STANDARD,5741,JAAA-Directorate of Social Care and Health Services
RBC Legal Entity,05/01/2022,4639619,267014,ALLPAY.NET.LIMITED,LD Community Services,-175.04,Fairer charging charges,Third Party Supplier,CREDIT,5741,JAAA-Directorate of Social Care and Health Services
RBC Legal Entity,05/01/2022,4639619,267014,ALLPAY.NET.LIMITED,LD Community Services,4724,Purchased Care,Third Party Supplier,STANDARD,5741,JAAA-Directorate of Social Care and Health Services
RBC Legal Entity,05/01/2022,4639622,267014,ALLPAY.NET.LIMITED,LD Community Services,-211.24,Fairer charging charges,Third Party Supplier,CREDIT,5741,JAAA-Directorate of Social Care and Health Services
RBC Legal Entity,05/01/2022,4639622,267014,ALLPAY.NET.LIMITED,LD Community Services,3402.4,Purchased Care,Third Party Supplier,STANDARD,5741,JAAA-Directorate of Social Care and Health Services
RBC Legal Entity,05/01/2022,4639623,267014,ALLPAY.NET.LIMITED,LD Community Services,-213.08,Fairer charging charges,Third Party Supplier,CREDIT,5741,JAAA-Directorate of Social Care and Health Services
RBC Legal Entity,05/01/2022,4639623,267014,ALLPAY.NET.LIMITED,LD Community Services,4548,Purchased Care,Third Party Supplier,STANDARD,5741,JAAA-Directorate of Social Care and Health Services
RBC Legal Entity,05/01/2022,4639626,267014,ALLPAY.NET.LIMITED,PS Acquired Community Services,1243.08,Purchased Care,Third Party Supplier,STANDARD,5771,JAAA-Directorate of Social Care and Health Services
RBC Legal Entity,05/01/2022,4639627,267014,ALLPAY.NET.LIMITED,LD Community Services,640.72,Purchased Care,Third Party Supplier,STANDARD,5741,JAAA-Directorate of Social Care and Health Services
RBC Legal Entity,05/01/2022,4639628,267014,ALLPAY.NET.LIMITED,PS Acquired Community Services,-97.44,Fairer charging charges,Third Party Supplier,CREDIT,5771,JAAA-Directorate of Social Care and Health Services
RBC Legal Entity,05/01/2022,4639628,267014,ALLPAY.NET.LIMITED,PS Acquired Community Services,1389.08,Purchased Care,Third Party Supplier,STANDARD,5771,JAAA-Directorate of Social Care and Health Services
RBC Legal Entity,05/01/2022,4639634,267014,ALLPAY.NET.LIMITED,PS Acquired Community Services,-1517.92,Fairer charging charges,Third Party Supplier,CREDIT,5771,JAAA-Directorate of Social Care and Health Services
RBC Legal Entity,05/01/2022,4639634,267014,ALLPAY.NET.LIMITED,PS Acquired Community Services,5800,Purchased Care,Third Party Supplier,STANDARD,5771,JAAA-Directorate of Social Care and Health Services
RBC Legal Entity,05/01/2022,4639638,267014,ALLPAY.NET.LIMITED,LD Community Services,833.76,Purchased Care,Third Party Supplier,STANDARD,5741,JAAA-Directorate of Social Care and Health Services
RBC Legal Entity,05/01/2022,4639639,267014,ALLPAY.NET.LIMITED,PS Acquired Community Services,-441.6,Fairer charging charges,Third Party Supplier,CREDIT,5771,JAAA-Directorate of Social Care and Health Services
RBC Legal Entity,05/01/2022,4639639,267014,ALLPAY.NET.LIMITED,PS Acquired Community Services,3089.92,Purchased Care,Third Party Supplier,STANDARD,5771,JAAA-Directorate of Social Care and Health Services
RBC Legal Entity,05/01/2022,4639642,267014,ALLPAY.NET.LIMITED,PS Acquired Community Services,-657.92,Fairer charging charges,Third Party Supplier,CREDIT,5771,JAAA-Directorate of Social Care and Health Services
RBC Legal Entity,05/01/2022,4639642,267014,ALLPAY.NET.LIMITED,PS Acquired Community Services,4326.4,Purchased Care,Third Party Supplier,STANDARD,5771,JAAA-Directorate of Social Care and Health Services
RBC Legal Entity,05/01/2022,4639647,267014,ALLPAY.NET.LIMITED,LD Community Services,-128.52,Fairer charging charges,Third Party Supplier,CREDIT,5741,JAAA-Directorate of Social Care and Health Services
RBC Legal Entity,05/01/2022,4639647,267014,ALLPAY.NET.LIMITED,LD Community Services,962.36,Purchased Care,Third Party Supplier,STANDARD,5741,JAAA-Directorate of Social Care and Health Services
RBC Legal Entity,05/01/2022,4639649,267014,ALLPAY.NET.LIMITED,LD Community Services,991.68,Purchased Care,Third Party Supplier,STANDARD,5741,JAAA-Directorate of Social Care and Health Services
RBC Legal Entity,05/01/2022,4639652,267014,ALLPAY.NET.LIMITED,PS Acquired Community Services,-12.84,Fairer charging charges,Third Party Supplier,CREDIT,5771,JAAA-Directorate of Social Care and Health Services
RBC Legal Entity,05/01/2022,4639652,267014,ALLPAY.NET.LIMITED,PS Acquired Community Services,664.52,Purchased Care,Third Party Supplier,STANDARD,5771,JAAA-Directorate of Social Care and Health Services
RBC Legal Entity,05/01/2022,4639654,267014,ALLPAY.NET.LIMITED,LD Community Services,-257.8,Fairer charging charges,Third Party Supplier,CREDIT,5741,JAAA-Directorate of Social Care and Health Services
RBC Legal Entity,05/01/2022,4639654,267014,ALLPAY.NET.LIMITED,LD Community Services,11854.08,Purchased Care,Third Party Supplier,STANDARD,5741,JAAA-Directorate of Social Care and Health Services
RBC Legal Entity,05/01/2022,4639655,267014,ALLPAY.NET.LIMITED,LD Community Services,-147.32,Fairer charging charges,Third Party Supplier,CREDIT,5741,JAAA-Directorate of Social Care and Health Services
RBC Legal Entity,05/01/2022,4639655,267014,ALLPAY.NET.LIMITED,LD Community Services,2870.76,Purchased Care,Third Party Supplier,STANDARD,5741,JAAA-Directorate of Social Care and Health Services
RBC Legal Entity,05/01/2022,4639663,267014,ALLPAY.NET.LIMITED,LD Community Services,-61.88,Fairer charging charges,Third Party Supplier,CREDIT,5741,JAAA-Directorate of Social Care and Health Services
RBC Legal Entity,05/01/2022,4639663,267014,ALLPAY.NET.LIMITED,LD Community Services,10562,Purchased Care,Third Party Supplier,STANDARD,5741,JAAA-Directorate of Social Care and Health Services
RBC Legal Entity,05/01/2022,4639666,267014,ALLPAY.NET.LIMITED,LD Community Services,-92.12,Fairer charging charges,Third Party Supplier,CREDIT,5741,JAAA-Directorate of Social Care and Health Services
RBC Legal Entity,05/01/2022,4639666,267014,ALLPAY.NET.LIMITED,LD Community Services,605.92,Purchased Care,Third Party Supplier,STANDARD,5741,JAAA-Directorate of Social Care and Health Services
RBC Legal Entity,05/01/2022,4639668,267014,ALLPAY.NET.LIMITED,PS Acquired Community Services,-441.6,Fairer charging charges,Third Party Supplier,CREDIT,5771,JAAA-Directorate of Social Care and Health Services
RBC Legal Entity,05/01/2022,4639668,267014,ALLPAY.NET.LIMITED,PS Acquired Community Services,2394,Purchased Care,Third Party Supplier,STANDARD,5771,JAAA-Directorate of Social Care and Health Services
RBC Legal Entity,05/01/2022,4639669,267014,ALLPAY.NET.LIMITED,PS Acquired Community Services,-320.12,Fairer charging charges,Third Party Supplier,CREDIT,5771,JAAA-Directorate of Social Care and Health Services
RBC Legal Entity,05/01/2022,4639669,267014,ALLPAY.NET.LIMITED,PS Acquired Community Services,3091.2,Purchased Care,Third Party Supplier,STANDARD,5771,JAAA-Directorate of Social Care and Health Services
RBC Legal Entity,05/01/2022,4639671,267014,ALLPAY.NET.LIMITED,LD Community Services,656.12,Purchased Care,Third Party Supplier,STANDARD,5741,JAAA-Directorate of Social Care and Health Services
RBC Legal Entity,05/01/2022,4639675,267014,ALLPAY.NET.LIMITED,PS Acquired Community Services,-172.4,Fairer charging charges,Third Party Supplier,CREDIT,5771,JAAA-Directorate of Social Care and Health Services
RBC Legal Entity,05/01/2022,4639675,267014,ALLPAY.NET.LIMITED,PS Acquired Community Services,1037.12,Purchased Care,Third Party Supplier,STANDARD,5771,JAAA-Directorate of Social Care and Health Services
RBC Legal Entity,05/01/2022,4639677,267014,ALLPAY.NET.LIMITED,PS Acquired Community Services,3248.6,Purchased Care,Third Party Supplier,STANDARD,5771,JAAA-Directorate of Social Care and Health Services
RBC Legal Entity,05/01/2022,4639679,267014,ALLPAY.NET.LIMITED,PS Acquired Community Services,-1299.26,Purchased Care,Third Party Supplier,CREDIT,5771,JAAA-Directorate of Social Care and Health Services
RBC Legal Entity,05/01/2022,4639689,267014,ALLPAY.NET.LIMITED,LD Community Services,-527,Fairer charging charges,Third Party Supplier,CREDIT,5741,JAAA-Directorate of Social Care and Health Services
RBC Legal Entity,05/01/2022,4639689,267014,ALLPAY.NET.LIMITED,LD Community Services,8289.32,Purchased Care,Third Party Supplier,STANDARD,5741,JAAA-Directorate of Social Care and Health Services
RBC Legal Entity,05/01/2022,4639690,267014,ALLPAY.NET.LIMITED,Social Support,1037.12,Purchased Care,Third Party Supplier,STANDARD,5790,JAAA-Directorate of Social Care and Health Services
RBC Legal Entity,05/01/2022,4639691,267014,ALLPAY.NET.LIMITED,PS Acquired Community Services,-144,Fairer charging charges,Third Party Supplier,CREDIT,5771,JAAA-Directorate of Social Care and Health Services
RBC Legal Entity,05/01/2022,4639691,267014,ALLPAY.NET.LIMITED,PS Acquired Community Services,2074.24,Purchased Care,Third Party Supplier,STANDARD,5771,JAAA-Directorate of Social Care and Health Services
RBC Legal Entity,05/01/2022,4639692,267014,ALLPAY.NET.LIMITED,LD Community Services,2108.64,Purchased Care,Third Party Supplier,STANDARD,5741,JAAA-Directorate of Social Care and Health Services
RBC Legal Entity,05/01/2022,4639695,267014,ALLPAY.NET.LIMITED,PS Acquired Community Services,980,Purchased Care,Third Party Supplier,STANDARD,5771,JAAA-Directorate of Social Care and Health Services
RBC Legal Entity,05/01/2022,4639696,267014,ALLPAY.NET.LIMITED,PS Acquired Community Services,-290.8,Fairer charging charges,Third Party Supplier,CREDIT,5771,JAAA-Directorate of Social Care and Health Services
RBC Legal Entity,05/01/2022,4639696,267014,ALLPAY.NET.LIMITED,PS Acquired Community Services,2481.68,Purchased Care,Third Party Supplier,STANDARD,5771,JAAA-Directorate of Social Care and Health Services
RBC Legal Entity,05/01/2022,4639700,267014,ALLPAY.NET.LIMITED,PS Acquired Community Services,-555.88,Fairer charging charges,Third Party Supplier,CREDIT,5771,JAAA-Directorate of Social Care and Health Services
RBC Legal Entity,05/01/2022,4639700,267014,ALLPAY.NET.LIMITED,PS Acquired Community Services,1140,Purchased Care,Third Party Supplier,STANDARD,5771,JAAA-Directorate of Social Care and Health Services
RBC Legal Entity,05/01/2022,4639702,267014,ALLPAY.NET.LIMITED,PS Acquired Community Services,-419.68,Fairer charging charges,Third Party Supplier,CREDIT,5771,JAAA-Directorate of Social Care and Health Services
RBC Legal Entity,05/01/2022,4639702,267014,ALLPAY.NET.LIMITED,PS Acquired Community Services,2660,Purchased Care,Third Party Supplier,STANDARD,5771,JAAA-Directorate of Social Care and Health Services
RBC Legal Entity,05/01/2022,4639703,267014,ALLPAY.NET.LIMITED,PS Acquired Community Services,-275.04,Fairer charging charges,Third Party Supplier,CREDIT,5771,JAAA-Directorate of Social Care and Health Services
RBC Legal Entity,05/01/2022,4639703,267014,ALLPAY.NET.LIMITED,PS Acquired Community Services,1064,Purchased Care,Third Party Supplier,STANDARD,5771,JAAA-Directorate of Social Care and Health Services
RBC Legal Entity,05/01/2022,4639707,267014,ALLPAY.NET.LIMITED,LD Community Services,665.2,Purchased Care,Third Party Supplier,STANDARD,5741,JAAA-Directorate of Social Care and Health Services
RBC Legal Entity,05/01/2022,4639709,267014,ALLPAY.NET.LIMITED,M&C Acquired Community Services,570,Purchased Care,Third Party Supplier,STANDARD,5751,JAAA-Directorate of Social Care and Health Services
RBC Legal Entity,05/01/2022,4639713,267014,ALLPAY.NET.LIMITED,Mental Health Community Services,666,Purchased Care,Third Party Supplier,STANDARD,5731,JAAA-Directorate of Social Care and Health Services
RBC Legal Entity,05/01/2022,4639724,267014,ALLPAY.NET.LIMITED,PS Acquired Community Services,1558,Purchased Care,Third Party Supplier,STANDARD,5771,JAAA-Directorate of Social Care and Health Services
RBC Legal Entity,05/01/2022,4639726,267014,ALLPAY.NET.LIMITED,PS Acquired Community Services,-760.92,Fairer charging charges,Third Party Supplier,CREDIT,5771,JAAA-Directorate of Social Care and Health Services
RBC Legal Entity,05/01/2022,4639726,267014,ALLPAY.NET.LIMITED,PS Acquired Community Services,4075.68,Purchased Care,Third Party Supplier,STANDARD,5771,JAAA-Directorate of Social Care and Health Services
RBC Legal Entity,05/01/2022,4639727,267014,ALLPAY.NET.LIMITED,LD Community Services,-247.36,Fairer charging charges,Third Party Supplier,CREDIT,5741,JAAA-Directorate of Social Care and Health Services
RBC Legal Entity,05/01/2022,4639727,267014,ALLPAY.NET.LIMITED,LD Community Services,1680.96,Purchased Care,Third Party Supplier,STANDARD,5741,JAAA-Directorate of Social Care and Health Services
RBC Legal Entity,05/01/2022,4639730,267014,ALLPAY.NET.LIMITED,PS Acquired Community Services,-491.36,Fairer charging charges,Third Party Supplier,CREDIT,5771,JAAA-Directorate of Social Care and Health Services
RBC Legal Entity,05/01/2022,4639730,267014,ALLPAY.NET.LIMITED,PS Acquired Community Services,992.32,Purchased Care,Third Party Supplier,STANDARD,5771,JAAA-Directorate of Social Care and Health Services
RBC Legal Entity,05/01/2022,4639733,267014,ALLPAY.NET.LIMITED,PS Acquired Community Services,3919.5,Purchased Care,Third Party Supplier,STANDARD,5771,JAAA-Directorate of Social Care and Health Services
RBC Legal Entity,05/01/2022,4639734,267014,ALLPAY.NET.LIMITED,PS Acquired Community Services,-799.7,Fairer charging charges,Third Party Supplier,CREDIT,5771,JAAA-Directorate of Social Care and Health Services
RBC Legal Entity,05/01/2022,4639736,267014,ALLPAY.NET.LIMITED,PS Acquired Community Services,-3797.36,Fairer charging charges,Third Party Supplier,CREDIT,5771,JAAA-Directorate of Social Care and Health Services
RBC Legal Entity,05/01/2022,4639736,267014,ALLPAY.NET.LIMITED,PS Acquired Community Services,6240,Purchased Care,Third Party Supplier,STANDARD,5771,JAAA-Directorate of Social Care and Health Services
RBC Legal Entity,05/01/2022,4639737,267014,ALLPAY.NET.LIMITED,LD Community Services,2902.04,Purchased Care,Third Party Supplier,STANDARD,5741,JAAA-Directorate of Social Care and Health Services
RBC Legal Entity,05/01/2022,4639742,267014,ALLPAY.NET.LIMITED,LD Community Services,-194.24,Fairer charging charges,Third Party Supplier,CREDIT,5741,JAAA-Directorate of Social Care and Health Services
RBC Legal Entity,05/01/2022,4639742,267014,ALLPAY.NET.LIMITED,LD Community Services,10550.4,Purchased Care,Third Party Supplier,STANDARD,5741,JAAA-Directorate of Social Care and Health Services
RBC Legal Entity,05/01/2022,4639744,267014,ALLPAY.NET.LIMITED,PS Acquired Community Services,4994.29,Purchased Care,Third Party Supplier,STANDARD,5771,JAAA-Directorate of Social Care and Health Services
RBC Legal Entity,05/01/2022,4639745,267014,ALLPAY.NET.LIMITED,PS Acquired Community Services,-1040.91,Fairer charging charges,Third Party Supplier,CREDIT,5771,JAAA-Directorate of Social Care and Health Services
RBC Legal Entity,05/01/2022,4639745,267014,ALLPAY.NET.LIMITED,PS Acquired Community Services,2821.5,Purchased Care,Third Party Supplier,STANDARD,5771,JAAA-Directorate of Social Care and Health Services
RBC Legal Entity,05/01/2022,4639746,267014,ALLPAY.NET.LIMITED,LD Community Services,-77.68,Fairer charging charges,Third Party Supplier,CREDIT,5741,JAAA-Directorate of Social Care and Health Services
RBC Legal Entity,05/01/2022,4639746,267014,ALLPAY.NET.LIMITED,LD Community Services,2477.04,Purchased Care,Third Party Supplier,STANDARD,5741,JAAA-Directorate of Social Care and Health Services
RBC Legal Entity,05/01/2022,4639748,267014,ALLPAY.NET.LIMITED,PS Lifelong Community Services,933.92,Purchased Care,Third Party Supplier,STANDARD,5781,JAAA-Directorate of Social Care and Health Services
RBC Legal Entity,05/01/2022,4639751,267014,ALLPAY.NET.LIMITED,PS Acquired Community Services,759.64,Purchased Care,Third Party Supplier,STANDARD,5771,JAAA-Directorate of Social Care and Health Services
RBC Legal Entity,05/01/2022,4639752,267014,ALLPAY.NET.LIMITED,PS Acquired Community Services,-428.04,Fairer charging charges,Third Party Supplier,CREDIT,5771,JAAA-Directorate of Social Care and Health Services
RBC Legal Entity,05/01/2022,4639752,267014,ALLPAY.NET.LIMITED,PS Acquired Community Services,1385.76,Purchased Care,Third Party Supplier,STANDARD,5771,JAAA-Directorate of Social Care and Health Services
RBC Legal Entity,05/01/2022,4639758,267014,ALLPAY.NET.LIMITED,PS Acquired Community Services,508,Purchased Care,Third Party Supplier,STANDARD,5771,JAAA-Directorate of Social Care and Health Services
RBC Legal Entity,05/01/2022,4639759,267014,ALLPAY.NET.LIMITED,PS Acquired Community Services,1013.56,Purchased Care,Third Party Supplier,STANDARD,5771,JAAA-Directorate of Social Care and Health Services
RBC Legal Entity,05/01/2022,4639763,267014,ALLPAY.NET.LIMITED,PS Acquired Community Services,-382.76,Fairer charging charges,Third Party Supplier,CREDIT,5771,JAAA-Directorate of Social Care and Health Services
RBC Legal Entity,05/01/2022,4639763,267014,ALLPAY.NET.LIMITED,PS Acquired Community Services,1814.96,Purchased Care,Third Party Supplier,STANDARD,5771,JAAA-Directorate of Social Care and Health Services
RBC Legal Entity,05/01/2022,4639767,267014,ALLPAY.NET.LIMITED,LD Community Services,1107.68,Purchased Care,Third Party Supplier,STANDARD,5741,JAAA-Directorate of Social Care and Health Services
RBC Legal Entity,05/01/2022,4639769,267014,ALLPAY.NET.LIMITED,PS Lifelong Community Services,1762.92,Purchased Care,Third Party Supplier,STANDARD,5781,JAAA-Directorate of Social Care and Health Services
RBC Legal Entity,05/01/2022,4639770,267014,ALLPAY.NET.LIMITED,PS Acquired Community Services,-235.56,Fairer charging charges,Third Party Supplier,CREDIT,5771,JAAA-Directorate of Social Care and Health Services
RBC Legal Entity,05/01/2022,4639770,267014,ALLPAY.NET.LIMITED,PS Acquired Community Services,746,Purchased Care,Third Party Supplier,STANDARD,5771,JAAA-Directorate of Social Care and Health Services
RBC Legal Entity,05/01/2022,4639775,267014,ALLPAY.NET.LIMITED,PS Acquired Community Services,2171,Purchased Care,Third Party Supplier,STANDARD,5771,JAAA-Directorate of Social Care and Health Services
RBC Legal Entity,05/01/2022,4639782,267014,ALLPAY.NET.LIMITED,LD Community Services,605.4,Purchased Care,Third Party Supplier,STANDARD,5741,JAAA-Directorate of Social Care and Health Services
RBC Legal Entity,05/01/2022,4639783,267014,ALLPAY.NET.LIMITED,LD Community Services,-387.64,Fairer charging charges,Third Party Supplier,CREDIT,5741,JAAA-Directorate of Social Care and Health Services
RBC Legal Entity,05/01/2022,4639783,267014,ALLPAY.NET.LIMITED,LD Community Services,5639.1,Purchased Care,Third Party Supplier,STANDARD,5741,JAAA-Directorate of Social Care and Health Services
RBC Legal Entity,05/01/2022,4639784,267014,ALLPAY.NET.LIMITED,PS Acquired Community Services,-1674.6,Fairer charging charges,Third Party Supplier,CREDIT,5771,JAAA-Directorate of Social Care and Health Services
RBC Legal Entity,05/01/2022,4639784,267014,ALLPAY.NET.LIMITED,PS Acquired Community Services,4156,Purchased Care,Third Party Supplier,STANDARD,5771,JAAA-Directorate of Social Care and Health Services
RBC Legal Entity,05/01/2022,4639785,267014,ALLPAY.NET.LIMITED,PS Acquired Community Services,1140.8,Purchased Care,Third Party Supplier,STANDARD,5771,JAAA-Directorate of Social Care and Health Services
RBC Legal Entity,05/01/2022,4639786,267014,ALLPAY.NET.LIMITED,LD Community Services,880.8,Purchased Care,Third Party Supplier,STANDARD,5741,JAAA-Directorate of Social Care and Health Services
RBC Legal Entity,05/01/2022,4639787,267014,ALLPAY.NET.LIMITED,Sensory Support Community Services,1043.2,Purchased Care,Third Party Supplier,STANDARD,5711,JAAA-Directorate of Social Care and Health Services
RBC Legal Entity,05/01/2022,4639788,267014,ALLPAY.NET.LIMITED,PS Acquired Community Services,1759.72,Purchased Care,Third Party Supplier,STANDARD,5771,JAAA-Directorate of Social Care and Health Services
RBC Legal Entity,05/01/2022,4639791,267014,ALLPAY.NET.LIMITED,PS Acquired Community Services,-1174.96,Fairer charging charges,Third Party Supplier,CREDIT,5771,JAAA-Directorate of Social Care and Health Services
RBC Legal Entity,05/01/2022,4639791,267014,ALLPAY.NET.LIMITED,PS Acquired Community Services,3150,Purchased Care,Third Party Supplier,STANDARD,5771,JAAA-Directorate of Social Care and Health Services
RBC Legal Entity,05/01/2022,4639794,267014,ALLPAY.NET.LIMITED,LD Community Services,11387.6,Purchased Care,Third Party Supplier,STANDARD,5741,JAAA-Directorate of Social Care and Health Services
RBC Legal Entity,05/01/2022,4639801,267014,ALLPAY.NET.LIMITED,PS Acquired Community Services,-49.92,Fairer charging charges,Third Party Supplier,CREDIT,5771,JAAA-Directorate of Social Care and Health Services
RBC Legal Entity,05/01/2022,4639801,267014,ALLPAY.NET.LIMITED,PS Acquired Community Services,665.36,Purchased Care,Third Party Supplier,STANDARD,5771,JAAA-Directorate of Social Care and Health Services
RBC Legal Entity,05/01/2022,4639802,267014,ALLPAY.NET.LIMITED,PS Acquired Community Services,-4120.29,Purchased Care,Third Party Supplier,CREDIT,5771,JAAA-Directorate of Social Care and Health Services
RBC Legal Entity,05/01/2022,4639806,267014,ALLPAY.NET.LIMITED,PS Acquired Community Services,-736.25,Purchased Care,Third Party Supplier,CREDIT,5771,JAAA-Directorate of Social Care and Health Services
RBC Legal Entity,05/01/2022,4639807,267014,ALLPAY.NET.LIMITED,PS Acquired Community Services,-405.48,Fairer charging charges,Third Party Supplier,CREDIT,5771,JAAA-Directorate of Social Care and Health Services
RBC Legal Entity,05/01/2022,4639807,267014,ALLPAY.NET.LIMITED,PS Acquired Community Services,1571.64,Purchased Care,Third Party Supplier,STANDARD,5771,JAAA-Directorate of Social Care and Health Services
RBC Legal Entity,05/01/2022,4639272,267015,BASSET HOUSE CARE HOME,PS Acquired Nursing,2830.48,Purchased Care,SUPPLIER,STANDARD,5773,JAAA-Directorate of Social Care and Health Services
RBC Legal Entity,05/01/2022,4639815,267016,THINKGIRAFFE CONSULTANCY LTD,JLT Disbursements,2518.2,Misc. Legal Expenses,SUPPLIER,STANDARD,2407,LAAA-Directorate of Resources
RBC Legal Entity,05/01/2022,4639602,267017,PAYCOLL PAYROLL,Mental Health Community Services,1252.8,Purchased Care,Third Party Supplier,STANDARD,5731,JAAA-Directorate of Social Care and Health Services
RBC Legal Entity,05/01/2022,4639338,267018,BRAMLEY HEALTH,LD Residential,6773.2,Purchased Care,SUPPLIER,STANDARD,5742,JAAA-Directorate of Social Care and Health Services
RBC Legal Entity,05/01/2022,4639399,267020,BARCLAY HOUSE,PS Acquired Nursing,8568,Purchased Care,SUPPLIER,STANDARD,5773,JAAA-Directorate of Social Care and Health Services
RBC Legal Entity,05/01/2022,4632596,267021,SAFESITE FENCING LTD,Parks + Open Spaces,800,Contractors,SUB-CONTRACTOR,STANDARD,8003,ZZZC-Capital
RBC Legal Entity,05/01/2022,4632596,267021,SAFESITE FENCING LTD,Parks + Open Spaces,3384,Contractors,SUB-CONTRACTOR,STANDARD,8003,ZZZC-Capital
RBC Legal Entity,05/01/2022,4639549,267022,PAYCOLL PAYROLL,LD Community Services,-209.8,Fairer charging charges,Third Party Supplier,CREDIT,5741,JAAA-Directorate of Social Care and Health Services
RBC Legal Entity,05/01/2022,4639549,267022,PAYCOLL PAYROLL,LD Community Services,1285.08,Purchased Care,Third Party Supplier,STANDARD,5741,JAAA-Directorate of Social Care and Health Services
RBC Legal Entity,05/01/2022,4639550,267023,PAYCOLL PAYROLL,PS Lifelong Community Services,-225.88,Fairer charging charges,Third Party Supplier,CREDIT,5781,JAAA-Directorate of Social Care and Health Services
RBC Legal Entity,05/01/2022,4639550,267023,PAYCOLL PAYROLL,PS Lifelong Community Services,2969.28,Purchased Care,Third Party Supplier,STANDARD,5781,JAAA-Directorate of Social Care and Health Services
RBC Legal Entity,05/01/2022,4639462,267025,AUTISM CARE WILTSHIRE,LD Residential,8453.76,Purchased Care,Direct Payments,STANDARD,5742,JAAA-Directorate of Social Care and Health Services
RBC Legal Entity,05/01/2022,4639295,267026,TRANSPARENT CARE LTD,LD Residential,3270.56,Purchased Care,SUPPLIER,STANDARD,5742,JAAA-Directorate of Social Care and Health Services
RBC Legal Entity,05/01/2022,4639480,267026,TRANSPARENT CARE LTD,LD Residential,5294.84,Purchased Care,SUPPLIER,STANDARD,5742,JAAA-Directorate of Social Care and Health Services
RBC Legal Entity,05/01/2022,4639500,267026,TRANSPARENT CARE LTD,LD Residential,2872.52,Purchased Care,SUPPLIER,STANDARD,5742,JAAA-Directorate of Social Care and Health Services
RBC Legal Entity,05/01/2022,4639398,267028,WELLHEAD LANE LIMITED,LD Residential,8404.72,Purchased Care,SUPPLIER,STANDARD,5742,JAAA-Directorate of Social Care and Health Services
RBC Legal Entity,05/01/2022,4639718,267029,PAYCOLL PAYROLL,LD Community Services,3438.32,Purchased Care,Third Party Supplier,STANDARD,5741,JAAA-Directorate of Social Care and Health Services
RBC Legal Entity,05/01/2022,4639088,267030,MMCG (2) LIMITED,PS Acquired Nursing,1305.6,Purchased Care,Third Party Supplier,STANDARD,5773,JAAA-Directorate of Social Care and Health Services
RBC Legal Entity,05/01/2022,4639089,267030,MMCG (2) LIMITED,M&C Acquired Nursing,3200,Purchased Care,Third Party Supplier,STANDARD,5753,JAAA-Directorate of Social Care and Health Services
RBC Legal Entity,05/01/2022,4639090,267030,MMCG (2) LIMITED,PS Acquired Nursing,2900,Purchased Care,Third Party Supplier,STANDARD,5773,JAAA-Directorate of Social Care and Health Services
RBC Legal Entity,05/01/2022,4639091,267030,MMCG (2) LIMITED,PS Acquired Nursing,2900,Purchased Care,Third Party Supplier,STANDARD,5773,JAAA-Directorate of Social Care and Health Services
RBC Legal Entity,05/01/2022,4639093,267030,MMCG (2) LIMITED,PS Acquired Nursing,2900,Purchased Care,Third Party Supplier,STANDARD,5773,JAAA-Directorate of Social Care and Health Services
RBC Legal Entity,05/01/2022,4639100,267030,MMCG (2) LIMITED,PS Acquired Nursing,2996,Purchased Care,Third Party Supplier,STANDARD,5773,JAAA-Directorate of Social Care and Health Services
RBC Legal Entity,05/01/2022,4639101,267030,MMCG (2) LIMITED,PS Acquired Nursing,2996,Purchased Care,Third Party Supplier,STANDARD,5773,JAAA-Directorate of Social Care and Health Services
RBC Legal Entity,05/01/2022,4639102,267030,MMCG (2) LIMITED,M&C Acquired Nursing,-5671,Purchased Care,Third Party Supplier,CREDIT,5753,JAAA-Directorate of Social Care and Health Services
RBC Legal Entity,05/01/2022,4639103,267030,MMCG (2) LIMITED,Social Support,3400,Purchased Care,Third Party Supplier,STANDARD,5790,JAAA-Directorate of Social Care and Health Services
RBC Legal Entity,05/01/2022,4639109,267030,MMCG (2) LIMITED,PS Acquired Nursing,20196.43,Purchased Care,Third Party Supplier,STANDARD,5773,JAAA-Directorate of Social Care and Health Services
RBC Legal Entity,05/01/2022,4639113,267030,MMCG (2) LIMITED,PS Acquired Nursing,7585.71,Purchased Care,Third Party Supplier,STANDARD,5773,JAAA-Directorate of Social Care and Health Services
RBC Legal Entity,05/01/2022,4639116,267030,MMCG (2) LIMITED,PS Acquired Nursing,2996,Purchased Care,Third Party Supplier,STANDARD,5773,JAAA-Directorate of Social Care and Health Services
RBC Legal Entity,05/01/2022,4639122,267030,MMCG (2) LIMITED,PS Acquired Nursing,2996,Purchased Care,Third Party Supplier,STANDARD,5773,JAAA-Directorate of Social Care and Health Services
RBC Legal Entity,05/01/2022,4639125,267030,MMCG (2) LIMITED,PS Acquired Nursing,4071.84,Purchased Care,Third Party Supplier,STANDARD,5773,JAAA-Directorate of Social Care and Health Services
RBC Legal Entity,05/01/2022,4639126,267030,MMCG (2) LIMITED,PS Acquired Nursing,3060,Purchased Care,Third Party Supplier,STANDARD,5773,JAAA-Directorate of Social Care and Health Services
RBC Legal Entity,05/01/2022,4639127,267030,MMCG (2) LIMITED,Mental Health Nursing,3060,Purchased Care,Third Party Supplier,STANDARD,5733,JAAA-Directorate of Social Care and Health Services
RBC Legal Entity,05/01/2022,4639132,267030,MMCG (2) LIMITED,PS Acquired Nursing,2900,Purchased Care,Third Party Supplier,STANDARD,5773,JAAA-Directorate of Social Care and Health Services
RBC Legal Entity,05/01/2022,4639134,267030,MMCG (2) LIMITED,Mental Health Nursing,3200,Purchased Care,Third Party Supplier,STANDARD,5733,JAAA-Directorate of Social Care and Health Services
RBC Legal Entity,05/01/2022,4639135,267030,MMCG (2) LIMITED,PS Acquired Nursing,3200,Purchased Care,Third Party Supplier,STANDARD,5773,JAAA-Directorate of Social Care and Health Services
RBC Legal Entity,05/01/2022,4639136,267030,MMCG (2) LIMITED,PS Acquired Nursing,2996,Purchased Care,Third Party Supplier,STANDARD,5773,JAAA-Directorate of Social Care and Health Services
RBC Legal Entity,05/01/2022,4639137,267030,MMCG (2) LIMITED,PS Acquired Nursing,2996,Purchased Care,Third Party Supplier,STANDARD,5773,JAAA-Directorate of Social Care and Health Services
RBC Legal Entity,05/01/2022,4639138,267030,MMCG (2) LIMITED,PS Acquired Nursing,-5342.86,Purchased Care,Third Party Supplier,CREDIT,5773,JAAA-Directorate of Social Care and Health Services
RBC Legal Entity,05/01/2022,4639154,267030,MMCG (2) LIMITED,PS Acquired Nursing,3060,Purchased Care,Third Party Supplier,STANDARD,5773,JAAA-Directorate of Social Care and Health Services
RBC Legal Entity,05/01/2022,4639158,267030,MMCG (2) LIMITED,PS Acquired Nursing,3060,Purchased Care,Third Party Supplier,STANDARD,5773,JAAA-Directorate of Social Care and Health Services
RBC Legal Entity,05/01/2022,4639161,267030,MMCG (2) LIMITED,PS Acquired Nursing,2900,Purchased Care,Third Party Supplier,STANDARD,5773,JAAA-Directorate of Social Care and Health Services
RBC Legal Entity,05/01/2022,4639163,267030,MMCG (2) LIMITED,Mental Health Nursing,2900,Purchased Care,Third Party Supplier,STANDARD,5733,JAAA-Directorate of Social Care and Health Services
RBC Legal Entity,05/01/2022,4639164,267030,MMCG (2) LIMITED,PS Acquired Nursing,2900,Purchased Care,Third Party Supplier,STANDARD,5773,JAAA-Directorate of Social Care and Health Services
